Transaction Date,Local Authority Department,BENEFICIARY,Purpose,Amount,Non Recoverable,Merchant Category
01-06-2023,Environment and Sustainable Transport,NSL Limited,Private Contractors Payment - Other,58733.65,0,
01-06-2023,Inclusive Economy & Housing,Insurance Claims Accomodation Bureau Limited,Rents Payable,462,0,COMMERCIAL SUPPLIER
01-06-2023,Inclusive Economy & Housing,Insurance Claims Accomodation Bureau Limited,Rents Payable,462,0,COMMERCIAL SUPPLIER
01-06-2023,Inclusive Economy & Housing,Insurance Claims Accomodation Bureau Limited,Rents Payable,357.5,0,COMMERCIAL SUPPLIER
01-06-2023,Inclusive Economy & Housing,Insurance Claims Accomodation Bureau Limited,Rents Payable,1421.31,0,COMMERCIAL SUPPLIER
01-06-2023,Inclusive Economy & Housing,Insurance Claims Accomodation Bureau Limited,Rents Payable,308,0,COMMERCIAL SUPPLIER
01-06-2023,Inclusive Economy & Housing,Insurance Claims Accomodation Bureau Limited,Rents Payable,308,0,COMMERCIAL SUPPLIER
01-06-2023,Inclusive Economy & Housing,Insurance Claims Accomodation Bureau Limited,Rents Payable,308,0,COMMERCIAL SUPPLIER
01-06-2023,Inclusive Economy & Housing,Insurance Claims Accomodation Bureau Limited,Rents Payable,264,0,COMMERCIAL SUPPLIER
01-06-2023,Inclusive Economy & Housing,Insurance Claims Accomodation Bureau Limited,Rents Payable,385,0,COMMERCIAL SUPPLIER
01-06-2023,oneSource,Law Morgan Ltd,Agency Staff,2631.04,0,COMMERCIAL SUPPLIER
01-06-2023,oneSource,Law Morgan Ltd,Agency Staff,3288.8,0,COMMERCIAL SUPPLIER
01-06-2023,Environment and Sustainable Transport,AM Wright Associates Ltd,Consultancy Fees,1653.4,0,LOCAL AUTHORITY SERVICES
01-06-2023,Inclusive Economy & Housing,Insurance Claims Accomodation Bureau Limited,Rents Payable,924,0,COMMERCIAL SUPPLIER
01-06-2023,Inclusive Economy & Housing,Insurance Claims Accomodation Bureau Limited,Rents Payable,1148.33,0,COMMERCIAL SUPPLIER
01-06-2023,Inclusive Economy & Housing,Insurance Claims Accomodation Bureau Limited,Rents Payable,578.37,0,COMMERCIAL SUPPLIER
01-06-2023,Inclusive Economy & Housing,Insurance Claims Accomodation Bureau Limited,Rents Payable,1435.92,0,COMMERCIAL SUPPLIER
01-06-2023,Inclusive Economy & Housing,Insurance Claims Accomodation Bureau Limited,Rents Payable,2551.01,0,COMMERCIAL SUPPLIER
01-06-2023,Inclusive Economy & Housing,Insurance Claims Accomodation Bureau Limited,Rents Payable,1954.71,0,COMMERCIAL SUPPLIER
01-06-2023,Inclusive Economy & Housing,Insurance Claims Accomodation Bureau Limited,Rents Payable,1564.71,0,COMMERCIAL SUPPLIER
01-06-2023,Inclusive Economy & Housing,Insurance Claims Accomodation Bureau Limited,Rents Payable,1772.91,0,COMMERCIAL SUPPLIER
01-06-2023,Inclusive Economy & Housing,Insurance Claims Accomodation Bureau Limited,Rents Payable,1564.71,0,COMMERCIAL SUPPLIER
01-06-2023,Inclusive Economy & Housing,Insurance Claims Accomodation Bureau Limited,Rents Payable,1564.71,0,COMMERCIAL SUPPLIER
01-06-2023,Inclusive Economy & Housing,Insurance Claims Accomodation Bureau Limited,Rents Payable,2239.63,0,COMMERCIAL SUPPLIER
01-06-2023,Inclusive Economy & Housing,Insurance Claims Accomodation Bureau Limited,Rents Payable,876.53,0,COMMERCIAL SUPPLIER
01-06-2023,Inclusive Economy & Housing,Insurance Claims Accomodation Bureau Limited,Rents Payable,1089.2,0,COMMERCIAL SUPPLIER
01-06-2023,Inclusive Economy & Housing,Insurance Claims Accomodation Bureau Limited,Rents Payable,2585.81,0,COMMERCIAL SUPPLIER
01-06-2023,Inclusive Economy & Housing,Insurance Claims Accomodation Bureau Limited,Rents Payable,1650.51,0,COMMERCIAL SUPPLIER
01-06-2023,Inclusive Economy & Housing,Insurance Claims Accomodation Bureau Limited,Rents Payable,2791.61,0,COMMERCIAL SUPPLIER
01-06-2023,Inclusive Economy & Housing,Insurance Claims Accomodation Bureau Limited,Rents Payable,1709.91,0,COMMERCIAL SUPPLIER
01-06-2023,Inclusive Economy & Housing,Insurance Claims Accomodation Bureau Limited,Rents Payable,616,0,COMMERCIAL SUPPLIER
01-06-2023,Inclusive Economy & Housing,Insurance Claims Accomodation Bureau Limited,Rents Payable,992.49,0,COMMERCIAL SUPPLIER
01-06-2023,Inclusive Economy & Housing,Insurance Claims Accomodation Bureau Limited,Rents Payable,1394.33,0,COMMERCIAL SUPPLIER
01-06-2023,Inclusive Economy & Housing,Insurance Claims Accomodation Bureau Limited,Rents Payable,1519.91,0,COMMERCIAL SUPPLIER
01-06-2023,Inclusive Economy & Housing,Insurance Claims Accomodation Bureau Limited,Rents Payable,1726.71,0,COMMERCIAL SUPPLIER
01-06-2023,Inclusive Economy & Housing,Insurance Claims Accomodation Bureau Limited,Rents Payable,2181.51,0,COMMERCIAL SUPPLIER
01-06-2023,Inclusive Economy & Housing,Insurance Claims Accomodation Bureau Limited,Rents Payable,1440.51,0,COMMERCIAL SUPPLIER
01-06-2023,Inclusive Economy & Housing,Insurance Claims Accomodation Bureau Limited,Rents Payable,1436.31,0,COMMERCIAL SUPPLIER
01-06-2023,Inclusive Economy & Housing,Insurance Claims Accomodation Bureau Limited,Rents Payable,1421.31,0,COMMERCIAL SUPPLIER
01-06-2023,Inclusive Economy & Housing,Insurance Claims Accomodation Bureau Limited,Rents Payable,1564.71,0,COMMERCIAL SUPPLIER
01-06-2023,Inclusive Economy & Housing,Insurance Claims Accomodation Bureau Limited,Rents Payable,1564.71,0,COMMERCIAL SUPPLIER
01-06-2023,Inclusive Economy & Housing,Insurance Claims Accomodation Bureau Limited,Rents Payable,958.67,0,COMMERCIAL SUPPLIER
01-06-2023,Inclusive Economy & Housing,Insurance Claims Accomodation Bureau Limited,Rents Payable,1342.71,0,COMMERCIAL SUPPLIER
01-06-2023,Inclusive Economy & Housing,Insurance Claims Accomodation Bureau Limited,Rents Payable,1503.77,0,COMMERCIAL SUPPLIER
01-06-2023,Inclusive Economy & Housing,Insurance Claims Accomodation Bureau Limited,Rents Payable,1436.31,0,COMMERCIAL SUPPLIER
01-06-2023,Inclusive Economy & Housing,Insurance Claims Accomodation Bureau Limited,Rents Payable,1192.13,0,COMMERCIAL SUPPLIER
01-06-2023,Inclusive Economy & Housing,Insurance Claims Accomodation Bureau Limited,Rents Payable,1613.81,0,COMMERCIAL SUPPLIER
01-06-2023,Inclusive Economy & Housing,Insurance Claims Accomodation Bureau Limited,Rents Payable,1982.31,0,COMMERCIAL SUPPLIER
01-06-2023,Inclusive Economy & Housing,Insurance Claims Accomodation Bureau Limited,Rents Payable,2914.61,0,COMMERCIAL SUPPLIER
01-06-2023,Inclusive Economy & Housing,Insurance Claims Accomodation Bureau Limited,Rents Payable,1426.71,0,COMMERCIAL SUPPLIER
01-06-2023,Inclusive Economy & Housing,Insurance Claims Accomodation Bureau Limited,Rents Payable,1499.31,0,COMMERCIAL SUPPLIER
01-06-2023,Inclusive Economy & Housing,Insurance Claims Accomodation Bureau Limited,Rents Payable,1436.31,0,COMMERCIAL SUPPLIER
01-06-2023,Inclusive Economy & Housing,Insurance Claims Accomodation Bureau Limited,Rents Payable,1366.71,0,COMMERCIAL SUPPLIER
01-06-2023,Inclusive Economy & Housing,Insurance Claims Accomodation Bureau Limited,Rents Payable,1884.51,0,COMMERCIAL SUPPLIER
01-06-2023,Inclusive Economy & Housing,Insurance Claims Accomodation Bureau Limited,Rents Payable,1344.51,0,COMMERCIAL SUPPLIER
01-06-2023,Inclusive Economy & Housing,Insurance Claims Accomodation Bureau Limited,Rents Payable,1285.71,0,COMMERCIAL SUPPLIER
01-06-2023,Inclusive Economy & Housing,Insurance Claims Accomodation Bureau Limited,Rents Payable,1141.71,0,COMMERCIAL SUPPLIER
01-06-2023,Inclusive Economy & Housing,Insurance Claims Accomodation Bureau Limited,Rents Payable,1671.51,0,COMMERCIAL SUPPLIER
01-06-2023,Inclusive Economy & Housing,Insurance Claims Accomodation Bureau Limited,Rents Payable,932.91,0,COMMERCIAL SUPPLIER
01-06-2023,Inclusive Economy & Housing,Insurance Claims Accomodation Bureau Limited,Rents Payable,650.31,0,COMMERCIAL SUPPLIER
01-06-2023,Inclusive Economy & Housing,Insurance Claims Accomodation Bureau Limited,Rents Payable,1490.31,0,COMMERCIAL SUPPLIER
01-06-2023,Inclusive Economy & Housing,Insurance Claims Accomodation Bureau Limited,Rents Payable,1535.91,0,COMMERCIAL SUPPLIER
01-06-2023,Inclusive Economy & Housing,Insurance Claims Accomodation Bureau Limited,Rents Payable,1307.31,0,COMMERCIAL SUPPLIER
01-06-2023,Inclusive Economy & Housing,Insurance Claims Accomodation Bureau Limited,Rents Payable,1499.31,0,COMMERCIAL SUPPLIER
01-06-2023,Inclusive Economy & Housing,Insurance Claims Accomodation Bureau Limited,Rents Payable,1431.51,0,COMMERCIAL SUPPLIER
01-06-2023,Inclusive Economy & Housing,Insurance Claims Accomodation Bureau Limited,Rents Payable,1471.11,0,COMMERCIAL SUPPLIER
01-06-2023,Inclusive Economy & Housing,Insurance Claims Accomodation Bureau Limited,Rents Payable,1468.11,0,COMMERCIAL SUPPLIER
01-06-2023,Inclusive Economy & Housing,Insurance Claims Accomodation Bureau Limited,Rents Payable,808.5,0,COMMERCIAL SUPPLIER
01-06-2023,Inclusive Economy & Housing,Insurance Claims Accomodation Bureau Limited,Rents Payable,1396.11,0,COMMERCIAL SUPPLIER
01-06-2023,Inclusive Economy & Housing,Insurance Claims Accomodation Bureau Limited,Rents Payable,1669.11,0,COMMERCIAL SUPPLIER
01-06-2023,Inclusive Economy & Housing,Insurance Claims Accomodation Bureau Limited,Rents Payable,913.12,0,COMMERCIAL SUPPLIER
01-06-2023,Inclusive Economy & Housing,Insurance Claims Accomodation Bureau Limited,Rents Payable,1716.51,0,COMMERCIAL SUPPLIER
01-06-2023,Inclusive Economy & Housing,Insurance Claims Accomodation Bureau Limited,Rents Payable,1588.11,0,COMMERCIAL SUPPLIER
01-06-2023,Inclusive Economy & Housing,Insurance Claims Accomodation Bureau Limited,Rents Payable,1444.11,0,COMMERCIAL SUPPLIER
01-06-2023,Inclusive Economy & Housing,Insurance Claims Accomodation Bureau Limited,Rents Payable,1812.88,0,COMMERCIAL SUPPLIER
01-06-2023,Inclusive Economy & Housing,Insurance Claims Accomodation Bureau Limited,Rents Payable,1503.51,0,COMMERCIAL SUPPLIER
01-06-2023,Housing Revenue Account,Daisy Corporate Services Trading Ltd,Land Line Telephone Costs,3129.61,0,COMMERCIAL SUPPLIER
01-06-2023,Dedicated Schools Budget,Personal Information - Redacted,Private Contractors Payment - Other,1782,0,COMMERCIAL SUPPLIER
01-06-2023,Dedicated Schools Budget,Personal Information - Redacted,Private Contractors Payment - Other,1782,0,COMMERCIAL SUPPLIER
01-06-2023,RMS,Door-Stop International Ltd,Building Alterations And Materials,703.61,0,VENDOR
01-06-2023,RMS,Door-Stop International Ltd,Building Alterations And Materials,710.36,0,VENDOR
01-06-2023,Environment and Sustainable Transport,Greener Solutions,Highway Services,41.94,0,VENDOR
01-06-2023,Environment and Sustainable Transport,Greener Solutions,Highway Services,0.44,0,VENDOR
01-06-2023,Environment and Sustainable Transport,Greener Solutions,Highway Services,34.8,0,VENDOR
01-06-2023,Environment and Sustainable Transport,Greener Solutions,Highway Services,67.5,0,VENDOR
01-06-2023,Environment and Sustainable Transport,Greener Solutions,Highway Services,32.94,0,VENDOR
01-06-2023,Environment and Sustainable Transport,Greener Solutions,Highway Services,59.5,0,VENDOR
01-06-2023,Environment and Sustainable Transport,Greener Solutions,Highway Services,43.38,0,VENDOR
01-06-2023,Environment and Sustainable Transport,Greener Solutions,Highway Services,164.89,0,VENDOR
01-06-2023,Environment and Sustainable Transport,Greener Solutions,Highway Services,139.5,0,VENDOR
01-06-2023,Environment and Sustainable Transport,Greener Solutions,Highway Services,26.95,0,VENDOR
01-06-2023,Environment and Sustainable Transport,Greener Solutions,Highway Services,332,0,VENDOR
01-06-2023,Environment and Sustainable Transport,Greener Solutions,Highway Services,220,0,VENDOR
01-06-2023,Environment and Sustainable Transport,Greener Solutions,Highway Services,3,0,VENDOR
01-06-2023,Environment and Sustainable Transport,Greener Solutions,Highway Services,69,0,VENDOR
01-06-2023,Environment and Sustainable Transport,Greener Solutions,Highway Services,159,0,VENDOR
01-06-2023,Environment and Sustainable Transport,Greener Solutions,Highway Services,495,0,VENDOR
01-06-2023,Environment and Sustainable Transport,Greener Solutions,Highway Services,522,0,VENDOR
01-06-2023,oneSource,Personal Information - Redacted,Bailiff Fees Income,13343.68,0,LOCAL AUTHORITY SERVICES
01-06-2023,Adults & Health,Delta Security (1962) Ltd,Private Contractors Payment - Other,3212,0,COMMERCIAL SUPPLIER
01-06-2023,oneSource - Non Shared,J P Dawkins Limited,Facilities Management,777.98,0,COMMERCIAL SUPPLIER
01-06-2023,oneSource - Non Shared,J P Dawkins Limited,Facilities Management,574,0,COMMERCIAL SUPPLIER
01-06-2023,RMS,A M Forktrucks Ltd,Purchase Of Vehicles Related Costs,810.33,0,COMMERCIAL SUPPLIER
01-06-2023,RMS,A M Forktrucks Ltd,Purchase Of Vehicles Related Costs,433.33,0,COMMERCIAL SUPPLIER
01-06-2023,Marketing,Personal Information - Redacted,Events,250,0,COMMERCIAL SUPPLIER
01-06-2023,RMS,Nicholls & Clarke Glass Ltd,Building Alterations And Materials,3809.96,0,VENDOR
01-06-2023,Housing Revenue Account,RGE Services Ltd,Cyclical/Planned Maintenance - Mechanical And Electrical,1938.03,0,CIS
01-06-2023,Housing Revenue Account,RGE Services Ltd,Cyclical/Planned Maintenance - Mechanical And Electrical,220,0,CIS
01-06-2023,Children and Young People,Bridging Gaps Fostering Agency,Other Contributions & Reimbursements (Income),850,0,COMMERCIAL SUPPLIER
01-06-2023,Children and Young People,Bridging Gaps Fostering Agency,Other Contributions & Reimbursements (Income),850,0,COMMERCIAL SUPPLIER
01-06-2023,Children and Young People,Bridging Gaps Fostering Agency,Other Contributions & Reimbursements (Income),1092.86,0,COMMERCIAL SUPPLIER
01-06-2023,Children and Young People,Bridging Gaps Fostering Agency,Other Contributions & Reimbursements (Income),850,0,COMMERCIAL SUPPLIER
01-06-2023,Environment and Sustainable Transport,Ford Motor Company Ltd t/a PartsPlus,Highway Services,568.48,0,COMMERCIAL SUPPLIER
01-06-2023,Environment and Sustainable Transport,Ford Motor Company Ltd t/a PartsPlus,Highway Services,20.65,0,COMMERCIAL SUPPLIER
01-06-2023,Environment and Sustainable Transport,Ford Motor Company Ltd t/a PartsPlus,Highway Services,60,0,COMMERCIAL SUPPLIER
01-06-2023,Environment and Sustainable Transport,Ford Motor Company Ltd t/a PartsPlus,Highway Services,18.64,0,COMMERCIAL SUPPLIER
01-06-2023,Environment and Sustainable Transport,Ford Motor Company Ltd t/a PartsPlus,Highway Services,86.49,0,COMMERCIAL SUPPLIER
01-06-2023,Environment and Sustainable Transport,Ford Motor Company Ltd t/a PartsPlus,Highway Services,86.49,0,COMMERCIAL SUPPLIER
01-06-2023,Environment and Sustainable Transport,Ford Motor Company Ltd t/a PartsPlus,Highway Services,51.79,0,COMMERCIAL SUPPLIER
01-06-2023,Environment and Sustainable Transport,Ford Motor Company Ltd t/a PartsPlus,Highway Services,297.55,0,COMMERCIAL SUPPLIER
01-06-2023,RMS,Blackburn & CO. Ltd,Building Alterations And Materials,385,0,CIS
01-06-2023,oneSource - Non Shared,CCS Media Limited.,Ict Hardware,5070,0,COMMERCIAL SUPPLIER
01-06-2023,Inclusive Economy & Housing,Insurance Claims Accomodation Bureau Limited,Rents Payable,6612.68,0,COMMERCIAL SUPPLIER
01-06-2023,Inclusive Economy & Housing,Insurance Claims Accomodation Bureau Limited,Rents Payable,430.61,0,COMMERCIAL SUPPLIER
01-06-2023,Inclusive Economy & Housing,Insurance Claims Accomodation Bureau Limited,Rents Payable,4699.07,0,COMMERCIAL SUPPLIER
01-06-2023,Inclusive Economy & Housing,Insurance Claims Accomodation Bureau Limited,Rents Payable,326.88,0,COMMERCIAL SUPPLIER
01-06-2023,Inclusive Economy & Housing,Insurance Claims Accomodation Bureau Limited,Rents Payable,4173.85,0,COMMERCIAL SUPPLIER
01-06-2023,Inclusive Economy & Housing,Insurance Claims Accomodation Bureau Limited,Rents Payable,1001.63,0,COMMERCIAL SUPPLIER
01-06-2023,Inclusive Economy & Housing,Insurance Claims Accomodation Bureau Limited,Rents Payable,846.76,0,COMMERCIAL SUPPLIER
01-06-2023,Inclusive Economy & Housing,Insurance Claims Accomodation Bureau Limited,Rents Payable,613.32,0,COMMERCIAL SUPPLIER
01-06-2023,Inclusive Economy & Housing,Insurance Claims Accomodation Bureau Limited,Rents Payable,823.59,0,COMMERCIAL SUPPLIER
01-06-2023,Inclusive Economy & Housing,Insurance Claims Accomodation Bureau Limited,Rents Payable,814.26,0,COMMERCIAL SUPPLIER
01-06-2023,Inclusive Economy & Housing,Insurance Claims Accomodation Bureau Limited,Rents Payable,745.51,0,COMMERCIAL SUPPLIER
01-06-2023,Inclusive Economy & Housing,Insurance Claims Accomodation Bureau Limited,Rents Payable,884.85,0,COMMERCIAL SUPPLIER
01-06-2023,Inclusive Economy & Housing,Insurance Claims Accomodation Bureau Limited,Rents Payable,552.44,0,COMMERCIAL SUPPLIER
01-06-2023,Inclusive Economy & Housing,Insurance Claims Accomodation Bureau Limited,Rents Payable,317.3,0,COMMERCIAL SUPPLIER
01-06-2023,Inclusive Economy & Housing,Insurance Claims Accomodation Bureau Limited,Rents Payable,1197.18,0,COMMERCIAL SUPPLIER
01-06-2023,Inclusive Economy & Housing,Insurance Claims Accomodation Bureau Limited,Rents Payable,777.69,0,COMMERCIAL SUPPLIER
01-06-2023,Inclusive Economy & Housing,Insurance Claims Accomodation Bureau Limited,Rents Payable,1501.85,0,COMMERCIAL SUPPLIER
01-06-2023,Inclusive Economy & Housing,Insurance Claims Accomodation Bureau Limited,Rents Payable,868.71,0,COMMERCIAL SUPPLIER
01-06-2023,Inclusive Economy & Housing,Insurance Claims Accomodation Bureau Limited,Rents Payable,2869.1,0,COMMERCIAL SUPPLIER
01-06-2023,Inclusive Economy & Housing,Insurance Claims Accomodation Bureau Limited,Rents Payable,518.89,0,COMMERCIAL SUPPLIER
01-06-2023,Inclusive Economy & Housing,Insurance Claims Accomodation Bureau Limited,Rents Payable,730.37,0,COMMERCIAL SUPPLIER
01-06-2023,Inclusive Economy & Housing,Insurance Claims Accomodation Bureau Limited,Rents Payable,569.96,0,COMMERCIAL SUPPLIER
01-06-2023,Inclusive Economy & Housing,Insurance Claims Accomodation Bureau Limited,Rents Payable,761.26,0,COMMERCIAL SUPPLIER
01-06-2023,Inclusive Economy & Housing,Insurance Claims Accomodation Bureau Limited,Rents Payable,931.81,0,COMMERCIAL SUPPLIER
01-06-2023,Inclusive Economy & Housing,Insurance Claims Accomodation Bureau Limited,Rents Payable,540.19,0,COMMERCIAL SUPPLIER
01-06-2023,Inclusive Economy & Housing,Insurance Claims Accomodation Bureau Limited,Rents Payable,538.61,0,COMMERCIAL SUPPLIER
01-06-2023,Inclusive Economy & Housing,Insurance Claims Accomodation Bureau Limited,Rents Payable,532.99,0,COMMERCIAL SUPPLIER
01-06-2023,Inclusive Economy & Housing,Insurance Claims Accomodation Bureau Limited,Rents Payable,1269.26,0,COMMERCIAL SUPPLIER
01-06-2023,Inclusive Economy & Housing,Insurance Claims Accomodation Bureau Limited,Rents Payable,814.26,0,COMMERCIAL SUPPLIER
01-06-2023,Inclusive Economy & Housing,Insurance Claims Accomodation Bureau Limited,Rents Payable,356.22,0,COMMERCIAL SUPPLIER
01-06-2023,Inclusive Economy & Housing,Insurance Claims Accomodation Bureau Limited,Rents Payable,503.51,0,COMMERCIAL SUPPLIER
01-06-2023,Inclusive Economy & Housing,Insurance Claims Accomodation Bureau Limited,Rents Payable,826.12,0,COMMERCIAL SUPPLIER
01-06-2023,Inclusive Economy & Housing,Insurance Claims Accomodation Bureau Limited,Rents Payable,583.61,0,COMMERCIAL SUPPLIER
01-06-2023,Inclusive Economy & Housing,Insurance Claims Accomodation Bureau Limited,Rents Payable,536.42,0,COMMERCIAL SUPPLIER
01-06-2023,Inclusive Economy & Housing,Insurance Claims Accomodation Bureau Limited,Rents Payable,814.94,0,COMMERCIAL SUPPLIER
01-06-2023,Inclusive Economy & Housing,Insurance Claims Accomodation Bureau Limited,Rents Payable,857.11,0,COMMERCIAL SUPPLIER
01-06-2023,Inclusive Economy & Housing,Insurance Claims Accomodation Bureau Limited,Rents Payable,1320.47,0,COMMERCIAL SUPPLIER
01-06-2023,Inclusive Economy & Housing,Insurance Claims Accomodation Bureau Limited,Rents Payable,535.01,0,COMMERCIAL SUPPLIER
01-06-2023,Inclusive Economy & Housing,Insurance Claims Accomodation Bureau Limited,Rents Payable,675.99,0,COMMERCIAL SUPPLIER
01-06-2023,Inclusive Economy & Housing,Insurance Claims Accomodation Bureau Limited,Rents Payable,538.61,0,COMMERCIAL SUPPLIER
01-06-2023,Inclusive Economy & Housing,Insurance Claims Accomodation Bureau Limited,Rents Payable,740.01,0,COMMERCIAL SUPPLIER
01-06-2023,Inclusive Economy & Housing,Insurance Claims Accomodation Bureau Limited,Rents Payable,706.69,0,COMMERCIAL SUPPLIER
01-06-2023,Inclusive Economy & Housing,Insurance Claims Accomodation Bureau Limited,Rents Payable,617.94,0,COMMERCIAL SUPPLIER
01-06-2023,Inclusive Economy & Housing,Insurance Claims Accomodation Bureau Limited,Rents Payable,691.91,0,COMMERCIAL SUPPLIER
01-06-2023,Inclusive Economy & Housing,Insurance Claims Accomodation Bureau Limited,Rents Payable,541.89,0,COMMERCIAL SUPPLIER
01-06-2023,Inclusive Economy & Housing,Insurance Claims Accomodation Bureau Limited,Rents Payable,740.56,0,COMMERCIAL SUPPLIER
01-06-2023,Inclusive Economy & Housing,Insurance Claims Accomodation Bureau Limited,Rents Payable,664.49,0,COMMERCIAL SUPPLIER
01-06-2023,Inclusive Economy & Housing,Insurance Claims Accomodation Bureau Limited,Rents Payable,243.86,0,COMMERCIAL SUPPLIER
01-06-2023,Inclusive Economy & Housing,Insurance Claims Accomodation Bureau Limited,Rents Payable,786.36,0,COMMERCIAL SUPPLIER
01-06-2023,Inclusive Economy & Housing,Insurance Claims Accomodation Bureau Limited,Rents Payable,689.71,0,COMMERCIAL SUPPLIER
01-06-2023,Inclusive Economy & Housing,Insurance Claims Accomodation Bureau Limited,Rents Payable,717.74,0,COMMERCIAL SUPPLIER
01-06-2023,Inclusive Economy & Housing,Insurance Claims Accomodation Bureau Limited,Rents Payable,675.99,0,COMMERCIAL SUPPLIER
01-06-2023,Inclusive Economy & Housing,Insurance Claims Accomodation Bureau Limited,Rents Payable,536.81,0,COMMERCIAL SUPPLIER
01-06-2023,Inclusive Economy & Housing,Insurance Claims Accomodation Bureau Limited,Rents Payable,2619.44,0,COMMERCIAL SUPPLIER
01-06-2023,Inclusive Economy & Housing,Insurance Claims Accomodation Bureau Limited,Rents Payable,550.54,0,COMMERCIAL SUPPLIER
01-06-2023,Inclusive Economy & Housing,Insurance Claims Accomodation Bureau Limited,Rents Payable,4048.7,0,COMMERCIAL SUPPLIER
01-06-2023,Inclusive Economy & Housing,Insurance Claims Accomodation Bureau Limited,Rents Payable,1456.62,0,COMMERCIAL SUPPLIER
01-06-2023,Inclusive Economy & Housing,Insurance Claims Accomodation Bureau Limited,Rents Payable,751.04,0,COMMERCIAL SUPPLIER
01-06-2023,Inclusive Economy & Housing,Insurance Claims Accomodation Bureau Limited,Rents Payable,739.66,0,COMMERCIAL SUPPLIER
01-06-2023,Inclusive Economy & Housing,Insurance Claims Accomodation Bureau Limited,Rents Payable,4328.12,0,COMMERCIAL SUPPLIER
01-06-2023,Inclusive Economy & Housing,Insurance Claims Accomodation Bureau Limited,Rents Payable,387.41,0,COMMERCIAL SUPPLIER
01-06-2023,Inclusive Economy & Housing,Insurance Claims Accomodation Bureau Limited,Rents Payable,871.19,0,COMMERCIAL SUPPLIER
01-06-2023,Inclusive Economy & Housing,Insurance Claims Accomodation Bureau Limited,Rents Payable,754.29,0,COMMERCIAL SUPPLIER
01-06-2023,Inclusive Economy & Housing,Insurance Claims Accomodation Bureau Limited,Rents Payable,541.54,0,COMMERCIAL SUPPLIER
01-06-2023,Inclusive Economy & Housing,Insurance Claims Accomodation Bureau Limited,Rents Payable,679.82,0,COMMERCIAL SUPPLIER
01-06-2023,Inclusive Economy & Housing,Insurance Claims Accomodation Bureau Limited,Rents Payable,722.56,0,COMMERCIAL SUPPLIER
01-06-2023,Inclusive Economy & Housing,Insurance Claims Accomodation Bureau Limited,Rents Payable,641.18,0,COMMERCIAL SUPPLIER
01-06-2023,Inclusive Economy & Housing,Insurance Claims Accomodation Bureau Limited,Rents Payable,4867.8,0,COMMERCIAL SUPPLIER
01-06-2023,RMS,Travis Perkins Trading Company Ltd,Building Alterations And Materials,615.5,0,COMMERCIAL SUPPLIER
01-06-2023,RMS,Travis Perkins Trading Company Ltd,Building Alterations And Materials,1629,0,COMMERCIAL SUPPLIER
01-06-2023,RMS,Travis Perkins Trading Company Ltd,Building Alterations And Materials,261.08,0,COMMERCIAL SUPPLIER
01-06-2023,RMS,Travis Perkins Trading Company Ltd,Building Alterations And Materials,11.4,0,COMMERCIAL SUPPLIER
01-06-2023,RMS,Travis Perkins Trading Company Ltd,Building Alterations And Materials,36,0,COMMERCIAL SUPPLIER
01-06-2023,RMS,Travis Perkins Trading Company Ltd,Building Alterations And Materials,261.36,0,COMMERCIAL SUPPLIER
01-06-2023,RMS,Travis Perkins Trading Company Ltd,Building Alterations And Materials,17.4,0,COMMERCIAL SUPPLIER
01-06-2023,RMS,Travis Perkins Trading Company Ltd,Building Alterations And Materials,17.4,0,COMMERCIAL SUPPLIER
01-06-2023,RMS,Travis Perkins Trading Company Ltd,Building Alterations And Materials,43.32,0,COMMERCIAL SUPPLIER
01-06-2023,RMS,Travis Perkins Trading Company Ltd,Building Alterations And Materials,69.6,0,COMMERCIAL SUPPLIER
01-06-2023,RMS,Travis Perkins Trading Company Ltd,Building Alterations And Materials,35.5,0,COMMERCIAL SUPPLIER
01-06-2023,RMS,Travis Perkins Trading Company Ltd,Building Alterations And Materials,53.1,0,COMMERCIAL SUPPLIER
01-06-2023,RMS,Travis Perkins Trading Company Ltd,Building Alterations And Materials,84.2,0,COMMERCIAL SUPPLIER
01-06-2023,RMS,Travis Perkins Trading Company Ltd,Building Alterations And Materials,333.4,0,COMMERCIAL SUPPLIER
01-06-2023,RMS,Travis Perkins Trading Company Ltd,Building Alterations And Materials,17.5,0,COMMERCIAL SUPPLIER
01-06-2023,RMS,Travis Perkins Trading Company Ltd,Building Alterations And Materials,560.74,0,COMMERCIAL SUPPLIER
01-06-2023,RMS,Travis Perkins Trading Company Ltd,Building Alterations And Materials,15,0,COMMERCIAL SUPPLIER
01-06-2023,RMS,Travis Perkins Trading Company Ltd,Building Alterations And Materials,328.76,0,COMMERCIAL SUPPLIER
01-06-2023,RMS,Travis Perkins Trading Company Ltd,Building Alterations And Materials,350.84,0,COMMERCIAL SUPPLIER
01-06-2023,RMS,Travis Perkins Trading Company Ltd,Building Alterations And Materials,1430.65,0,COMMERCIAL SUPPLIER
01-06-2023,RMS,Travis Perkins Trading Company Ltd,Building Alterations And Materials,236.08,0,COMMERCIAL SUPPLIER
01-06-2023,RMS,Travis Perkins Trading Company Ltd,Building Alterations And Materials,667.2,0,COMMERCIAL SUPPLIER
01-06-2023,RMS,Travis Perkins Trading Company Ltd,Building Alterations And Materials,2995,0,COMMERCIAL SUPPLIER
01-06-2023,RMS,Travis Perkins Trading Company Ltd,Building Alterations And Materials,234,0,COMMERCIAL SUPPLIER
01-06-2023,RMS,Travis Perkins Trading Company Ltd,Building Alterations And Materials,224.13,0,COMMERCIAL SUPPLIER
01-06-2023,RMS,Travis Perkins Trading Company Ltd,Building Alterations And Materials,219.74,0,COMMERCIAL SUPPLIER
01-06-2023,RMS,Travis Perkins Trading Company Ltd,Building Alterations And Materials,2570,0,COMMERCIAL SUPPLIER
01-06-2023,RMS,Travis Perkins Trading Company Ltd,Building Alterations And Materials,2570,0,COMMERCIAL SUPPLIER
01-06-2023,RMS,Travis Perkins Trading Company Ltd,Building Alterations And Materials,71,0,COMMERCIAL SUPPLIER
01-06-2023,RMS,Travis Perkins Trading Company Ltd,Building Alterations And Materials,330,0,COMMERCIAL SUPPLIER
01-06-2023,RMS,Travis Perkins Trading Company Ltd,Building Alterations And Materials,572,0,COMMERCIAL SUPPLIER
01-06-2023,RMS,Travis Perkins Trading Company Ltd,Building Alterations And Materials,425,0,COMMERCIAL SUPPLIER
01-06-2023,RMS,Travis Perkins Trading Company Ltd,Building Alterations And Materials,1261.3,0,COMMERCIAL SUPPLIER
01-06-2023,RMS,Travis Perkins Trading Company Ltd,Building Alterations And Materials,470,0,COMMERCIAL SUPPLIER
01-06-2023,RMS,Travis Perkins Trading Company Ltd,Building Alterations And Materials,216,0,COMMERCIAL SUPPLIER
01-06-2023,RMS,Glass System Ltd,Building Alterations And Materials,306.12,0,COMMERCIAL SUPPLIER
01-06-2023,RMS,Glass System Ltd,Building Alterations And Materials,226.13,0,COMMERCIAL SUPPLIER
01-06-2023,RMS,Glass System Ltd,Building Alterations And Materials,1006.51,0,COMMERCIAL SUPPLIER
01-06-2023,Resources,Jones Lang LaSalle Ltd,Consultancy Fees,167250,0,COMMERCIAL SUPPLIER
01-06-2023,Resources,Jones Lang LaSalle Ltd,Consultancy Fees,424749.73,0,COMMERCIAL SUPPLIER
01-06-2023,Children and Young People,Pulse Healthcare Ltd,Additional Placements - Third Party,722.16,0,COMMERCIAL SUPPLIER
01-06-2023,Housing Revenue Account,DPJ SPRINKLERS LTD,Responsive Repairs - Mechanical And Electrical,246,0,COMMERCIAL SUPPLIER
01-06-2023,Inclusive Economy & Housing,Lauderdale Restaurant Limited t/a Maven Foods ,Catering Services,2429.75,0,NON COMMERCIAL SUPPLIER
01-06-2023,Children and Young People,Sayers (Car Hire),Client Transport,3380,0,VENDOR
01-06-2023,Children and Young People,Sayers (Car Hire),Client Transport,3780,0,VENDOR
01-06-2023,Children and Young People,Sayers (Car Hire),Client Transport,2819,0,VENDOR
01-06-2023,Children and Young People,Sayers (Car Hire),Client Transport,1965.5,0,VENDOR
01-06-2023,Children and Young People,Sayers (Car Hire),Client Transport,2108,0,VENDOR
01-06-2023,Children and Young People,Sayers (Car Hire),Client Transport,2142,0,VENDOR
01-06-2023,Children and Young People,Sayers (Car Hire),Client Transport,1796,0,VENDOR
01-06-2023,Children and Young People,Sayers (Car Hire),Client Transport,2160.5,0,VENDOR
01-06-2023,Children and Young People,Sayers (Car Hire),Client Transport,816,0,VENDOR
01-06-2023,Children and Young People,Sayers (Car Hire),Client Transport,642.5,0,VENDOR
01-06-2023,Children and Young People,Sayers (Car Hire),Client Transport,892.5,0,VENDOR
01-06-2023,Children and Young People,Sayers (Car Hire),Client Transport,1175,0,VENDOR
01-06-2023,Children and Young People,Sayers (Car Hire),Client Transport,396,0,VENDOR
01-06-2023,Children and Young People,Sayers (Car Hire),Client Transport,2400,0,VENDOR
01-06-2023,Children and Young People,Sayers (Car Hire),Client Transport,4680,0,VENDOR
01-06-2023,Children and Young People,Sayers (Car Hire),Client Transport,1225,0,VENDOR
01-06-2023,Children and Young People,Sayers (Car Hire),Client Transport,2945,0,VENDOR
01-06-2023,Children and Young People,Sayers (Car Hire),Client Transport,3330,0,VENDOR
01-06-2023,Children and Young People,Sayers (Car Hire),Client Transport,828,0,VENDOR
01-06-2023,Children and Young People,Sayers (Car Hire),Client Transport,448,0,VENDOR
01-06-2023,Children and Young People,Sayers (Car Hire),Client Transport,3235,0,VENDOR
01-06-2023,Children and Young People,Sayers (Car Hire),Client Transport,4140,0,VENDOR
01-06-2023,Children and Young People,Sayers (Car Hire),Client Transport,1207.5,0,VENDOR
01-06-2023,Children and Young People,Sayers (Car Hire),Client Transport,3600,0,VENDOR
01-06-2023,Children and Young People,Sayers (Car Hire),Client Transport,2890,0,VENDOR
01-06-2023,Children and Young People,Sayers (Car Hire),Client Transport,1107,0,VENDOR
01-06-2023,Children and Young People,Sayers (Car Hire),Client Transport,952,0,VENDOR
01-06-2023,Children and Young People,Sayers (Car Hire),Client Transport,580.5,0,VENDOR
01-06-2023,Children and Young People,Sayers (Car Hire),Client Transport,408,0,VENDOR
01-06-2023,Children and Young People,Sayers (Car Hire),Client Transport,1495,0,VENDOR
01-06-2023,Children and Young People,Sayers (Car Hire),Client Transport,840,0,VENDOR
01-06-2023,Children and Young People,Sayers (Car Hire),Client Transport,3234,0,VENDOR
01-06-2023,Children and Young People,Sayers (Car Hire),Client Transport,382,0,VENDOR
01-06-2023,Children and Young People,Sayers (Car Hire),Client Transport,3972.5,0,VENDOR
01-06-2023,Children and Young People,Sayers (Car Hire),Client Transport,10005,0,VENDOR
01-06-2023,Children and Young People,Sayers (Car Hire),Client Transport,264.5,0,VENDOR
01-06-2023,Environment and Sustainable Transport,Worldline IT Services UK Ltd Re Fuel Genie,Transport Fuel,214.44,0,COMMERCIAL SUPPLIER
01-06-2023,Marketing,Texthelp Ltd,Ict Software,4163,0,COMMERCIAL SUPPLIER
01-06-2023,Environment and Sustainable Transport,Portakabin Ltd,Premises Hire - Facilities,2373.33,0,COMMERCIAL SUPPLIER
01-06-2023,oneSource - Non Shared,Newham Learning Partnership (Project Co) Limited,"Maintenance - Equipment, Furniture And Materials",335970.71,0,VENDOR
01-06-2023,oneSource - Non Shared,Newham Learning Partnership (Project Co) Limited,"Maintenance - Equipment, Furniture And Materials",414979.31,0,VENDOR
01-06-2023,oneSource - Non Shared,Building A Future (Newham Schools) Limited,"Maintenance - Equipment, Furniture And Materials",292527.89,0,VENDOR
01-06-2023,oneSource - Non Shared,Building A Future (Newham Schools) Limited,"Maintenance - Equipment, Furniture And Materials",77432.53,0,VENDOR
01-06-2023,oneSource - Non Shared,Building A Future (Newham Schools) Limited,"Maintenance - Equipment, Furniture And Materials",77505.14,0,VENDOR
01-06-2023,RMS,Benchmarx Kitchens and Joinery,Building Alterations And Materials,1307.19,0,COMMERCIAL SUPPLIER
01-06-2023,RMS,Benchmarx Kitchens and Joinery,Building Alterations And Materials,303.42,0,COMMERCIAL SUPPLIER
01-06-2023,Adults & Health,Helping Hands Home Care,Home Care - Private Contractors Payment,1194.88,0,NON COMMERCIAL SUPPLIER
01-06-2023,Adults & Health,Helping Hands Home Care,Home Care - Private Contractors Payment,1195.04,0,NON COMMERCIAL SUPPLIER
01-06-2023,Adults & Health,Helping Hands Home Care,Home Care - Private Contractors Payment,1195.04,0,NON COMMERCIAL SUPPLIER
01-06-2023,Adults & Health,Helping Hands Home Care,Home Care - Private Contractors Payment,1195.04,0,NON COMMERCIAL SUPPLIER
01-06-2023,Marketing,Sign for All Community Ltd,Events,900,0,NON COMMERCIAL SUPPLIER
01-06-2023,Housing Revenue Account,British Gas Trading Ltd,Facilities Management,26.7,0,COMMERCIAL SUPPLIER
01-06-2023,Housing Revenue Account,British Gas Trading Ltd,Facilities Management,338.39,0,COMMERCIAL SUPPLIER
01-06-2023,Adults & Health,Reed Employment Plc,Daycare - Private Contractors Payment,306.56,0,COMMERCIAL SUPPLIER
01-06-2023,Adults & Health,Reed Employment Plc,Daycare - Private Contractors Payment,306.56,0,COMMERCIAL SUPPLIER
01-06-2023,Adults & Health,Reed Employment Plc,Daycare - Private Contractors Payment,306.56,0,COMMERCIAL SUPPLIER
01-06-2023,Adults & Health,Reed Employment Plc,Daycare - Private Contractors Payment,306.56,0,COMMERCIAL SUPPLIER
01-06-2023,Adults & Health,Look Ahead Housing and Care Ltd,Long Term Support - Community: Supported Living,20124.75,0,COMMERCIAL SUPPLIER
01-06-2023,Adults & Health,Look Ahead Housing and Care Ltd,Supported Other Accommodation - Private Contractors Payment,102329.61,0,COMMERCIAL SUPPLIER
01-06-2023,Environment and Sustainable Transport,Digitec Security Ltd,Security Services (Excluding Premises),1326,0,COMMERCIAL SUPPLIER
01-06-2023,oneSource - Non Shared,Digitec Security Ltd,Security Services (Excluding Premises),434,0,COMMERCIAL SUPPLIER
01-06-2023,oneSource - Non Shared,Digitec Security Ltd,Security Services (Excluding Premises),1174.4,0,COMMERCIAL SUPPLIER
01-06-2023,Adults & Health,Highland Care Uk Ltd,Home Care - Private Contractors Payment,280.8,0,VENDOR
01-06-2023,oneSource,Personal Information - Redacted,Bailiff Fees Income,6330.31,0,LOCAL AUTHORITY SERVICES
01-06-2023,oneSource,Personal Information - Redacted,Bailiff Fees Income,9186.05,0,LOCAL AUTHORITY SERVICES
01-06-2023,Adults & Health,Highland Care Uk Ltd,Home Care - Private Contractors Payment,167.65,0,VENDOR
01-06-2023,Adults & Health,Highland Care Uk Ltd,Home Care - Private Contractors Payment,71.85,0,VENDOR
01-06-2023,Adults & Health,Highland Care Uk Ltd,Home Care - Private Contractors Payment,167.65,0,VENDOR
01-06-2023,Adults & Health,Highland Care Uk Ltd,Home Care - Private Contractors Payment,292.95,0,VENDOR
01-06-2023,Adults & Health,Highland Care Uk Ltd,Home Care - Private Contractors Payment,292.95,0,VENDOR
01-06-2023,Adults & Health,Highland Care Uk Ltd,Home Care - Private Contractors Payment,292.95,0,VENDOR
01-06-2023,Adults & Health,Highland Care Uk Ltd,Home Care - Private Contractors Payment,292.95,0,VENDOR
01-06-2023,Adults & Health,Highland Care Uk Ltd,Home Care - Private Contractors Payment,292.95,0,VENDOR
01-06-2023,Adults & Health,Highland Care Uk Ltd,Home Care - Private Contractors Payment,292.95,0,VENDOR
01-06-2023,Adults & Health,Highland Care Uk Ltd,Home Care - Private Contractors Payment,292.95,0,VENDOR
01-06-2023,Adults & Health,Highland Care Uk Ltd,Home Care - Private Contractors Payment,292.95,0,VENDOR
01-06-2023,Adults & Health,Highland Care Uk Ltd,Home Care - Private Contractors Payment,292.95,0,VENDOR
01-06-2023,Adults & Health,Highland Care Uk Ltd,Home Care - Private Contractors Payment,292.95,0,VENDOR
01-06-2023,Adults & Health,Highland Care Uk Ltd,Home Care - Private Contractors Payment,294.84,0,VENDOR
01-06-2023,Adults & Health,Highland Care Uk Ltd,Home Care - Private Contractors Payment,294.84,0,VENDOR
01-06-2023,Adults & Health,Highland Care Uk Ltd,Home Care - Private Contractors Payment,294.84,0,VENDOR
01-06-2023,Adults & Health,Highland Care Uk Ltd,Home Care - Private Contractors Payment,294.84,0,VENDOR
01-06-2023,Adults & Health,Highland Care Uk Ltd,Home Care - Private Contractors Payment,294.84,0,VENDOR
01-06-2023,Adults & Health,Highland Care Uk Ltd,Home Care - Private Contractors Payment,294.84,0,VENDOR
01-06-2023,Adults & Health,Highland Care Uk Ltd,Home Care - Private Contractors Payment,646.38,0,VENDOR
01-06-2023,Adults & Health,Highland Care Uk Ltd,Home Care - Private Contractors Payment,117.99,0,VENDOR
01-06-2023,Adults & Health,Highland Care Uk Ltd,Daycare - Private Contractors Payment,82.08,0,VENDOR
01-06-2023,Adults & Health,Highland Care Uk Ltd,Home Care - Private Contractors Payment,790.02,0,VENDOR
01-06-2023,Adults & Health,Highland Care Uk Ltd,Home Care - Private Contractors Payment,466.83,0,VENDOR
01-06-2023,Adults & Health,Highland Care Uk Ltd,Daycare - Private Contractors Payment,246.24,0,VENDOR
01-06-2023,Adults & Health,Highland Care Uk Ltd,Home Care - Private Contractors Payment,30.78,0,VENDOR
01-06-2023,Adults & Health,Highland Care Uk Ltd,Home Care - Private Contractors Payment,502.74,0,VENDOR
01-06-2023,Adults & Health,Highland Care Uk Ltd,Reablement,179.55,0,VENDOR
01-06-2023,Adults & Health,Highland Care Uk Ltd,Home Care - Private Contractors Payment,41.04,0,VENDOR
01-06-2023,Adults & Health,Highland Care Uk Ltd,Home Care - Private Contractors Payment,215.46,0,VENDOR
01-06-2023,Adults & Health,Highland Care Uk Ltd,Home Care - Private Contractors Payment,30.78,0,VENDOR
01-06-2023,Adults & Health,Highland Care Uk Ltd,Daycare - Private Contractors Payment,205.2,0,VENDOR
01-06-2023,Adults & Health,Highland Care Uk Ltd,Daycare - Private Contractors Payment,123.12,0,VENDOR
01-06-2023,Adults & Health,Highland Care Uk Ltd,Home Care - Private Contractors Payment,20.52,0,VENDOR
01-06-2023,Adults & Health,Highland Care Uk Ltd,Home Care - Private Contractors Payment,287.28,0,VENDOR
01-06-2023,Adults & Health,Highland Care Uk Ltd,Home Care - Private Contractors Payment,131.04,0,VENDOR
01-06-2023,Adults & Health,Highland Care Uk Ltd,Reablement,102.6,0,VENDOR
01-06-2023,Adults & Health,Highland Care Uk Ltd,Home Care - Private Contractors Payment,861.84,0,VENDOR
01-06-2023,Adults & Health,Highland Care Uk Ltd,Home Care - Private Contractors Payment,20.52,0,VENDOR
01-06-2023,Adults & Health,Highland Care Uk Ltd,Home Care - Private Contractors Payment,610.47,0,VENDOR
01-06-2023,Adults & Health,Highland Care Uk Ltd,Respite Care - Private Contractors Payment,61.56,0,VENDOR
01-06-2023,Adults & Health,Highland Care Uk Ltd,Home Care - Private Contractors Payment,164.16,0,VENDOR
01-06-2023,Adults & Health,Highland Care Uk Ltd,Daycare - Private Contractors Payment,41.04,0,VENDOR
01-06-2023,Adults & Health,Highland Care Uk Ltd,Home Care - Private Contractors Payment,107.73,0,VENDOR
01-06-2023,Adults & Health,Highland Care Uk Ltd,Home Care - Private Contractors Payment,646.38,0,VENDOR
01-06-2023,Adults & Health,Highland Care Uk Ltd,Home Care - Private Contractors Payment,107.73,0,VENDOR
01-06-2023,Adults & Health,Highland Care Uk Ltd,Home Care - Private Contractors Payment,646.38,0,VENDOR
01-06-2023,Adults & Health,Highland Care Uk Ltd,Home Care - Private Contractors Payment,112.86,0,VENDOR
01-06-2023,Adults & Health,Highland Care Uk Ltd,Home Care - Private Contractors Payment,82.08,0,VENDOR
01-06-2023,Adults & Health,Highland Care Uk Ltd,Home Care - Private Contractors Payment,143.64,0,VENDOR
01-06-2023,Adults & Health,Highland Care Uk Ltd,Home Care - Private Contractors Payment,251.37,0,VENDOR
01-06-2023,Adults & Health,Highland Care Uk Ltd,Home Care - Private Contractors Payment,251.37,0,VENDOR
01-06-2023,Adults & Health,Highland Care Uk Ltd,Home Care - Private Contractors Payment,482.22,0,VENDOR
01-06-2023,Adults & Health,Highland Care Uk Ltd,Home Care - Private Contractors Payment,20.52,0,VENDOR
01-06-2023,Adults & Health,Highland Care Uk Ltd,Daycare - Private Contractors Payment,41.04,0,VENDOR
01-06-2023,Adults & Health,Highland Care Uk Ltd,Home Care - Private Contractors Payment,646.38,0,VENDOR
01-06-2023,Adults & Health,Highland Care Uk Ltd,Home Care - Private Contractors Payment,179.55,0,VENDOR
01-06-2023,Adults & Health,Highland Care Uk Ltd,Home Care - Private Contractors Payment,323.19,0,VENDOR
01-06-2023,Adults & Health,Highland Care Uk Ltd,Daycare - Private Contractors Payment,41.04,0,VENDOR
01-06-2023,Adults & Health,Highland Care Uk Ltd,Home Care - Private Contractors Payment,143.64,0,VENDOR
01-06-2023,Adults & Health,Highland Care Uk Ltd,Home Care - Private Contractors Payment,143.64,0,VENDOR
01-06-2023,Adults & Health,Highland Care Uk Ltd,Home Care - Private Contractors Payment,107.73,0,VENDOR
01-06-2023,Adults & Health,Highland Care Uk Ltd,Home Care - Private Contractors Payment,61.56,0,VENDOR
01-06-2023,Adults & Health,Highland Care Uk Ltd,Home Care - Private Contractors Payment,230.85,0,VENDOR
01-06-2023,Adults & Health,Highland Care Uk Ltd,Home Care - Private Contractors Payment,646.38,0,VENDOR
01-06-2023,Adults & Health,Highland Care Uk Ltd,Home Care - Private Contractors Payment,117.99,0,VENDOR
01-06-2023,Adults & Health,Highland Care Uk Ltd,Home Care - Private Contractors Payment,466.83,0,VENDOR
01-06-2023,Adults & Health,Highland Care Uk Ltd,Daycare - Private Contractors Payment,61.56,0,VENDOR
01-06-2023,Adults & Health,Highland Care Uk Ltd,Home Care - Private Contractors Payment,20.52,0,VENDOR
01-06-2023,Adults & Health,Highland Care Uk Ltd,Home Care - Private Contractors Payment,179.55,0,VENDOR
01-06-2023,Adults & Health,Highland Care Uk Ltd,Home Care - Private Contractors Payment,41.04,0,VENDOR
01-06-2023,Adults & Health,Highland Care Uk Ltd,Home Care - Private Contractors Payment,466.83,0,VENDOR
01-06-2023,Adults & Health,Highland Care Uk Ltd,Home Care - Private Contractors Payment,251.37,0,VENDOR
01-06-2023,Adults & Health,Highland Care Uk Ltd,Home Care - Private Contractors Payment,30.78,0,VENDOR
01-06-2023,Adults & Health,Highland Care Uk Ltd,Home Care - Private Contractors Payment,143.64,0,VENDOR
01-06-2023,Adults & Health,Highland Care Uk Ltd,Home Care - Private Contractors Payment,251.37,0,VENDOR
01-06-2023,Adults & Health,Highland Care Uk Ltd,Home Care - Private Contractors Payment,20.52,0,VENDOR
01-06-2023,Adults & Health,Highland Care Uk Ltd,Home Care - Private Contractors Payment,71.82,0,VENDOR
01-06-2023,Adults & Health,Highland Care Uk Ltd,Daycare - Private Contractors Payment,41.04,0,VENDOR
01-06-2023,Adults & Health,Highland Care Uk Ltd,Daycare - Private Contractors Payment,123.12,0,VENDOR
01-06-2023,Adults & Health,Highland Care Uk Ltd,Home Care - Private Contractors Payment,359.1,0,VENDOR
01-06-2023,Adults & Health,Highland Care Uk Ltd,Home Care - Private Contractors Payment,179.55,0,VENDOR
01-06-2023,Adults & Health,Highland Care Uk Ltd,Home Care - Private Contractors Payment,466.83,0,VENDOR
01-06-2023,Adults & Health,Highland Care Uk Ltd,Home Care - Private Contractors Payment,30.78,0,VENDOR
01-06-2023,Adults & Health,Highland Care Uk Ltd,Daycare - Private Contractors Payment,205.2,0,VENDOR
01-06-2023,Adults & Health,Highland Care Uk Ltd,Daycare - Private Contractors Payment,123.12,0,VENDOR
01-06-2023,Adults & Health,Highland Care Uk Ltd,Home Care - Private Contractors Payment,20.52,0,VENDOR
01-06-2023,Adults & Health,Highland Care Uk Ltd,Reablement,20.52,0,VENDOR
01-06-2023,Adults & Health,Highland Care Uk Ltd,Home Care - Private Contractors Payment,164.16,0,VENDOR
01-06-2023,Adults & Health,Highland Care Uk Ltd,Home Care - Private Contractors Payment,181.44,0,VENDOR
01-06-2023,Adults & Health,Highland Care Uk Ltd,Home Care - Private Contractors Payment,15.39,0,VENDOR
01-06-2023,Adults & Health,Highland Care Uk Ltd,Home Care - Private Contractors Payment,861.84,0,VENDOR
01-06-2023,Adults & Health,Highland Care Uk Ltd,Home Care - Private Contractors Payment,20.52,0,VENDOR
01-06-2023,Adults & Health,Highland Care Uk Ltd,Home Care - Private Contractors Payment,430.92,0,VENDOR
01-06-2023,Adults & Health,Highland Care Uk Ltd,Home Care - Private Contractors Payment,30.78,0,VENDOR
01-06-2023,Adults & Health,Highland Care Uk Ltd,Home Care - Private Contractors Payment,179.55,0,VENDOR
01-06-2023,Adults & Health,Highland Care Uk Ltd,Home Care - Private Contractors Payment,718.2,0,VENDOR
01-06-2023,Adults & Health,Highland Care Uk Ltd,Reablement,251.37,0,VENDOR
01-06-2023,Adults & Health,Highland Care Uk Ltd,Home Care - Private Contractors Payment,251.37,0,VENDOR
01-06-2023,Adults & Health,Highland Care Uk Ltd,Daycare - Private Contractors Payment,41.04,0,VENDOR
01-06-2023,Adults & Health,Highland Care Uk Ltd,Home Care - Private Contractors Payment,251.37,0,VENDOR
01-06-2023,Adults & Health,Highland Care Uk Ltd,Home Care - Private Contractors Payment,215.46,0,VENDOR
01-06-2023,Adults & Health,Highland Care Uk Ltd,Home Care - Private Contractors Payment,123.12,0,VENDOR
01-06-2023,Adults & Health,Highland Care Uk Ltd,Home Care - Private Contractors Payment,46.17,0,VENDOR
01-06-2023,Adults & Health,Highland Care Uk Ltd,Home Care - Private Contractors Payment,502.74,0,VENDOR
01-06-2023,Adults & Health,Highland Care Uk Ltd,Home Care - Private Contractors Payment,610.47,0,VENDOR
01-06-2023,Adults & Health,Highland Care Uk Ltd,Respite Care - Private Contractors Payment,61.56,0,VENDOR
01-06-2023,Adults & Health,Highland Care Uk Ltd,Home Care - Private Contractors Payment,164.16,0,VENDOR
01-06-2023,Adults & Health,Highland Care Uk Ltd,Daycare - Private Contractors Payment,41.04,0,VENDOR
01-06-2023,Adults & Health,Highland Care Uk Ltd,Home Care - Private Contractors Payment,646.38,0,VENDOR
01-06-2023,Adults & Health,Highland Care Uk Ltd,Home Care - Private Contractors Payment,117.99,0,VENDOR
01-06-2023,Adults & Health,Highland Care Uk Ltd,Home Care - Private Contractors Payment,323.19,0,VENDOR
01-06-2023,Adults & Health,Highland Care Uk Ltd,Daycare - Private Contractors Payment,41.04,0,VENDOR
01-06-2023,Adults & Health,Highland Care Uk Ltd,Home Care - Private Contractors Payment,143.64,0,VENDOR
01-06-2023,Adults & Health,Highland Care Uk Ltd,Home Care - Private Contractors Payment,143.64,0,VENDOR
01-06-2023,Adults & Health,Highland Care Uk Ltd,Home Care - Private Contractors Payment,107.73,0,VENDOR
01-06-2023,Adults & Health,Highland Care Uk Ltd,Home Care - Private Contractors Payment,61.56,0,VENDOR
01-06-2023,Adults & Health,Highland Care Uk Ltd,Reablement,333.45,0,VENDOR
01-06-2023,Adults & Health,Highland Care Uk Ltd,Reablement,46.17,0,VENDOR
01-06-2023,Adults & Health,Highland Care Uk Ltd,Reablement,179.55,0,VENDOR
01-06-2023,Adults & Health,Highland Care Uk Ltd,Home Care - Private Contractors Payment,61.56,0,VENDOR
01-06-2023,Adults & Health,Highland Care Uk Ltd,Home Care - Private Contractors Payment,1354.32,0,VENDOR
01-06-2023,Adults & Health,Highland Care Uk Ltd,Home Care - Private Contractors Payment,215.46,0,VENDOR
01-06-2023,Adults & Health,Highland Care Uk Ltd,Home Care - Private Contractors Payment,466.83,0,VENDOR
01-06-2023,Adults & Health,Highland Care Uk Ltd,Daycare - Private Contractors Payment,61.56,0,VENDOR
01-06-2023,Adults & Health,Highland Care Uk Ltd,Home Care - Private Contractors Payment,20.52,0,VENDOR
01-06-2023,Adults & Health,Highland Care Uk Ltd,Reablement,256.5,0,VENDOR
01-06-2023,Adults & Health,Highland Care Uk Ltd,Home Care - Private Contractors Payment,251.37,0,VENDOR
01-06-2023,Adults & Health,Highland Care Uk Ltd,Home Care - Private Contractors Payment,466.83,0,VENDOR
01-06-2023,Adults & Health,Highland Care Uk Ltd,Home Care - Private Contractors Payment,323.19,0,VENDOR
01-06-2023,Adults & Health,Highland Care Uk Ltd,Home Care - Private Contractors Payment,615.6,0,VENDOR
01-06-2023,Adults & Health,Highland Care Uk Ltd,Home Care - Private Contractors Payment,251.37,0,VENDOR
01-06-2023,Adults & Health,Highland Care Uk Ltd,Home Care - Private Contractors Payment,30.78,0,VENDOR
01-06-2023,Adults & Health,Highland Care Uk Ltd,Home Care - Private Contractors Payment,179.55,0,VENDOR
01-06-2023,Adults & Health,Highland Care Uk Ltd,Home Care - Private Contractors Payment,251.37,0,VENDOR
01-06-2023,Adults & Health,Highland Care Uk Ltd,Home Care - Private Contractors Payment,251.37,0,VENDOR
01-06-2023,Adults & Health,Highland Care Uk Ltd,Home Care - Private Contractors Payment,646.38,0,VENDOR
01-06-2023,Adults & Health,Highland Care Uk Ltd,Home Care - Private Contractors Payment,20.52,0,VENDOR
01-06-2023,Adults & Health,Highland Care Uk Ltd,Home Care - Private Contractors Payment,287.28,0,VENDOR
01-06-2023,Adults & Health,Highland Care Uk Ltd,Home Care - Private Contractors Payment,123.12,0,VENDOR
01-06-2023,Adults & Health,Highland Care Uk Ltd,Daycare - Private Contractors Payment,82.08,0,VENDOR
01-06-2023,Adults & Health,Highland Care Uk Ltd,Home Care - Private Contractors Payment,20.52,0,VENDOR
01-06-2023,Adults & Health,Highland Care Uk Ltd,Home Care - Private Contractors Payment,143.64,0,VENDOR
01-06-2023,Adults & Health,Highland Care Uk Ltd,Home Care - Private Contractors Payment,615.6,0,VENDOR
01-06-2023,Adults & Health,Highland Care Uk Ltd,Home Care - Private Contractors Payment,20.52,0,VENDOR
01-06-2023,Adults & Health,Highland Care Uk Ltd,Home Care - Private Contractors Payment,179.55,0,VENDOR
01-06-2023,Adults & Health,Highland Care Uk Ltd,Home Care - Private Contractors Payment,251.37,0,VENDOR
01-06-2023,Adults & Health,Highland Care Uk Ltd,Home Care - Private Contractors Payment,20.52,0,VENDOR
01-06-2023,Adults & Health,Highland Care Uk Ltd,Home Care - Private Contractors Payment,71.82,0,VENDOR
01-06-2023,Adults & Health,Highland Care Uk Ltd,Daycare - Private Contractors Payment,41.04,0,VENDOR
01-06-2023,Adults & Health,Highland Care Uk Ltd,Reablement,76.95,0,VENDOR
01-06-2023,Adults & Health,Highland Care Uk Ltd,Daycare - Private Contractors Payment,123.12,0,VENDOR
01-06-2023,Adults & Health,Highland Care Uk Ltd,Home Care - Private Contractors Payment,359.1,0,VENDOR
01-06-2023,Adults & Health,Highland Care Uk Ltd,Home Care - Private Contractors Payment,430.92,0,VENDOR
01-06-2023,Adults & Health,Highland Care Uk Ltd,Home Care - Private Contractors Payment,30.78,0,VENDOR
01-06-2023,Adults & Health,Highland Care Uk Ltd,Home Care - Private Contractors Payment,179.55,0,VENDOR
01-06-2023,Adults & Health,Highland Care Uk Ltd,Home Care - Private Contractors Payment,718.2,0,VENDOR
01-06-2023,Adults & Health,Highland Care Uk Ltd,Daycare - Private Contractors Payment,20.52,0,VENDOR
01-06-2023,Adults & Health,Highland Care Uk Ltd,Home Care - Private Contractors Payment,179.55,0,VENDOR
01-06-2023,Adults & Health,Highland Care Uk Ltd,Home Care - Private Contractors Payment,251.37,0,VENDOR
01-06-2023,Adults & Health,Highland Care Uk Ltd,Home Care - Private Contractors Payment,251.37,0,VENDOR
01-06-2023,Adults & Health,Highland Care Uk Ltd,Reablement,179.55,0,VENDOR
01-06-2023,Adults & Health,Highland Care Uk Ltd,Home Care - Private Contractors Payment,251.37,0,VENDOR
01-06-2023,Adults & Health,Highland Care Uk Ltd,Daycare - Private Contractors Payment,41.04,0,VENDOR
01-06-2023,Adults & Health,Highland Care Uk Ltd,Home Care - Private Contractors Payment,251.37,0,VENDOR
01-06-2023,Adults & Health,Highland Care Uk Ltd,Home Care - Private Contractors Payment,215.46,0,VENDOR
01-06-2023,Adults & Health,Highland Care Uk Ltd,Home Care - Private Contractors Payment,41.04,0,VENDOR
01-06-2023,Adults & Health,Highland Care Uk Ltd,Home Care - Private Contractors Payment,15.39,0,VENDOR
01-06-2023,Adults & Health,Highland Care Uk Ltd,Home Care - Private Contractors Payment,502.74,0,VENDOR
01-06-2023,Adults & Health,Highland Care Uk Ltd,Reablement,179.55,0,VENDOR
01-06-2023,Adults & Health,Highland Care Uk Ltd,Reablement,46.17,0,VENDOR
01-06-2023,Adults & Health,Highland Care Uk Ltd,Home Care - Private Contractors Payment,134.12,0,VENDOR
01-06-2023,Adults & Health,Highland Care Uk Ltd,Home Care - Private Contractors Payment,66.69,0,VENDOR
01-06-2023,Adults & Health,Highland Care Uk Ltd,Reablement,41.04,0,VENDOR
01-06-2023,Adults & Health,Highland Care Uk Ltd,Home Care - Private Contractors Payment,718.2,0,VENDOR
01-06-2023,Adults & Health,Highland Care Uk Ltd,Home Care - Private Contractors Payment,143.64,0,VENDOR
01-06-2023,Adults & Health,Highland Care Uk Ltd,Home Care - Private Contractors Payment,92.34,0,VENDOR
01-06-2023,Adults & Health,Highland Care Uk Ltd,Home Care - Private Contractors Payment,215.46,0,VENDOR
01-06-2023,Adults & Health,Highland Care Uk Ltd,Daycare - Private Contractors Payment,61.56,0,VENDOR
01-06-2023,Adults & Health,Highland Care Uk Ltd,Home Care - Private Contractors Payment,335.3,0,VENDOR
01-06-2023,Adults & Health,Highland Care Uk Ltd,Home Care - Private Contractors Payment,19.16,0,VENDOR
01-06-2023,Adults & Health,Highland Care Uk Ltd,Daycare - Private Contractors Payment,28.74,0,VENDOR
01-06-2023,Adults & Health,Highland Care Uk Ltd,Home Care - Private Contractors Payment,30.78,0,VENDOR
01-06-2023,Adults & Health,Highland Care Uk Ltd,Home Care - Private Contractors Payment,251.37,0,VENDOR
01-06-2023,Adults & Health,Highland Care Uk Ltd,Home Care - Private Contractors Payment,61.56,0,VENDOR
01-06-2023,Adults & Health,Highland Care Uk Ltd,Home Care - Private Contractors Payment,133.38,0,VENDOR
01-06-2023,Adults & Health,Highland Care Uk Ltd,Home Care - Private Contractors Payment,102.6,0,VENDOR
01-06-2023,Adults & Health,Highland Care Uk Ltd,Home Care - Private Contractors Payment,71.82,0,VENDOR
01-06-2023,Adults & Health,Highland Care Uk Ltd,Home Care - Private Contractors Payment,51.3,0,VENDOR
01-06-2023,Adults & Health,Highland Care Uk Ltd,Home Care - Private Contractors Payment,102.6,0,VENDOR
01-06-2023,Adults & Health,Highland Care Uk Ltd,Home Care - Private Contractors Payment,41.04,0,VENDOR
01-06-2023,Adults & Health,Highland Care Uk Ltd,Reablement,179.55,0,VENDOR
01-06-2023,Adults & Health,Highland Care Uk Ltd,Home Care - Private Contractors Payment,61.56,0,VENDOR
01-06-2023,Adults & Health,Highland Care Uk Ltd,Home Care - Private Contractors Payment,215.46,0,VENDOR
01-06-2023,Adults & Health,Highland Care Uk Ltd,Home Care - Private Contractors Payment,20.52,0,VENDOR
01-06-2023,Adults & Health,Highland Care Uk Ltd,Daycare - Private Contractors Payment,61.56,0,VENDOR
01-06-2023,Adults & Health,Highland Care Uk Ltd,Home Care - Private Contractors Payment,287.28,0,VENDOR
01-06-2023,Adults & Health,Highland Care Uk Ltd,Reablement,71.82,0,VENDOR
01-06-2023,Adults & Health,Highland Care Uk Ltd,Daycare - Private Contractors Payment,82.08,0,VENDOR
01-06-2023,Adults & Health,Highland Care Uk Ltd,Home Care - Private Contractors Payment,20.52,0,VENDOR
01-06-2023,Adults & Health,Highland Care Uk Ltd,Home Care - Private Contractors Payment,143.64,0,VENDOR
01-06-2023,Adults & Health,Highland Care Uk Ltd,Home Care - Private Contractors Payment,615.6,0,VENDOR
01-06-2023,Adults & Health,Highland Care Uk Ltd,Home Care - Private Contractors Payment,143.64,0,VENDOR
01-06-2023,Adults & Health,Highland Care Uk Ltd,Home Care - Private Contractors Payment,143.64,0,VENDOR
01-06-2023,Adults & Health,Highland Care Uk Ltd,Home Care - Private Contractors Payment,107.73,0,VENDOR
01-06-2023,Adults & Health,Highland Care Uk Ltd,Home Care - Private Contractors Payment,61.56,0,VENDOR
01-06-2023,Adults & Health,Highland Care Uk Ltd,Home Care - Private Contractors Payment,323.19,0,VENDOR
01-06-2023,Adults & Health,Highland Care Uk Ltd,Home Care - Private Contractors Payment,646.38,0,VENDOR
01-06-2023,Adults & Health,Highland Care Uk Ltd,Home Care - Private Contractors Payment,117.99,0,VENDOR
01-06-2023,Adults & Health,Highland Care Uk Ltd,Daycare - Private Contractors Payment,82.08,0,VENDOR
01-06-2023,Adults & Health,Highland Care Uk Ltd,Home Care - Private Contractors Payment,790.02,0,VENDOR
01-06-2023,Adults & Health,Highland Care Uk Ltd,Home Care - Private Contractors Payment,466.83,0,VENDOR
01-06-2023,Adults & Health,Highland Care Uk Ltd,Daycare - Private Contractors Payment,246.24,0,VENDOR
01-06-2023,Adults & Health,Highland Care Uk Ltd,Home Care - Private Contractors Payment,30.78,0,VENDOR
01-06-2023,Adults & Health,Highland Care Uk Ltd,Daycare - Private Contractors Payment,41.04,0,VENDOR
01-06-2023,Adults & Health,Highland Care Uk Ltd,Home Care - Private Contractors Payment,251.37,0,VENDOR
01-06-2023,Adults & Health,Highland Care Uk Ltd,Home Care - Private Contractors Payment,215.46,0,VENDOR
01-06-2023,Adults & Health,Highland Care Uk Ltd,Home Care - Private Contractors Payment,123.12,0,VENDOR
01-06-2023,Adults & Health,Highland Care Uk Ltd,Home Care - Private Contractors Payment,46.17,0,VENDOR
01-06-2023,Adults & Health,Highland Care Uk Ltd,Home Care - Private Contractors Payment,502.74,0,VENDOR
01-06-2023,Adults & Health,Highland Care Uk Ltd,Reablement,179.55,0,VENDOR
01-06-2023,Adults & Health,Highland Care Uk Ltd,Reablement,46.17,0,VENDOR
01-06-2023,Adults & Health,Highland Care Uk Ltd,Home Care - Private Contractors Payment,101.86,0,VENDOR
01-06-2023,Adults & Health,Highland Care Uk Ltd,Reablement,179.55,0,VENDOR
01-06-2023,Adults & Health,Highland Care Uk Ltd,Home Care - Private Contractors Payment,61.56,0,VENDOR
01-06-2023,Adults & Health,Highland Care Uk Ltd,Home Care - Private Contractors Payment,20.52,0,VENDOR
01-06-2023,Adults & Health,Highland Care Uk Ltd,Daycare - Private Contractors Payment,20.52,0,VENDOR
01-06-2023,Adults & Health,Highland Care Uk Ltd,Home Care - Private Contractors Payment,179.55,0,VENDOR
01-06-2023,Adults & Health,Highland Care Uk Ltd,Home Care - Private Contractors Payment,251.37,0,VENDOR
01-06-2023,Adults & Health,Highland Care Uk Ltd,Home Care - Private Contractors Payment,251.37,0,VENDOR
01-06-2023,Adults & Health,Highland Care Uk Ltd,Home Care - Private Contractors Payment,82.08,0,VENDOR
01-06-2023,Adults & Health,Highland Care Uk Ltd,Home Care - Private Contractors Payment,718.2,0,VENDOR
01-06-2023,Adults & Health,Highland Care Uk Ltd,Daycare - Private Contractors Payment,123.12,0,VENDOR
01-06-2023,Adults & Health,Highland Care Uk Ltd,Home Care - Private Contractors Payment,41.04,0,VENDOR
01-06-2023,Adults & Health,Highland Care Uk Ltd,Home Care - Private Contractors Payment,143.64,0,VENDOR
01-06-2023,Adults & Health,Highland Care Uk Ltd,Home Care - Private Contractors Payment,92.34,0,VENDOR
01-06-2023,Adults & Health,Highland Care Uk Ltd,Home Care - Private Contractors Payment,215.46,0,VENDOR
01-06-2023,Adults & Health,Highland Care Uk Ltd,Home Care - Private Contractors Payment,10.26,0,VENDOR
01-06-2023,Adults & Health,Highland Care Uk Ltd,Home Care - Private Contractors Payment,502.74,0,VENDOR
01-06-2023,Adults & Health,Highland Care Uk Ltd,Reablement,179.55,0,VENDOR
01-06-2023,Adults & Health,Highland Care Uk Ltd,Home Care - Private Contractors Payment,41.04,0,VENDOR
01-06-2023,Adults & Health,Highland Care Uk Ltd,Home Care - Private Contractors Payment,215.46,0,VENDOR
01-06-2023,Adults & Health,Highland Care Uk Ltd,Daycare - Private Contractors Payment,41.04,0,VENDOR
01-06-2023,Adults & Health,Highland Care Uk Ltd,Home Care - Private Contractors Payment,107.73,0,VENDOR
01-06-2023,Adults & Health,Highland Care Uk Ltd,Home Care - Private Contractors Payment,646.38,0,VENDOR
01-06-2023,Adults & Health,Highland Care Uk Ltd,Home Care - Private Contractors Payment,107.73,0,VENDOR
01-06-2023,Adults & Health,Highland Care Uk Ltd,Home Care - Private Contractors Payment,646.38,0,VENDOR
01-06-2023,Adults & Health,Highland Care Uk Ltd,Home Care - Private Contractors Payment,112.86,0,VENDOR
01-06-2023,Adults & Health,Highland Care Uk Ltd,Home Care - Private Contractors Payment,82.08,0,VENDOR
01-06-2023,Adults & Health,Highland Care Uk Ltd,Daycare - Private Contractors Payment,61.56,0,VENDOR
01-06-2023,Adults & Health,Highland Care Uk Ltd,Home Care - Private Contractors Payment,335.3,0,VENDOR
01-06-2023,Adults & Health,Highland Care Uk Ltd,Home Care - Private Contractors Payment,19.16,0,VENDOR
01-06-2023,Adults & Health,Highland Care Uk Ltd,Daycare - Private Contractors Payment,28.74,0,VENDOR
01-06-2023,Adults & Health,Highland Care Uk Ltd,Home Care - Private Contractors Payment,30.78,0,VENDOR
01-06-2023,Adults & Health,Highland Care Uk Ltd,Home Care - Private Contractors Payment,251.37,0,VENDOR
01-06-2023,Adults & Health,Highland Care Uk Ltd,Home Care - Private Contractors Payment,61.56,0,VENDOR
01-06-2023,Adults & Health,Highland Care Uk Ltd,Home Care - Private Contractors Payment,179.55,0,VENDOR
01-06-2023,Adults & Health,Highland Care Uk Ltd,Home Care - Private Contractors Payment,41.04,0,VENDOR
01-06-2023,Adults & Health,Highland Care Uk Ltd,Reablement,179.55,0,VENDOR
01-06-2023,Adults & Health,Highland Care Uk Ltd,Home Care - Private Contractors Payment,61.56,0,VENDOR
01-06-2023,Adults & Health,Highland Care Uk Ltd,Home Care - Private Contractors Payment,215.46,0,VENDOR
01-06-2023,Adults & Health,Highland Care Uk Ltd,Home Care - Private Contractors Payment,466.83,0,VENDOR
01-06-2023,Adults & Health,Highland Care Uk Ltd,Daycare - Private Contractors Payment,61.56,0,VENDOR
01-06-2023,Adults & Health,Highland Care Uk Ltd,Home Care - Private Contractors Payment,20.52,0,VENDOR
01-06-2023,Adults & Health,Highland Care Uk Ltd,Home Care - Private Contractors Payment,102.6,0,VENDOR
01-06-2023,Adults & Health,Highland Care Uk Ltd,Home Care - Private Contractors Payment,466.83,0,VENDOR
01-06-2023,Adults & Health,Highland Care Uk Ltd,Home Care - Private Contractors Payment,30.78,0,VENDOR
01-06-2023,Adults & Health,Highland Care Uk Ltd,Daycare - Private Contractors Payment,205.2,0,VENDOR
01-06-2023,Adults & Health,Highland Care Uk Ltd,Daycare - Private Contractors Payment,123.12,0,VENDOR
01-06-2023,Adults & Health,Highland Care Uk Ltd,Home Care - Private Contractors Payment,287.28,0,VENDOR
01-06-2023,Adults & Health,Highland Care Uk Ltd,Home Care - Private Contractors Payment,19.16,0,VENDOR
01-06-2023,Adults & Health,Highland Care Uk Ltd,Daycare - Private Contractors Payment,28.74,0,VENDOR
01-06-2023,Adults & Health,Highland Care Uk Ltd,Home Care - Private Contractors Payment,30.78,0,VENDOR
01-06-2023,Adults & Health,Highland Care Uk Ltd,Home Care - Private Contractors Payment,251.37,0,VENDOR
01-06-2023,Adults & Health,Highland Care Uk Ltd,Home Care - Private Contractors Payment,61.56,0,VENDOR
01-06-2023,Adults & Health,Highland Care Uk Ltd,Home Care - Private Contractors Payment,179.55,0,VENDOR
01-06-2023,Adults & Health,Highland Care Uk Ltd,Home Care - Private Contractors Payment,41.04,0,VENDOR
01-06-2023,Adults & Health,Highland Care Uk Ltd,Home Care - Private Contractors Payment,266.76,0,VENDOR
01-06-2023,Adults & Health,Highland Care Uk Ltd,Home Care - Private Contractors Payment,251.37,0,VENDOR
01-06-2023,Adults & Health,Highland Care Uk Ltd,Home Care - Private Contractors Payment,30.78,0,VENDOR
01-06-2023,Adults & Health,Highland Care Uk Ltd,Home Care - Private Contractors Payment,179.55,0,VENDOR
01-06-2023,Adults & Health,Highland Care Uk Ltd,Home Care - Private Contractors Payment,251.37,0,VENDOR
01-06-2023,Adults & Health,Highland Care Uk Ltd,Home Care - Private Contractors Payment,502.74,0,VENDOR
01-06-2023,Adults & Health,Highland Care Uk Ltd,Reablement,76.95,0,VENDOR
01-06-2023,Adults & Health,Highland Care Uk Ltd,Home Care - Private Contractors Payment,41.04,0,VENDOR
01-06-2023,Adults & Health,Highland Care Uk Ltd,Home Care - Private Contractors Payment,215.46,0,VENDOR
01-06-2023,Adults & Health,Highland Care Uk Ltd,Daycare - Private Contractors Payment,41.04,0,VENDOR
01-06-2023,Adults & Health,Highland Care Uk Ltd,Home Care - Private Contractors Payment,107.73,0,VENDOR
01-06-2023,Adults & Health,Highland Care Uk Ltd,Home Care - Private Contractors Payment,646.38,0,VENDOR
01-06-2023,Adults & Health,Highland Care Uk Ltd,Home Care - Private Contractors Payment,107.73,0,VENDOR
01-06-2023,Adults & Health,Highland Care Uk Ltd,Home Care - Private Contractors Payment,646.38,0,VENDOR
01-06-2023,Adults & Health,Highland Care Uk Ltd,Home Care - Private Contractors Payment,82.08,0,VENDOR
01-06-2023,Adults & Health,Highland Care Uk Ltd,Home Care - Private Contractors Payment,112.86,0,VENDOR
01-06-2023,Adults & Health,Highland Care Uk Ltd,Home Care - Private Contractors Payment,82.08,0,VENDOR
01-06-2023,Adults & Health,Highland Care Uk Ltd,Home Care - Private Contractors Payment,131.04,0,VENDOR
01-06-2023,Adults & Health,Highland Care Uk Ltd,Reablement,282.15,0,VENDOR
01-06-2023,Adults & Health,Highland Care Uk Ltd,Home Care - Private Contractors Payment,861.84,0,VENDOR
01-06-2023,Adults & Health,Highland Care Uk Ltd,Home Care - Private Contractors Payment,20.52,0,VENDOR
01-06-2023,Adults & Health,Highland Care Uk Ltd,Home Care - Private Contractors Payment,610.47,0,VENDOR
01-06-2023,Adults & Health,Highland Care Uk Ltd,Respite Care - Private Contractors Payment,61.56,0,VENDOR
01-06-2023,Adults & Health,Highland Care Uk Ltd,Home Care - Private Contractors Payment,164.16,0,VENDOR
01-06-2023,Adults & Health,Highland Care Uk Ltd,Daycare - Private Contractors Payment,41.04,0,VENDOR
01-06-2023,Adults & Health,Highland Care Uk Ltd,Home Care - Private Contractors Payment,646.38,0,VENDOR
01-06-2023,Adults & Health,Highland Care Uk Ltd,Home Care - Private Contractors Payment,179.55,0,VENDOR
01-06-2023,Adults & Health,Highland Care Uk Ltd,Home Care - Private Contractors Payment,323.19,0,VENDOR
01-06-2023,Adults & Health,Highland Care Uk Ltd,Daycare - Private Contractors Payment,41.04,0,VENDOR
01-06-2023,Adults & Health,Highland Care Uk Ltd,Home Care - Private Contractors Payment,20.52,0,VENDOR
01-06-2023,Adults & Health,Highland Care Uk Ltd,Home Care - Private Contractors Payment,71.82,0,VENDOR
01-06-2023,Adults & Health,Highland Care Uk Ltd,Daycare - Private Contractors Payment,41.04,0,VENDOR
01-06-2023,Adults & Health,Highland Care Uk Ltd,Reablement,76.95,0,VENDOR
01-06-2023,Adults & Health,Highland Care Uk Ltd,Daycare - Private Contractors Payment,123.12,0,VENDOR
01-06-2023,Adults & Health,Highland Care Uk Ltd,Home Care - Private Contractors Payment,359.1,0,VENDOR
01-06-2023,Adults & Health,Highland Care Uk Ltd,Home Care - Private Contractors Payment,430.92,0,VENDOR
01-06-2023,Adults & Health,Highland Care Uk Ltd,Home Care - Private Contractors Payment,30.78,0,VENDOR
01-06-2023,Adults & Health,Highland Care Uk Ltd,Home Care - Private Contractors Payment,179.55,0,VENDOR
01-06-2023,Adults & Health,Highland Care Uk Ltd,Home Care - Private Contractors Payment,718.2,0,VENDOR
01-06-2023,Adults & Health,Highland Care Uk Ltd,Reablement,251.37,0,VENDOR
01-06-2023,Adults & Health,Highland Care Uk Ltd,Home Care - Private Contractors Payment,251.37,0,VENDOR
01-06-2023,Adults & Health,Highland Care Uk Ltd,Home Care - Private Contractors Payment,179.55,0,VENDOR
01-06-2023,Adults & Health,Highland Care Uk Ltd,Home Care - Private Contractors Payment,251.37,0,VENDOR
01-06-2023,Adults & Health,Highland Care Uk Ltd,Home Care - Private Contractors Payment,251.37,0,VENDOR
01-06-2023,Adults & Health,Highland Care Uk Ltd,Home Care - Private Contractors Payment,646.38,0,VENDOR
01-06-2023,Adults & Health,Highland Care Uk Ltd,Daycare - Private Contractors Payment,41.04,0,VENDOR
01-06-2023,Adults & Health,Highland Care Uk Ltd,Daycare - Private Contractors Payment,123.12,0,VENDOR
01-06-2023,Adults & Health,Highland Care Uk Ltd,Home Care - Private Contractors Payment,359.1,0,VENDOR
01-06-2023,Adults & Health,Highland Care Uk Ltd,Home Care - Private Contractors Payment,430.92,0,VENDOR
01-06-2023,Adults & Health,Highland Care Uk Ltd,Home Care - Private Contractors Payment,251.37,0,VENDOR
01-06-2023,Adults & Health,Highland Care Uk Ltd,Home Care - Private Contractors Payment,646.38,0,VENDOR
01-06-2023,Adults & Health,Highland Care Uk Ltd,Home Care - Private Contractors Payment,20.52,0,VENDOR
01-06-2023,Adults & Health,Highland Care Uk Ltd,Daycare - Private Contractors Payment,20.52,0,VENDOR
01-06-2023,Adults & Health,Highland Care Uk Ltd,Home Care - Private Contractors Payment,287.28,0,VENDOR
01-06-2023,Adults & Health,Highland Care Uk Ltd,Reablement,102.6,0,VENDOR
01-06-2023,Adults & Health,Highland Care Uk Ltd,Daycare - Private Contractors Payment,82.08,0,VENDOR
01-06-2023,Adults & Health,Highland Care Uk Ltd,Home Care - Private Contractors Payment,20.52,0,VENDOR
01-06-2023,Adults & Health,Highland Care Uk Ltd,Home Care - Private Contractors Payment,143.64,0,VENDOR
01-06-2023,Adults & Health,Highland Care Uk Ltd,Home Care - Private Contractors Payment,615.6,0,VENDOR
01-06-2023,Adults & Health,Highland Care Uk Ltd,Home Care - Private Contractors Payment,20.52,0,VENDOR
01-06-2023,Adults & Health,Highland Care Uk Ltd,Daycare - Private Contractors Payment,20.52,0,VENDOR
01-06-2023,Adults & Health,Highland Care Uk Ltd,Home Care - Private Contractors Payment,610.47,0,VENDOR
01-06-2023,Adults & Health,Highland Care Uk Ltd,Respite Care - Private Contractors Payment,61.56,0,VENDOR
01-06-2023,Adults & Health,Highland Care Uk Ltd,Home Care - Private Contractors Payment,164.16,0,VENDOR
01-06-2023,Adults & Health,Highland Care Uk Ltd,Daycare - Private Contractors Payment,41.04,0,VENDOR
01-06-2023,Adults & Health,Highland Care Uk Ltd,Home Care - Private Contractors Payment,646.38,0,VENDOR
01-06-2023,Adults & Health,Highland Care Uk Ltd,Home Care - Private Contractors Payment,179.55,0,VENDOR
01-06-2023,Adults & Health,Highland Care Uk Ltd,Home Care - Private Contractors Payment,323.19,0,VENDOR
01-06-2023,Adults & Health,Highland Care Uk Ltd,Daycare - Private Contractors Payment,41.04,0,VENDOR
01-06-2023,Adults & Health,Highland Care Uk Ltd,Home Care - Private Contractors Payment,143.64,0,VENDOR
01-06-2023,Adults & Health,Highland Care Uk Ltd,Home Care - Private Contractors Payment,41.04,0,VENDOR
01-06-2023,Adults & Health,Highland Care Uk Ltd,Home Care - Private Contractors Payment,107.73,0,VENDOR
01-06-2023,Adults & Health,Highland Care Uk Ltd,Home Care - Private Contractors Payment,61.56,0,VENDOR
01-06-2023,Adults & Health,Highland Care Uk Ltd,Home Care - Private Contractors Payment,30.78,0,VENDOR
01-06-2023,Adults & Health,Highland Care Uk Ltd,Reablement,71.82,0,VENDOR
01-06-2023,Adults & Health,Highland Care Uk Ltd,Home Care - Private Contractors Payment,179.55,0,VENDOR
01-06-2023,Adults & Health,Highland Care Uk Ltd,Home Care - Private Contractors Payment,718.2,0,VENDOR
01-06-2023,Adults & Health,Highland Care Uk Ltd,Reablement,251.37,0,VENDOR
01-06-2023,Adults & Health,Highland Care Uk Ltd,Home Care - Private Contractors Payment,251.37,0,VENDOR
01-06-2023,Adults & Health,Highland Care Uk Ltd,Daycare - Private Contractors Payment,41.04,0,VENDOR
01-06-2023,Adults & Health,Highland Care Uk Ltd,Home Care - Private Contractors Payment,215.46,0,VENDOR
01-06-2023,Adults & Health,Highland Care Uk Ltd,Home Care - Private Contractors Payment,123.12,0,VENDOR
01-06-2023,Adults & Health,Highland Care Uk Ltd,Home Care - Private Contractors Payment,307.8,0,VENDOR
01-06-2023,Adults & Health,Highland Care Uk Ltd,Home Care - Private Contractors Payment,25.65,0,VENDOR
01-06-2023,Adults & Health,Highland Care Uk Ltd,Reablement,46.17,0,VENDOR
01-06-2023,Adults & Health,Highland Care Uk Ltd,Home Care - Private Contractors Payment,179.55,0,VENDOR
01-06-2023,Adults & Health,Highland Care Uk Ltd,Home Care - Private Contractors Payment,251.37,0,VENDOR
01-06-2023,Adults & Health,Highland Care Uk Ltd,Home Care - Private Contractors Payment,251.37,0,VENDOR
01-06-2023,Adults & Health,Highland Care Uk Ltd,Home Care - Private Contractors Payment,123.12,0,VENDOR
01-06-2023,Adults & Health,Highland Care Uk Ltd,Home Care - Private Contractors Payment,718.2,0,VENDOR
01-06-2023,Adults & Health,Highland Care Uk Ltd,Daycare - Private Contractors Payment,61.56,0,VENDOR
01-06-2023,Adults & Health,Highland Care Uk Ltd,Home Care - Private Contractors Payment,41.04,0,VENDOR
01-06-2023,Adults & Health,Highland Care Uk Ltd,Home Care - Private Contractors Payment,143.64,0,VENDOR
01-06-2023,Adults & Health,Highland Care Uk Ltd,Home Care - Private Contractors Payment,92.34,0,VENDOR
01-06-2023,Adults & Health,Highland Care Uk Ltd,Home Care - Private Contractors Payment,215.46,0,VENDOR
01-06-2023,Adults & Health,Highland Care Uk Ltd,Daycare - Private Contractors Payment,61.56,0,VENDOR
01-06-2023,Adults & Health,Highland Care Uk Ltd,Home Care - Private Contractors Payment,335.3,0,VENDOR
01-06-2023,Adults & Health,Highland Care Uk Ltd,Reablement,184.68,0,VENDOR
01-06-2023,Adults & Health,Highland Care Uk Ltd,Home Care - Private Contractors Payment,646.38,0,VENDOR
01-06-2023,Adults & Health,Highland Care Uk Ltd,Home Care - Private Contractors Payment,117.99,0,VENDOR
01-06-2023,Adults & Health,Highland Care Uk Ltd,Home Care - Private Contractors Payment,107.73,0,VENDOR
01-06-2023,Adults & Health,Highland Care Uk Ltd,Daycare - Private Contractors Payment,82.08,0,VENDOR
01-06-2023,Adults & Health,Highland Care Uk Ltd,Home Care - Private Contractors Payment,790.02,0,VENDOR
01-06-2023,Adults & Health,Highland Care Uk Ltd,Home Care - Private Contractors Payment,466.83,0,VENDOR
01-06-2023,Adults & Health,Highland Care Uk Ltd,Daycare - Private Contractors Payment,246.24,0,VENDOR
01-06-2023,Adults & Health,Highland Care Uk Ltd,Home Care - Private Contractors Payment,30.78,0,VENDOR
01-06-2023,Adults & Health,Highland Care Uk Ltd,Home Care - Private Contractors Payment,323.19,0,VENDOR
01-06-2023,Adults & Health,Highland Care Uk Ltd,Home Care - Private Contractors Payment,35.91,0,VENDOR
01-06-2023,Adults & Health,Highland Care Uk Ltd,Home Care - Private Contractors Payment,251.37,0,VENDOR
01-06-2023,Adults & Health,Highland Care Uk Ltd,Home Care - Private Contractors Payment,20.52,0,VENDOR
01-06-2023,Adults & Health,Highland Care Uk Ltd,Daycare - Private Contractors Payment,20.52,0,VENDOR
01-06-2023,Adults & Health,Highland Care Uk Ltd,Home Care - Private Contractors Payment,179.55,0,VENDOR
01-06-2023,Adults & Health,Highland Care Uk Ltd,Home Care - Private Contractors Payment,117.99,0,VENDOR
01-06-2023,Adults & Health,Highland Care Uk Ltd,Home Care - Private Contractors Payment,251.37,0,VENDOR
01-06-2023,Adults & Health,Highland Care Uk Ltd,Reablement,82.08,0,VENDOR
01-06-2023,Adults & Health,Highland Care Uk Ltd,Home Care - Private Contractors Payment,92.34,0,VENDOR
01-06-2023,Adults & Health,Highland Care Uk Ltd,Daycare - Private Contractors Payment,82.08,0,VENDOR
01-06-2023,Adults & Health,Highland Care Uk Ltd,Home Care - Private Contractors Payment,790.02,0,VENDOR
01-06-2023,Adults & Health,Highland Care Uk Ltd,Home Care - Private Contractors Payment,466.83,0,VENDOR
01-06-2023,Adults & Health,Highland Care Uk Ltd,Daycare - Private Contractors Payment,246.24,0,VENDOR
01-06-2023,Adults & Health,Highland Care Uk Ltd,Home Care - Private Contractors Payment,30.78,0,VENDOR
01-06-2023,Adults & Health,Highland Care Uk Ltd,Home Care - Private Contractors Payment,323.19,0,VENDOR
01-06-2023,Adults & Health,Highland Care Uk Ltd,Home Care - Private Contractors Payment,107.73,0,VENDOR
01-06-2023,Adults & Health,Highland Care Uk Ltd,Home Care - Private Contractors Payment,107.73,0,VENDOR
01-06-2023,Adults & Health,Highland Care Uk Ltd,Home Care - Private Contractors Payment,502.74,0,VENDOR
01-06-2023,Adults & Health,Highland Care Uk Ltd,Reablement,179.55,0,VENDOR
01-06-2023,Adults & Health,Highland Care Uk Ltd,Home Care - Private Contractors Payment,41.04,0,VENDOR
01-06-2023,Adults & Health,Highland Care Uk Ltd,Home Care - Private Contractors Payment,861.84,0,VENDOR
01-06-2023,Adults & Health,Highland Care Uk Ltd,Home Care - Private Contractors Payment,215.46,0,VENDOR
01-06-2023,Adults & Health,Highland Care Uk Ltd,Home Care - Private Contractors Payment,466.83,0,VENDOR
01-06-2023,Adults & Health,Highland Care Uk Ltd,Daycare - Private Contractors Payment,61.56,0,VENDOR
01-06-2023,Adults & Health,Highland Care Uk Ltd,Home Care - Private Contractors Payment,718.2,0,VENDOR
01-06-2023,Adults & Health,Highland Care Uk Ltd,Home Care - Private Contractors Payment,143.64,0,VENDOR
01-06-2023,Adults & Health,Highland Care Uk Ltd,Home Care - Private Contractors Payment,92.34,0,VENDOR
01-06-2023,Adults & Health,Highland Care Uk Ltd,Home Care - Private Contractors Payment,215.46,0,VENDOR
01-06-2023,Adults & Health,Highland Care Uk Ltd,Daycare - Private Contractors Payment,61.56,0,VENDOR
01-06-2023,Adults & Health,Highland Care Uk Ltd,Home Care - Private Contractors Payment,320.98,0,VENDOR
01-06-2023,Adults & Health,Highland Care Uk Ltd,Home Care - Private Contractors Payment,19.16,0,VENDOR
01-06-2023,Adults & Health,Highland Care Uk Ltd,Daycare - Private Contractors Payment,28.74,0,VENDOR
01-06-2023,Adults & Health,Highland Care Uk Ltd,Home Care - Private Contractors Payment,30.78,0,VENDOR
01-06-2023,Adults & Health,Highland Care Uk Ltd,Home Care - Private Contractors Payment,251.37,0,VENDOR
01-06-2023,Adults & Health,Highland Care Uk Ltd,Home Care - Private Contractors Payment,61.56,0,VENDOR
01-06-2023,Adults & Health,Highland Care Uk Ltd,Home Care - Private Contractors Payment,179.55,0,VENDOR
01-06-2023,Adults & Health,Highland Care Uk Ltd,Home Care - Private Contractors Payment,215.46,0,VENDOR
01-06-2023,Adults & Health,Highland Care Uk Ltd,Daycare - Private Contractors Payment,41.04,0,VENDOR
01-06-2023,Adults & Health,Highland Care Uk Ltd,Home Care - Private Contractors Payment,107.73,0,VENDOR
01-06-2023,Adults & Health,Highland Care Uk Ltd,Home Care - Private Contractors Payment,646.38,0,VENDOR
01-06-2023,Adults & Health,Highland Care Uk Ltd,Home Care - Private Contractors Payment,107.73,0,VENDOR
01-06-2023,Adults & Health,Highland Care Uk Ltd,Home Care - Private Contractors Payment,646.38,0,VENDOR
01-06-2023,Adults & Health,Highland Care Uk Ltd,Home Care - Private Contractors Payment,143.64,0,VENDOR
01-06-2023,Adults & Health,Highland Care Uk Ltd,Home Care - Private Contractors Payment,112.86,0,VENDOR
01-06-2023,Adults & Health,Highland Care Uk Ltd,Home Care - Private Contractors Payment,82.08,0,VENDOR
01-06-2023,Adults & Health,Highland Care Uk Ltd,Home Care - Private Contractors Payment,179.55,0,VENDOR
01-06-2023,Adults & Health,Highland Care Uk Ltd,Home Care - Private Contractors Payment,251.37,0,VENDOR
01-06-2023,Adults & Health,Highland Care Uk Ltd,Home Care - Private Contractors Payment,20.52,0,VENDOR
01-06-2023,Adults & Health,Highland Care Uk Ltd,Reablement,179.55,0,VENDOR
01-06-2023,Adults & Health,Highland Care Uk Ltd,Home Care - Private Contractors Payment,10.26,0,VENDOR
01-06-2023,Adults & Health,Highland Care Uk Ltd,Home Care - Private Contractors Payment,466.83,0,VENDOR
01-06-2023,Adults & Health,Highland Care Uk Ltd,Home Care - Private Contractors Payment,30.78,0,VENDOR
01-06-2023,Adults & Health,Highland Care Uk Ltd,Daycare - Private Contractors Payment,205.2,0,VENDOR
01-06-2023,Adults & Health,Highland Care Uk Ltd,Daycare - Private Contractors Payment,123.12,0,VENDOR
01-06-2023,Adults & Health,Highland Care Uk Ltd,Home Care - Private Contractors Payment,287.28,0,VENDOR
01-06-2023,Adults & Health,Highland Care Uk Ltd,Home Care - Private Contractors Payment,131.04,0,VENDOR
01-06-2023,Adults & Health,Highland Care Uk Ltd,Reablement,461.7,0,VENDOR
01-06-2023,Adults & Health,Highland Care Uk Ltd,Home Care - Private Contractors Payment,861.84,0,VENDOR
01-06-2023,Adults & Health,Highland Care Uk Ltd,Home Care - Private Contractors Payment,20.52,0,VENDOR
01-06-2023,Adults & Health,Highland Care Uk Ltd,Home Care - Private Contractors Payment,41.04,0,VENDOR
01-06-2023,Adults & Health,Highland Care Uk Ltd,Home Care - Private Contractors Payment,466.83,0,VENDOR
01-06-2023,Adults & Health,Highland Care Uk Ltd,Home Care - Private Contractors Payment,251.37,0,VENDOR
01-06-2023,Adults & Health,Highland Care Uk Ltd,Home Care - Private Contractors Payment,30.78,0,VENDOR
01-06-2023,Adults & Health,Highland Care Uk Ltd,Home Care - Private Contractors Payment,251.37,0,VENDOR
01-06-2023,Adults & Health,Highland Care Uk Ltd,Home Care - Private Contractors Payment,20.52,0,VENDOR
01-06-2023,Adults & Health,Highland Care Uk Ltd,Home Care - Private Contractors Payment,71.82,0,VENDOR
01-06-2023,Adults & Health,Highland Care Uk Ltd,Home Care - Private Contractors Payment,287.28,0,VENDOR
01-06-2023,Adults & Health,Highland Care Uk Ltd,Home Care - Private Contractors Payment,215.46,0,VENDOR
01-06-2023,Adults & Health,Highland Care Uk Ltd,Daycare - Private Contractors Payment,82.08,0,VENDOR
01-06-2023,Adults & Health,Highland Care Uk Ltd,Home Care - Private Contractors Payment,20.52,0,VENDOR
01-06-2023,Adults & Health,Highland Care Uk Ltd,Home Care - Private Contractors Payment,143.64,0,VENDOR
01-06-2023,Adults & Health,Highland Care Uk Ltd,Home Care - Private Contractors Payment,615.6,0,VENDOR
01-06-2023,Children and Young People,Early Start Group Ltd,Private Contractors Payment - Other,69346,0,COMMERCIAL SUPPLIER
01-06-2023,RMS,Beacon Scaffolding Ltd,Private Contractors Payment - Other,597.6,0,CIS
01-06-2023,RMS,Beacon Scaffolding Ltd,Private Contractors Payment - Other,1500,0,CIS
01-06-2023,RMS,Beacon Scaffolding Ltd,Private Contractors Payment - Other,619.2,0,CIS
01-06-2023,RMS,Beacon Scaffolding Ltd,Private Contractors Payment - Other,619.2,0,CIS
01-06-2023,RMS,Beacon Scaffolding Ltd,Private Contractors Payment - Other,154.56,0,CIS
01-06-2023,RMS,Beacon Scaffolding Ltd,Private Contractors Payment - Other,1500,0,CIS
01-06-2023,RMS,Beacon Scaffolding Ltd,Private Contractors Payment - Other,619.2,0,CIS
01-06-2023,RMS,Beacon Scaffolding Ltd,Private Contractors Payment - Other,619.2,0,CIS
01-06-2023,RMS,Beacon Scaffolding Ltd,Private Contractors Payment - Other,619.2,0,CIS
01-06-2023,RMS,Beacon Scaffolding Ltd,Private Contractors Payment - Other,619.2,0,CIS
01-06-2023,Environment and Sustainable Transport,Charter Security Ltd,Security Of Premises,10614.61,0,VENDOR
01-06-2023,Environment and Sustainable Transport,Charter Security Ltd,Security Of Premises,14192.83,0,VENDOR
01-06-2023,Environment and Sustainable Transport,Charter Security Ltd,Security Of Premises,3497.47,0,VENDOR
01-06-2023,Environment and Sustainable Transport,Charter Security Ltd,Security Of Premises,5091.71,0,VENDOR
01-06-2023,Environment and Sustainable Transport,Charter Security Ltd,Security Of Premises,3403.66,0,VENDOR
01-06-2023,Environment and Sustainable Transport,Charter Security Ltd,Security Of Premises,2480,0,VENDOR
01-06-2023,Environment and Sustainable Transport,Charter Security Ltd,Security Of Premises,337.92,0,VENDOR
01-06-2023,Environment and Sustainable Transport,Charter Security Ltd,Security Of Premises,5068.8,0,VENDOR
01-06-2023,Environment and Sustainable Transport,Charter Security Ltd,Security Of Premises,228.64,0,VENDOR
01-06-2023,Environment and Sustainable Transport,Charter Security Ltd,Security Of Premises,3303.56,0,VENDOR
01-06-2023,Environment and Sustainable Transport,Charter Security Ltd,Security Of Premises,72,0,VENDOR
01-06-2023,Environment and Sustainable Transport,Charter Security Ltd,Security Of Premises,685.35,0,VENDOR
01-06-2023,Environment and Sustainable Transport,Charter Security Ltd,Security Of Premises,10374.83,0,VENDOR
01-06-2023,Environment and Sustainable Transport,Charter Security Ltd,Security Of Premises,915.13,0,VENDOR
01-06-2023,Environment and Sustainable Transport,Charter Security Ltd,Security Of Premises,3350.76,0,VENDOR
01-06-2023,Environment and Sustainable Transport,Charter Security Ltd,Security Of Premises,153.28,0,VENDOR
01-06-2023,Environment and Sustainable Transport,Charter Security Ltd,Security Of Premises,13706.39,0,VENDOR
01-06-2023,Environment and Sustainable Transport,Charter Security Ltd,Security Of Premises,2400,0,VENDOR
01-06-2023,RMS,Door-Stop International Ltd,Building Alterations And Materials,670.23,0,VENDOR
01-06-2023,RMS,Door-Stop International Ltd,Building Alterations And Materials,703.61,0,VENDOR
01-06-2023,RMS,Door-Stop International Ltd,Building Alterations And Materials,672.84,0,VENDOR
01-06-2023,RMS,Door-Stop International Ltd,Building Alterations And Materials,581.76,0,VENDOR
01-06-2023,RMS,Door-Stop International Ltd,Building Alterations And Materials,616.96,0,VENDOR
01-06-2023,RMS,Door-Stop International Ltd,Building Alterations And Materials,661.96,0,VENDOR
01-06-2023,Housing Revenue Account,Personal Information - Redacted,Legal Fees,400,0,LEGAL SERVICES
01-06-2023,Children and Young People,Personal Information - Redacted,Legal Fees,410,0,NON COMMERCIAL SUPPLIER
01-06-2023,Marketing,Church Urban Fund,Events,2161,0,NON COMMERCIAL SUPPLIER
01-06-2023,Environment and Sustainable Transport,Andrew Pritchard Ltd,Consultancy Fees,4800,0,INDIVIDUALS
01-06-2023,Adults & Health,Personal Information - Redacted,"Purchase - Equipment, Furniture And Materials",40.38,0,Employee
01-06-2023,Adults & Health,Personal Information - Redacted,Payment To Health Authorities,100,0,Employee
01-06-2023,Adults & Health,Personal Information - Redacted,Payment To Health Authorities,94.95,0,Employee
01-06-2023,Children and Young People,Personal Information - Redacted,"Purchase - Equipment, Furniture And Materials",-5.5,0,Employee
01-06-2023,Children and Young People,Personal Information - Redacted,"Purchase - Equipment, Furniture And Materials",23.06,0,Employee
01-06-2023,Children and Young People,Personal Information - Redacted,"Purchase - Equipment, Furniture And Materials",14.95,0,Employee
01-06-2023,Children and Young People,Personal Information - Redacted,"Purchase - Equipment, Furniture And Materials",453.3,0,Employee
01-06-2023,Children and Young People,Personal Information - Redacted,Arts And Leisure Costs,560,0,Employee
01-06-2023,Children and Young People,Personal Information - Redacted,"Purchase - Equipment, Furniture And Materials",20.83,0,Employee
01-06-2023,Children and Young People,Personal Information - Redacted,"Purchase - Equipment, Furniture And Materials",4.17,0,Employee
01-06-2023,Children and Young People,Luxe Star Events,Arts And Leisure Costs,750,0,
01-06-2023,Housing Revenue Account,Liberty Solicitors,Legal Fees,4816.47,0,NON COMMERCIAL SUPPLIER
01-06-2023,Dedicated Schools Budget,Personal Information - Redacted,Professional Services - General,2405,0,COMMERCIAL SUPPLIER
01-06-2023,Children and Young People,Compass Fostering,Other Contributions & Reimbursements (Income),869.99,0,COMMERCIAL SUPPLIER
01-06-2023,Children and Young People,Compass Fostering,Other Contributions & Reimbursements (Income),869.99,0,COMMERCIAL SUPPLIER
01-06-2023,Children and Young People,Compass Fostering,Other Contributions & Reimbursements (Income),869.99,0,COMMERCIAL SUPPLIER
01-06-2023,Children and Young People,Compass Fostering,Other Contributions & Reimbursements (Income),869.99,0,COMMERCIAL SUPPLIER
01-06-2023,Children and Young People,Adeza Care Homes Ltd,Other Contributions & Reimbursements (Income),3500,0,VENDOR
01-06-2023,Children and Young People,Adeza Care Homes Ltd,Other Contributions & Reimbursements (Income),3500,0,VENDOR
01-06-2023,Children and Young People,Adeza Care Homes Ltd,Other Contributions & Reimbursements (Income),3500,0,VENDOR
01-06-2023,Children and Young People,Adeza Care Homes Ltd,Other Contributions & Reimbursements (Income),3500,0,VENDOR
01-06-2023,Children and Young People,Compass Fostering,Other Contributions & Reimbursements (Income),848.24,0,COMMERCIAL SUPPLIER
01-06-2023,Children and Young People,Compass Fostering,Other Contributions & Reimbursements (Income),848.24,0,COMMERCIAL SUPPLIER
01-06-2023,Children and Young People,Compass Fostering,Other Contributions & Reimbursements (Income),848.24,0,COMMERCIAL SUPPLIER
01-06-2023,Children and Young People,Compass Fostering,Other Contributions & Reimbursements (Income),848.24,0,COMMERCIAL SUPPLIER
01-06-2023,Children and Young People,Shining Stars Fostering Agency Ltd,Other Contributions & Reimbursements (Income),735,0,COMMERCIAL SUPPLIER
01-06-2023,Children and Young People,Shining Stars Fostering Agency Ltd,Other Contributions & Reimbursements (Income),735,0,COMMERCIAL SUPPLIER
01-06-2023,Children and Young People,Shining Stars Fostering Agency Ltd,Other Contributions & Reimbursements (Income),735,0,COMMERCIAL SUPPLIER
01-06-2023,Children and Young People,Shining Stars Fostering Agency Ltd,Other Contributions & Reimbursements (Income),735,0,COMMERCIAL SUPPLIER
01-06-2023,Children and Young People,Integrated Fostering Services,Other Contributions & Reimbursements (Income),1140,0,COMMERCIAL SUPPLIER
01-06-2023,Children and Young People,Shine Fostering Agency,Other Contributions & Reimbursements (Income),820,0,COMMERCIAL SUPPLIER
01-06-2023,Children and Young People,Integrated Fostering Services,Other Contributions & Reimbursements (Income),1200,0,COMMERCIAL SUPPLIER
01-06-2023,Children and Young People,Shine Fostering Agency,Other Contributions & Reimbursements (Income),820,0,COMMERCIAL SUPPLIER
01-06-2023,Children and Young People,Integrated Fostering Services,Other Contributions & Reimbursements (Income),1140,0,COMMERCIAL SUPPLIER
01-06-2023,Children and Young People,Integrated Fostering Services,Other Contributions & Reimbursements (Income),1140,0,COMMERCIAL SUPPLIER
01-06-2023,Children and Young People,Shine Fostering Agency,Other Contributions & Reimbursements (Income),820,0,COMMERCIAL SUPPLIER
01-06-2023,Children and Young People,Integrated Fostering Services,Other Contributions & Reimbursements (Income),1200,0,COMMERCIAL SUPPLIER
01-06-2023,Children and Young People,Integrated Fostering Services,Other Contributions & Reimbursements (Income),1200,0,COMMERCIAL SUPPLIER
01-06-2023,Children and Young People,Integrated Fostering Services,Other Contributions & Reimbursements (Income),1140,0,COMMERCIAL SUPPLIER
01-06-2023,Children and Young People,Shine Fostering Agency,Other Contributions & Reimbursements (Income),820,0,COMMERCIAL SUPPLIER
01-06-2023,Children and Young People,Integrated Fostering Services,Other Contributions & Reimbursements (Income),1200,0,COMMERCIAL SUPPLIER
01-06-2023,Children and Young People,Broadlands Hall,Private Contractors Payment - Other,1481.25,0,COMMERCIAL SUPPLIER
01-06-2023,Children and Young People,Broadlands Hall,Private Contractors Payment - Other,1481.25,0,COMMERCIAL SUPPLIER
01-06-2023,Children and Young People,Broadlands Hall,Private Contractors Payment - Other,1481.25,0,COMMERCIAL SUPPLIER
01-06-2023,Children and Young People,Broadlands Hall,Private Contractors Payment - Other,1481.25,0,COMMERCIAL SUPPLIER
01-06-2023,Children and Young People,Integrated Fostering Services,Other Contributions & Reimbursements (Income),679.49,0,COMMERCIAL SUPPLIER
01-06-2023,Children and Young People,Integrated Fostering Services,Other Contributions & Reimbursements (Income),679.49,0,COMMERCIAL SUPPLIER
01-06-2023,Children and Young People,Integrated Fostering Services,Other Contributions & Reimbursements (Income),980,0,COMMERCIAL SUPPLIER
01-06-2023,Children and Young People,Integrated Fostering Services,Other Contributions & Reimbursements (Income),980,0,COMMERCIAL SUPPLIER
01-06-2023,Children and Young People,Integrated Fostering Services,Other Contributions & Reimbursements (Income),679.49,0,COMMERCIAL SUPPLIER
01-06-2023,Children and Young People,Integrated Fostering Services,Other Contributions & Reimbursements (Income),679.49,0,COMMERCIAL SUPPLIER
01-06-2023,Children and Young People,Integrated Fostering Services,Other Contributions & Reimbursements (Income),980,0,COMMERCIAL SUPPLIER
01-06-2023,Children and Young People,Integrated Fostering Services,Other Contributions & Reimbursements (Income),679.49,0,COMMERCIAL SUPPLIER
01-06-2023,Children and Young People,Integrated Fostering Services,Other Contributions & Reimbursements (Income),679.49,0,COMMERCIAL SUPPLIER
01-06-2023,Children and Young People,Integrated Fostering Services,Other Contributions & Reimbursements (Income),980,0,COMMERCIAL SUPPLIER
01-06-2023,Children and Young People,Integrated Fostering Services,Other Contributions & Reimbursements (Income),679.49,0,COMMERCIAL SUPPLIER
01-06-2023,Children and Young People,Integrated Fostering Services,Other Contributions & Reimbursements (Income),679.49,0,COMMERCIAL SUPPLIER
01-06-2023,Children and Young People,Regional Fostering Services Ltd,Other Contributions & Reimbursements (Income),775,0,COMMERCIAL SUPPLIER
01-06-2023,Children and Young People,Regional Fostering Services Ltd,Other Contributions & Reimbursements (Income),736.26,0,COMMERCIAL SUPPLIER
01-06-2023,Children and Young People,Regional Fostering Services Ltd,Other Contributions & Reimbursements (Income),736.26,0,COMMERCIAL SUPPLIER
01-06-2023,Children and Young People,Regional Fostering Services Ltd,Other Contributions & Reimbursements (Income),775,0,COMMERCIAL SUPPLIER
01-06-2023,Children and Young People,Regional Fostering Services Ltd,Other Contributions & Reimbursements (Income),775,0,COMMERCIAL SUPPLIER
01-06-2023,Children and Young People,Regional Fostering Services Ltd,Other Contributions & Reimbursements (Income),736.26,0,COMMERCIAL SUPPLIER
01-06-2023,Children and Young People,Regional Fostering Services Ltd,Other Contributions & Reimbursements (Income),775,0,COMMERCIAL SUPPLIER
01-06-2023,Children and Young People,Regional Fostering Services Ltd,Other Contributions & Reimbursements (Income),775,0,COMMERCIAL SUPPLIER
01-06-2023,Children and Young People,Regional Fostering Services Ltd,Other Contributions & Reimbursements (Income),775,0,COMMERCIAL SUPPLIER
01-06-2023,Children and Young People,Regional Fostering Services Ltd,Other Contributions & Reimbursements (Income),736.26,0,COMMERCIAL SUPPLIER
01-06-2023,Children and Young People,Regional Fostering Services Ltd,Other Contributions & Reimbursements (Income),775,0,COMMERCIAL SUPPLIER
01-06-2023,Children and Young People,Regional Fostering Services Ltd,Other Contributions & Reimbursements (Income),775,0,COMMERCIAL SUPPLIER
01-06-2023,Children and Young People,Integrated Fostering Services,Other Contributions & Reimbursements (Income),300,0,COMMERCIAL SUPPLIER
01-06-2023,Children and Young People,Integrated Fostering Services,Other Contributions & Reimbursements (Income),300,0,COMMERCIAL SUPPLIER
01-06-2023,Children and Young People,Integrated Fostering Services,Other Contributions & Reimbursements (Income),300,0,COMMERCIAL SUPPLIER
01-06-2023,Children and Young People,Integrated Fostering Services,Other Contributions & Reimbursements (Income),300,0,COMMERCIAL SUPPLIER
01-06-2023,Children and Young People,Horizons Residential Care Ltd,Other Contributions & Reimbursements (Income),7200,0,NON COMMERCIAL SUPPLIER
01-06-2023,Children and Young People,Horizons Residential Care Ltd,Other Contributions & Reimbursements (Income),7200,0,NON COMMERCIAL SUPPLIER
01-06-2023,Children and Young People,Horizons Residential Care Ltd,Other Contributions & Reimbursements (Income),7200,0,NON COMMERCIAL SUPPLIER
01-06-2023,Children and Young People,Horizons Residential Care Ltd,Other Contributions & Reimbursements (Income),7200,0,NON COMMERCIAL SUPPLIER
01-06-2023,Children and Young People,Compass Fostering,Residential Placements - Private Contractors Payment,1413.75,0,COMMERCIAL SUPPLIER
01-06-2023,Children and Young People,Compass Fostering,Residential Placements - Private Contractors Payment,1413.75,0,COMMERCIAL SUPPLIER
01-06-2023,Children and Young People,Compass Fostering,Residential Placements - Private Contractors Payment,1413.75,0,COMMERCIAL SUPPLIER
01-06-2023,Children and Young People,Compass Fostering,Residential Placements - Private Contractors Payment,1413.75,0,COMMERCIAL SUPPLIER
01-06-2023,Children and Young People,Integrated Fostering Services,Other Contributions & Reimbursements (Income),1200,0,COMMERCIAL SUPPLIER
01-06-2023,Children and Young People,Integrated Fostering Services,Other Contributions & Reimbursements (Income),1200,0,COMMERCIAL SUPPLIER
01-06-2023,Children and Young People,Integrated Fostering Services,Other Contributions & Reimbursements (Income),1200,0,COMMERCIAL SUPPLIER
01-06-2023,Children and Young People,Integrated Fostering Services,Other Contributions & Reimbursements (Income),1200,0,COMMERCIAL SUPPLIER
01-06-2023,Children and Young People,Horizons Residential Care Ltd,Other Contributions & Reimbursements (Income),7200,0,NON COMMERCIAL SUPPLIER
01-06-2023,Children and Young People,Horizons Residential Care Ltd,Other Contributions & Reimbursements (Income),7200,0,NON COMMERCIAL SUPPLIER
01-06-2023,Children and Young People,Horizons Residential Care Ltd,Other Contributions & Reimbursements (Income),7200,0,NON COMMERCIAL SUPPLIER
01-06-2023,Children and Young People,Horizons Residential Care Ltd,Other Contributions & Reimbursements (Income),7200,0,NON COMMERCIAL SUPPLIER
01-06-2023,Children and Young People,Integrated Fostering Services,Other Contributions & Reimbursements (Income),1760,0,COMMERCIAL SUPPLIER
01-06-2023,Children and Young People,Integrated Fostering Services,Other Contributions & Reimbursements (Income),1760,0,COMMERCIAL SUPPLIER
01-06-2023,Children and Young People,Integrated Fostering Services,Other Contributions & Reimbursements (Income),1760,0,COMMERCIAL SUPPLIER
01-06-2023,Children and Young People,Integrated Fostering Services,Other Contributions & Reimbursements (Income),1760,0,COMMERCIAL SUPPLIER
01-06-2023,Children and Young People,Brighter Futures Foster Care Ltd,Other Contributions & Reimbursements (Income),684,0,COMMERCIAL SUPPLIER
01-06-2023,Children and Young People,Integrated Fostering Services,Other Contributions & Reimbursements (Income),795.36,0,COMMERCIAL SUPPLIER
01-06-2023,Children and Young People,Shared Care Services Ltd,Other Contributions & Reimbursements (Income),1375,0,COMMERCIAL SUPPLIER
01-06-2023,Children and Young People,Brighter Futures Foster Care Ltd,Other Contributions & Reimbursements (Income),684,0,COMMERCIAL SUPPLIER
01-06-2023,Children and Young People,Brighter Futures Foster Care Ltd,Other Contributions & Reimbursements (Income),684,0,COMMERCIAL SUPPLIER
01-06-2023,Children and Young People,Integrated Fostering Services,Other Contributions & Reimbursements (Income),1164,0,COMMERCIAL SUPPLIER
01-06-2023,Children and Young People,Shared Care Services Ltd,Other Contributions & Reimbursements (Income),1375,0,COMMERCIAL SUPPLIER
01-06-2023,Children and Young People,Brighter Futures Foster Care Ltd,Other Contributions & Reimbursements (Income),684,0,COMMERCIAL SUPPLIER
01-06-2023,Children and Young People,Brighter Futures Foster Care Ltd,Other Contributions & Reimbursements (Income),684,0,COMMERCIAL SUPPLIER
01-06-2023,Children and Young People,Integrated Fostering Services,Other Contributions & Reimbursements (Income),1164,0,COMMERCIAL SUPPLIER
01-06-2023,Children and Young People,Integrated Fostering Services,Other Contributions & Reimbursements (Income),795.36,0,COMMERCIAL SUPPLIER
01-06-2023,Children and Young People,Shared Care Services Ltd,Other Contributions & Reimbursements (Income),1375,0,COMMERCIAL SUPPLIER
01-06-2023,Children and Young People,Brighter Futures Foster Care Ltd,Other Contributions & Reimbursements (Income),684,0,COMMERCIAL SUPPLIER
01-06-2023,Children and Young People,Integrated Fostering Services,Other Contributions & Reimbursements (Income),795.36,0,COMMERCIAL SUPPLIER
01-06-2023,Children and Young People,Integrated Fostering Services,Other Contributions & Reimbursements (Income),1164,0,COMMERCIAL SUPPLIER
01-06-2023,Children and Young People,Shared Care Services Ltd,Other Contributions & Reimbursements (Income),1375,0,COMMERCIAL SUPPLIER
01-06-2023,Children and Young People,Brighter Futures Foster Care Ltd,Other Contributions & Reimbursements (Income),684,0,COMMERCIAL SUPPLIER
01-06-2023,Children and Young People,Brighter Futures Foster Care Ltd,Other Contributions & Reimbursements (Income),684,0,COMMERCIAL SUPPLIER
01-06-2023,Children and Young People,Integrated Fostering Services,Other Contributions & Reimbursements (Income),1164,0,COMMERCIAL SUPPLIER
01-06-2023,Children and Young People,Integrated Fostering Services,Other Contributions & Reimbursements (Income),795.36,0,COMMERCIAL SUPPLIER
01-06-2023,Children and Young People,Compass Fostering,Other Contributions & Reimbursements (Income),716.39,0,COMMERCIAL SUPPLIER
01-06-2023,Children and Young People,Compass Fostering,Other Contributions & Reimbursements (Income),716.39,0,COMMERCIAL SUPPLIER
01-06-2023,Children and Young People,Compass Fostering,Other Contributions & Reimbursements (Income),716.39,0,COMMERCIAL SUPPLIER
01-06-2023,Children and Young People,Compass Fostering,Other Contributions & Reimbursements (Income),716.39,0,COMMERCIAL SUPPLIER
01-06-2023,Children and Young People,The Children's Trust,Other Contributions & Reimbursements (Income),6651,0,INDIVIDUALS
01-06-2023,Children and Young People,The Children's Trust,Other Contributions & Reimbursements (Income),6651,0,INDIVIDUALS
01-06-2023,Children and Young People,The Children's Trust,Other Contributions & Reimbursements (Income),6651,0,INDIVIDUALS
01-06-2023,Children and Young People,The Children's Trust,Other Contributions & Reimbursements (Income),6651,0,INDIVIDUALS
01-06-2023,Children and Young People,Holibrook House Limited,Other Contributions & Reimbursements (Income),3750,0,VENDOR
01-06-2023,Children and Young People,Holibrook House Limited,Other Contributions & Reimbursements (Income),3750,0,VENDOR
01-06-2023,Children and Young People,Holibrook House Limited,Other Contributions & Reimbursements (Income),3750,0,VENDOR
01-06-2023,Children and Young People,Horizons Residential Care Ltd,Other Contributions & Reimbursements (Income),6822.86,0,NON COMMERCIAL SUPPLIER
01-06-2023,Children and Young People,Horizons Residential Care Ltd,Other Contributions & Reimbursements (Income),4548.57,0,NON COMMERCIAL SUPPLIER
01-06-2023,Children and Young People,Horizons Residential Care Ltd,Other Contributions & Reimbursements (Income),1500,0,NON COMMERCIAL SUPPLIER
01-06-2023,Children and Young People,Horizons Residential Care Ltd,Other Contributions & Reimbursements (Income),1500,0,NON COMMERCIAL SUPPLIER
01-06-2023,Children and Young People,Horizons Residential Care Ltd,Other Contributions & Reimbursements (Income),1500,0,NON COMMERCIAL SUPPLIER
01-06-2023,Children and Young People,Horizons Residential Care Ltd,Other Contributions & Reimbursements (Income),428.57,0,NON COMMERCIAL SUPPLIER
01-06-2023,Housing Revenue Account,Bond Turner,Legal Fees,750,0,INDIVIDUALS
01-06-2023,RMS,Hmg building services ltd,Private Contractors Payment - Other,75,0,CIS
01-06-2023,RMS,Hmg building services ltd,Private Contractors Payment - Other,150,0,CIS
01-06-2023,Environment and Sustainable Transport,Chipside Ltd,Private Contractors Payment - Other,660,0,COMMERCIAL SUPPLIER
01-06-2023,oneSource - Non Shared,Education Support (Newham) Ltd,"Maintenance - Equipment, Furniture And Materials",354317.8,0,VENDOR
01-06-2023,Inclusive Economy & Housing,Castle Water Ltd,Water And Sewerage,164.38,0,COMMERCIAL SUPPLIER
01-06-2023,Inclusive Economy & Housing,Castle Water Ltd,Water And Sewerage,143.36,0,COMMERCIAL SUPPLIER
01-06-2023,Children and Young People,Diamonds Kidz Contact Services,Contact Costs (Placements),3450,0,COMMERCIAL SUPPLIER
01-06-2023,Housing Revenue Account,Swan Housing Group,Professional Services - General,858890.8,0,VENDOR
01-06-2023,Adults & Health,Vista Care Solutions,Home Care - Private Contractors Payment,18.72,0,COMMERCIAL SUPPLIER
01-06-2023,Adults & Health,Vista Care Solutions,Home Care - Private Contractors Payment,720.72,0,COMMERCIAL SUPPLIER
01-06-2023,Adults & Health,Vista Care Solutions,Home Care - Private Contractors Payment,18.72,0,COMMERCIAL SUPPLIER
01-06-2023,Adults & Health,Vista Care Solutions,Home Care - Private Contractors Payment,720.72,0,COMMERCIAL SUPPLIER
01-06-2023,Adults & Health,Vista Care Solutions,Home Care - Private Contractors Payment,720.72,0,COMMERCIAL SUPPLIER
01-06-2023,Adults & Health,Vista Care Solutions,Home Care - Private Contractors Payment,18.72,0,COMMERCIAL SUPPLIER
01-06-2023,Adults & Health,Vista Care Solutions,Home Care - Private Contractors Payment,720.72,0,COMMERCIAL SUPPLIER
01-06-2023,Adults & Health,Vista Care Solutions,Home Care - Private Contractors Payment,18.72,0,COMMERCIAL SUPPLIER
01-06-2023,Adults & Health,Vista Care Solutions,Home Care - Private Contractors Payment,67.06,0,COMMERCIAL SUPPLIER
01-06-2023,Adults & Health,Vista Care Solutions,Home Care - Private Contractors Payment,67.06,0,COMMERCIAL SUPPLIER
01-06-2023,Adults & Health,Vista Care Solutions,Home Care - Private Contractors Payment,57.48,0,COMMERCIAL SUPPLIER
01-06-2023,Adults & Health,Vista Care Solutions,Home Care - Private Contractors Payment,67.06,0,COMMERCIAL SUPPLIER
01-06-2023,Adults & Health,Vista Care Solutions,Home Care - Private Contractors Payment,57.48,0,COMMERCIAL SUPPLIER
01-06-2023,Adults & Health,Vista Care Solutions,Home Care - Private Contractors Payment,67.06,0,COMMERCIAL SUPPLIER
01-06-2023,Adults & Health,Vista Care Solutions,Home Care - Private Contractors Payment,57.48,0,COMMERCIAL SUPPLIER
01-06-2023,Adults & Health,Vista Care Solutions,Home Care - Private Contractors Payment,57.48,0,COMMERCIAL SUPPLIER
01-06-2023,Adults & Health,Vista Care Solutions,Home Care - Private Contractors Payment,57.48,0,COMMERCIAL SUPPLIER
01-06-2023,Adults & Health,Vista Care Solutions,Home Care - Private Contractors Payment,67.06,0,COMMERCIAL SUPPLIER
01-06-2023,Adults & Health,Vista Care Solutions,Home Care - Private Contractors Payment,57.48,0,COMMERCIAL SUPPLIER
01-06-2023,Adults & Health,Vista Care Solutions,Home Care - Private Contractors Payment,67.06,0,COMMERCIAL SUPPLIER
01-06-2023,Adults & Health,Vista Care Solutions,Home Care - Private Contractors Payment,57.48,0,COMMERCIAL SUPPLIER
01-06-2023,Adults & Health,Vista Care Solutions,Home Care - Private Contractors Payment,67.06,0,COMMERCIAL SUPPLIER
01-06-2023,Adults & Health,Vista Care Solutions,Home Care - Private Contractors Payment,67.06,0,COMMERCIAL SUPPLIER
01-06-2023,Adults & Health,Vista Care Solutions,Home Care - Private Contractors Payment,57.48,0,COMMERCIAL SUPPLIER
01-06-2023,Adults & Health,Vista Care Solutions,Home Care - Private Contractors Payment,57.48,0,COMMERCIAL SUPPLIER
01-06-2023,Adults & Health,Vista Care Solutions,Home Care - Private Contractors Payment,67.06,0,COMMERCIAL SUPPLIER
01-06-2023,Adults & Health,Vista Care Solutions,Home Care - Private Contractors Payment,67.06,0,COMMERCIAL SUPPLIER
01-06-2023,Adults & Health,Vista Care Solutions,Home Care - Private Contractors Payment,57.48,0,COMMERCIAL SUPPLIER
01-06-2023,Adults & Health,Vista Care Solutions,Home Care - Private Contractors Payment,67.06,0,COMMERCIAL SUPPLIER
01-06-2023,Adults & Health,Vista Care Solutions,Home Care - Private Contractors Payment,57.48,0,COMMERCIAL SUPPLIER
01-06-2023,Adults & Health,Vista Care Solutions,Home Care - Private Contractors Payment,67.06,0,COMMERCIAL SUPPLIER
01-06-2023,Adults & Health,Vista Care Solutions,Home Care - Private Contractors Payment,57.48,0,COMMERCIAL SUPPLIER
01-06-2023,Adults & Health,Vista Care Solutions,Home Care - Private Contractors Payment,301.77,0,COMMERCIAL SUPPLIER
01-06-2023,Adults & Health,Vista Care Solutions,Home Care - Private Contractors Payment,603.54,0,COMMERCIAL SUPPLIER
01-06-2023,Adults & Health,Vista Care Solutions,Home Care - Private Contractors Payment,301.77,0,COMMERCIAL SUPPLIER
01-06-2023,Adults & Health,Vista Care Solutions,Home Care - Private Contractors Payment,440.68,0,COMMERCIAL SUPPLIER
01-06-2023,Adults & Health,Vista Care Solutions,Home Care - Private Contractors Payment,268.24,0,COMMERCIAL SUPPLIER
01-06-2023,Adults & Health,Vista Care Solutions,Home Care - Private Contractors Payment,28.74,0,COMMERCIAL SUPPLIER
01-06-2023,Adults & Health,Vista Care Solutions,Home Care - Private Contractors Payment,28.74,0,COMMERCIAL SUPPLIER
01-06-2023,Adults & Health,Vista Care Solutions,Home Care - Private Contractors Payment,637.07,0,COMMERCIAL SUPPLIER
01-06-2023,Adults & Health,Vista Care Solutions,Home Care - Private Contractors Payment,28.74,0,COMMERCIAL SUPPLIER
01-06-2023,Adults & Health,Vista Care Solutions,Home Care - Private Contractors Payment,637.07,0,COMMERCIAL SUPPLIER
01-06-2023,Adults & Health,Vista Care Solutions,Home Care - Private Contractors Payment,28.74,0,COMMERCIAL SUPPLIER
01-06-2023,Adults & Health,Vista Care Solutions,Home Care - Private Contractors Payment,637.07,0,COMMERCIAL SUPPLIER
01-06-2023,Adults & Health,Vista Care Solutions,Home Care - Private Contractors Payment,637.07,0,COMMERCIAL SUPPLIER
01-06-2023,Adults & Health,Vista Care Solutions,Daycare - Private Contractors Payment,383.2,0,COMMERCIAL SUPPLIER
01-06-2023,Adults & Health,Vista Care Solutions,Daycare - Private Contractors Payment,383.2,0,COMMERCIAL SUPPLIER
01-06-2023,Adults & Health,Vista Care Solutions,Daycare - Private Contractors Payment,383.2,0,COMMERCIAL SUPPLIER
01-06-2023,Adults & Health,Vista Care Solutions,Daycare - Private Contractors Payment,229.92,0,COMMERCIAL SUPPLIER
01-06-2023,Adults & Health,Vista Care Solutions,Home Care - Private Contractors Payment,67.06,0,COMMERCIAL SUPPLIER
01-06-2023,Adults & Health,Vista Care Solutions,Home Care - Private Contractors Payment,67.06,0,COMMERCIAL SUPPLIER
01-06-2023,Adults & Health,Vista Care Solutions,Daycare - Private Contractors Payment,57.48,0,COMMERCIAL SUPPLIER
01-06-2023,Adults & Health,Vista Care Solutions,Daycare - Private Contractors Payment,38.32,0,COMMERCIAL SUPPLIER
01-06-2023,Adults & Health,Vista Care Solutions,Home Care - Private Contractors Payment,67.06,0,COMMERCIAL SUPPLIER
01-06-2023,Adults & Health,Vista Care Solutions,Daycare - Private Contractors Payment,38.32,0,COMMERCIAL SUPPLIER
01-06-2023,Adults & Health,Vista Care Solutions,Daycare - Private Contractors Payment,57.48,0,COMMERCIAL SUPPLIER
01-06-2023,Adults & Health,Vista Care Solutions,Home Care - Private Contractors Payment,67.06,0,COMMERCIAL SUPPLIER
01-06-2023,Adults & Health,Vista Care Solutions,Home Care - Private Contractors Payment,67.06,0,COMMERCIAL SUPPLIER
01-06-2023,Adults & Health,Vista Care Solutions,Daycare - Private Contractors Payment,38.32,0,COMMERCIAL SUPPLIER
01-06-2023,Adults & Health,Vista Care Solutions,Daycare - Private Contractors Payment,57.48,0,COMMERCIAL SUPPLIER
01-06-2023,Adults & Health,Vista Care Solutions,Home Care - Private Contractors Payment,67.06,0,COMMERCIAL SUPPLIER
01-06-2023,Adults & Health,Vista Care Solutions,Home Care - Private Contractors Payment,67.06,0,COMMERCIAL SUPPLIER
01-06-2023,Adults & Health,Vista Care Solutions,Daycare - Private Contractors Payment,38.32,0,COMMERCIAL SUPPLIER
01-06-2023,Adults & Health,Vista Care Solutions,Daycare - Private Contractors Payment,57.48,0,COMMERCIAL SUPPLIER
01-06-2023,Adults & Health,Vista Care Solutions,Home Care - Private Contractors Payment,67.06,0,COMMERCIAL SUPPLIER
01-06-2023,Adults & Health,Vista Care Solutions,Daycare - Private Contractors Payment,383.2,0,COMMERCIAL SUPPLIER
01-06-2023,Adults & Health,Vista Care Solutions,Daycare - Private Contractors Payment,383.2,0,COMMERCIAL SUPPLIER
01-06-2023,Adults & Health,Vista Care Solutions,Daycare - Private Contractors Payment,383.2,0,COMMERCIAL SUPPLIER
01-06-2023,Adults & Health,Vista Care Solutions,Daycare - Private Contractors Payment,383.2,0,COMMERCIAL SUPPLIER
01-06-2023,Adults & Health,Vista Care Solutions,Daycare - Private Contractors Payment,383.2,0,COMMERCIAL SUPPLIER
01-06-2023,Adults & Health,Vista Care Solutions,Daycare - Private Contractors Payment,383.2,0,COMMERCIAL SUPPLIER
01-06-2023,Adults & Health,Vista Care Solutions,Daycare - Private Contractors Payment,383.2,0,COMMERCIAL SUPPLIER
01-06-2023,Adults & Health,Vista Care Solutions,Daycare - Private Contractors Payment,383.2,0,COMMERCIAL SUPPLIER
01-06-2023,Adults & Health,Vista Care Solutions,Home Care - Private Contractors Payment,637.07,0,COMMERCIAL SUPPLIER
01-06-2023,Adults & Health,Vista Care Solutions,Home Care - Private Contractors Payment,28.74,0,COMMERCIAL SUPPLIER
01-06-2023,Adults & Health,Vista Care Solutions,Home Care - Private Contractors Payment,637.07,0,COMMERCIAL SUPPLIER
01-06-2023,Adults & Health,Vista Care Solutions,Home Care - Private Contractors Payment,28.74,0,COMMERCIAL SUPPLIER
01-06-2023,Adults & Health,Vista Care Solutions,Home Care - Private Contractors Payment,637.07,0,COMMERCIAL SUPPLIER
01-06-2023,Adults & Health,Vista Care Solutions,Home Care - Private Contractors Payment,28.74,0,COMMERCIAL SUPPLIER
01-06-2023,Adults & Health,Vista Care Solutions,Home Care - Private Contractors Payment,637.07,0,COMMERCIAL SUPPLIER
01-06-2023,Adults & Health,Vista Care Solutions,Home Care - Private Contractors Payment,28.74,0,COMMERCIAL SUPPLIER
01-06-2023,Adults & Health,Vista Care Solutions,Home Care - Private Contractors Payment,47.9,0,COMMERCIAL SUPPLIER
01-06-2023,Adults & Health,Vista Care Solutions,Home Care - Private Contractors Payment,57.48,0,COMMERCIAL SUPPLIER
01-06-2023,Adults & Health,Vista Care Solutions,Home Care - Private Contractors Payment,67.06,0,COMMERCIAL SUPPLIER
01-06-2023,Adults & Health,Vista Care Solutions,Home Care - Private Contractors Payment,57.48,0,COMMERCIAL SUPPLIER
01-06-2023,Adults & Health,Vista Care Solutions,Home Care - Private Contractors Payment,67.06,0,COMMERCIAL SUPPLIER
01-06-2023,Adults & Health,Vista Care Solutions,Home Care - Private Contractors Payment,57.48,0,COMMERCIAL SUPPLIER
01-06-2023,Adults & Health,Vista Care Solutions,Home Care - Private Contractors Payment,57.48,0,COMMERCIAL SUPPLIER
01-06-2023,Adults & Health,Vista Care Solutions,Home Care - Private Contractors Payment,67.06,0,COMMERCIAL SUPPLIER
01-06-2023,Adults & Health,Vista Care Solutions,Home Care - Private Contractors Payment,402.36,0,COMMERCIAL SUPPLIER
01-06-2023,Adults & Health,Vista Care Solutions,Home Care - Private Contractors Payment,402.36,0,COMMERCIAL SUPPLIER
01-06-2023,Adults & Health,Vista Care Solutions,Home Care - Private Contractors Payment,402.36,0,COMMERCIAL SUPPLIER
01-06-2023,Adults & Health,Vista Care Solutions,Home Care - Private Contractors Payment,402.36,0,COMMERCIAL SUPPLIER
01-06-2023,Adults & Health,Vista Care Solutions,Home Care - Private Contractors Payment,201.18,0,COMMERCIAL SUPPLIER
01-06-2023,Adults & Health,Vista Care Solutions,Daycare - Private Contractors Payment,57.48,0,COMMERCIAL SUPPLIER
01-06-2023,Adults & Health,Vista Care Solutions,Home Care - Private Contractors Payment,201.18,0,COMMERCIAL SUPPLIER
01-06-2023,Adults & Health,Vista Care Solutions,Daycare - Private Contractors Payment,57.48,0,COMMERCIAL SUPPLIER
01-06-2023,Adults & Health,Vista Care Solutions,Home Care - Private Contractors Payment,201.18,0,COMMERCIAL SUPPLIER
01-06-2023,Adults & Health,Vista Care Solutions,Daycare - Private Contractors Payment,57.48,0,COMMERCIAL SUPPLIER
01-06-2023,Adults & Health,Vista Care Solutions,Home Care - Private Contractors Payment,201.18,0,COMMERCIAL SUPPLIER
01-06-2023,Adults & Health,Vista Care Solutions,Daycare - Private Contractors Payment,57.48,0,COMMERCIAL SUPPLIER
01-06-2023,Adults & Health,Vista Care Solutions,Home Care - Private Contractors Payment,76.64,0,COMMERCIAL SUPPLIER
01-06-2023,Adults & Health,Vista Care Solutions,Home Care - Private Contractors Payment,229.92,0,COMMERCIAL SUPPLIER
01-06-2023,Adults & Health,Vista Care Solutions,Daycare - Private Contractors Payment,114.96,0,COMMERCIAL SUPPLIER
01-06-2023,Adults & Health,Vista Care Solutions,Home Care - Private Contractors Payment,38.32,0,COMMERCIAL SUPPLIER
01-06-2023,Adults & Health,Vista Care Solutions,Home Care - Private Contractors Payment,134.12,0,COMMERCIAL SUPPLIER
01-06-2023,Adults & Health,Vista Care Solutions,Daycare - Private Contractors Payment,114.96,0,COMMERCIAL SUPPLIER
01-06-2023,Adults & Health,Vista Care Solutions,Home Care - Private Contractors Payment,38.32,0,COMMERCIAL SUPPLIER
01-06-2023,Adults & Health,Vista Care Solutions,Daycare - Private Contractors Payment,229.92,0,COMMERCIAL SUPPLIER
01-06-2023,Adults & Health,Vista Care Solutions,Home Care - Private Contractors Payment,134.12,0,COMMERCIAL SUPPLIER
01-06-2023,Adults & Health,Vista Care Solutions,Respite Care - Private Contractors Payment,95.8,0,COMMERCIAL SUPPLIER
01-06-2023,Adults & Health,Vista Care Solutions,Daycare - Private Contractors Payment,153.28,0,COMMERCIAL SUPPLIER
01-06-2023,Adults & Health,Vista Care Solutions,Home Care - Private Contractors Payment,268.24,0,COMMERCIAL SUPPLIER
01-06-2023,Adults & Health,Vista Care Solutions,Daycare - Private Contractors Payment,153.28,0,COMMERCIAL SUPPLIER
01-06-2023,Adults & Health,Vista Care Solutions,Home Care - Private Contractors Payment,268.24,0,COMMERCIAL SUPPLIER
01-06-2023,Adults & Health,Vista Care Solutions,Daycare - Private Contractors Payment,153.28,0,COMMERCIAL SUPPLIER
01-06-2023,Adults & Health,Vista Care Solutions,Home Care - Private Contractors Payment,268.24,0,COMMERCIAL SUPPLIER
01-06-2023,Adults & Health,Vista Care Solutions,Home Care - Private Contractors Payment,268.24,0,COMMERCIAL SUPPLIER
01-06-2023,Adults & Health,Vista Care Solutions,Daycare - Private Contractors Payment,153.28,0,COMMERCIAL SUPPLIER
01-06-2023,Adults & Health,Vista Care Solutions,Home Care - Private Contractors Payment,402.36,0,COMMERCIAL SUPPLIER
01-06-2023,Adults & Health,Vista Care Solutions,Home Care - Private Contractors Payment,402.36,0,COMMERCIAL SUPPLIER
01-06-2023,Adults & Health,Vista Care Solutions,Home Care - Private Contractors Payment,402.36,0,COMMERCIAL SUPPLIER
01-06-2023,Adults & Health,Vista Care Solutions,Home Care - Private Contractors Payment,402.36,0,COMMERCIAL SUPPLIER
01-06-2023,Adults & Health,Vista Care Solutions,Daycare - Private Contractors Payment,383.2,0,COMMERCIAL SUPPLIER
01-06-2023,Adults & Health,Vista Care Solutions,Daycare - Private Contractors Payment,383.2,0,COMMERCIAL SUPPLIER
01-06-2023,Adults & Health,Vista Care Solutions,Daycare - Private Contractors Payment,383.2,0,COMMERCIAL SUPPLIER
01-06-2023,Adults & Health,Vista Care Solutions,Daycare - Private Contractors Payment,383.2,0,COMMERCIAL SUPPLIER
01-06-2023,Adults & Health,Vista Care Solutions,Home Care - Private Contractors Payment,67.06,0,COMMERCIAL SUPPLIER
01-06-2023,Adults & Health,Vista Care Solutions,Home Care - Private Contractors Payment,57.48,0,COMMERCIAL SUPPLIER
01-06-2023,Adults & Health,Vista Care Solutions,Home Care - Private Contractors Payment,67.06,0,COMMERCIAL SUPPLIER
01-06-2023,Adults & Health,Vista Care Solutions,Home Care - Private Contractors Payment,57.48,0,COMMERCIAL SUPPLIER
01-06-2023,Adults & Health,Vista Care Solutions,Home Care - Private Contractors Payment,67.06,0,COMMERCIAL SUPPLIER
01-06-2023,Adults & Health,Vista Care Solutions,Home Care - Private Contractors Payment,57.48,0,COMMERCIAL SUPPLIER
01-06-2023,Adults & Health,Vista Care Solutions,Home Care - Private Contractors Payment,67.06,0,COMMERCIAL SUPPLIER
01-06-2023,Adults & Health,Vista Care Solutions,Home Care - Private Contractors Payment,57.48,0,COMMERCIAL SUPPLIER
01-06-2023,Adults & Health,Vista Care Solutions,Home Care - Private Contractors Payment,9.58,0,COMMERCIAL SUPPLIER
01-06-2023,Adults & Health,Vista Care Solutions,Daycare - Private Contractors Payment,38.32,0,COMMERCIAL SUPPLIER
01-06-2023,Adults & Health,Vista Care Solutions,Home Care - Private Contractors Payment,71.85,0,COMMERCIAL SUPPLIER
01-06-2023,Adults & Health,Vista Care Solutions,Home Care - Private Contractors Payment,71.85,0,COMMERCIAL SUPPLIER
01-06-2023,Adults & Health,Vista Care Solutions,Daycare - Private Contractors Payment,38.32,0,COMMERCIAL SUPPLIER
01-06-2023,Adults & Health,Vista Care Solutions,Home Care - Private Contractors Payment,71.85,0,COMMERCIAL SUPPLIER
01-06-2023,Adults & Health,Vista Care Solutions,Daycare - Private Contractors Payment,38.32,0,COMMERCIAL SUPPLIER
01-06-2023,Adults & Health,Vista Care Solutions,Home Care - Private Contractors Payment,71.85,0,COMMERCIAL SUPPLIER
01-06-2023,Adults & Health,Vista Care Solutions,Daycare - Private Contractors Payment,38.32,0,COMMERCIAL SUPPLIER
01-06-2023,Adults & Health,Vista Care Solutions,Home Care - Private Contractors Payment,67.06,0,COMMERCIAL SUPPLIER
01-06-2023,Adults & Health,Vista Care Solutions,Home Care - Private Contractors Payment,57.48,0,COMMERCIAL SUPPLIER
01-06-2023,Adults & Health,Vista Care Solutions,Home Care - Private Contractors Payment,67.06,0,COMMERCIAL SUPPLIER
01-06-2023,Adults & Health,Vista Care Solutions,Home Care - Private Contractors Payment,57.48,0,COMMERCIAL SUPPLIER
01-06-2023,Adults & Health,Vista Care Solutions,Home Care - Private Contractors Payment,57.48,0,COMMERCIAL SUPPLIER
01-06-2023,Adults & Health,Vista Care Solutions,Home Care - Private Contractors Payment,67.06,0,COMMERCIAL SUPPLIER
01-06-2023,Adults & Health,Vista Care Solutions,Home Care - Private Contractors Payment,57.48,0,COMMERCIAL SUPPLIER
01-06-2023,Adults & Health,Vista Care Solutions,Home Care - Private Contractors Payment,67.06,0,COMMERCIAL SUPPLIER
01-06-2023,Adults & Health,Vista Care Solutions,Home Care - Private Contractors Payment,325.72,0,COMMERCIAL SUPPLIER
01-06-2023,Adults & Health,Vista Care Solutions,Home Care - Private Contractors Payment,383.2,0,COMMERCIAL SUPPLIER
01-06-2023,Adults & Health,Vista Care Solutions,Home Care - Private Contractors Payment,268.24,0,COMMERCIAL SUPPLIER
01-06-2023,Adults & Health,Vista Care Solutions,Home Care - Private Contractors Payment,268.24,0,COMMERCIAL SUPPLIER
01-06-2023,Adults & Health,Vista Care Solutions,Daycare - Private Contractors Payment,383.2,0,COMMERCIAL SUPPLIER
01-06-2023,Adults & Health,Vista Care Solutions,Daycare - Private Contractors Payment,383.2,0,COMMERCIAL SUPPLIER
01-06-2023,Adults & Health,Vista Care Solutions,Daycare - Private Contractors Payment,383.2,0,COMMERCIAL SUPPLIER
01-06-2023,Adults & Health,Vista Care Solutions,Daycare - Private Contractors Payment,383.2,0,COMMERCIAL SUPPLIER
01-06-2023,Adults & Health,Vista Care Solutions,Home Care - Private Contractors Payment,84.74,0,COMMERCIAL SUPPLIER
01-06-2023,Adults & Health,Vista Care Solutions,Home Care - Private Contractors Payment,57.48,0,COMMERCIAL SUPPLIER
01-06-2023,Adults & Health,Vista Care Solutions,Home Care - Private Contractors Payment,67.06,0,COMMERCIAL SUPPLIER
01-06-2023,Adults & Health,Vista Care Solutions,Home Care - Private Contractors Payment,57.48,0,COMMERCIAL SUPPLIER
01-06-2023,Adults & Health,Vista Care Solutions,Home Care - Private Contractors Payment,71.82,0,COMMERCIAL SUPPLIER
01-06-2023,Adults & Health,Vista Care Solutions,Home Care - Private Contractors Payment,61.56,0,COMMERCIAL SUPPLIER
01-06-2023,Adults & Health,Vista Care Solutions,Home Care - Private Contractors Payment,61.56,0,COMMERCIAL SUPPLIER
01-06-2023,Adults & Health,Vista Care Solutions,Home Care - Private Contractors Payment,71.82,0,COMMERCIAL SUPPLIER
01-06-2023,Adults & Health,Vista Care Solutions,Daycare - Private Contractors Payment,355.52,0,COMMERCIAL SUPPLIER
01-06-2023,Adults & Health,Vista Care Solutions,Daycare - Private Contractors Payment,410.4,0,COMMERCIAL SUPPLIER
01-06-2023,Adults & Health,Vista Care Solutions,Daycare - Private Contractors Payment,383.2,0,COMMERCIAL SUPPLIER
01-06-2023,Adults & Health,Vista Care Solutions,Daycare - Private Contractors Payment,410.4,0,COMMERCIAL SUPPLIER
01-06-2023,RMS,Beacon Scaffolding Ltd,Private Contractors Payment - Other,619.2,0,CIS
02-06-2023,Inclusive Economy & Housing,Insurance Claims Accomodation Bureau Limited,Rents Payable,308,0,COMMERCIAL SUPPLIER
02-06-2023,Marketing,Personal Information - Redacted,Events,1800,0,COMMERCIAL SUPPLIER
02-06-2023,Inclusive Economy & Housing,Insurance Claims Accomodation Bureau Limited,Rents Payable,616.75,0,COMMERCIAL SUPPLIER
02-06-2023,Inclusive Economy & Housing,Insurance Claims Accomodation Bureau Limited,Rents Payable,1444.11,0,COMMERCIAL SUPPLIER
02-06-2023,Inclusive Economy & Housing,Insurance Claims Accomodation Bureau Limited,Rents Payable,989.95,0,COMMERCIAL SUPPLIER
02-06-2023,Inclusive Economy & Housing,Insurance Claims Accomodation Bureau Limited,Rents Payable,3288.41,0,COMMERCIAL SUPPLIER
02-06-2023,Inclusive Economy & Housing,Insurance Claims Accomodation Bureau Limited,Rents Payable,2791.01,0,COMMERCIAL SUPPLIER
02-06-2023,Inclusive Economy & Housing,Insurance Claims Accomodation Bureau Limited,Rents Payable,1076.93,0,COMMERCIAL SUPPLIER
02-06-2023,Inclusive Economy & Housing,Insurance Claims Accomodation Bureau Limited,Rents Payable,1228.73,0,COMMERCIAL SUPPLIER
02-06-2023,Inclusive Economy & Housing,Insurance Claims Accomodation Bureau Limited,Rents Payable,1504.71,0,COMMERCIAL SUPPLIER
02-06-2023,Inclusive Economy & Housing,Insurance Claims Accomodation Bureau Limited,Rents Payable,961.11,0,COMMERCIAL SUPPLIER
02-06-2023,Inclusive Economy & Housing,Insurance Claims Accomodation Bureau Limited,Rents Payable,961.11,0,COMMERCIAL SUPPLIER
02-06-2023,Inclusive Economy & Housing,Insurance Claims Accomodation Bureau Limited,Rents Payable,1504.71,0,COMMERCIAL SUPPLIER
02-06-2023,Inclusive Economy & Housing,Insurance Claims Accomodation Bureau Limited,Rents Payable,1436.31,0,COMMERCIAL SUPPLIER
02-06-2023,Inclusive Economy & Housing,Insurance Claims Accomodation Bureau Limited,Rents Payable,1511.91,0,COMMERCIAL SUPPLIER
02-06-2023,Inclusive Economy & Housing,Insurance Claims Accomodation Bureau Limited,Rents Payable,2588.25,0,COMMERCIAL SUPPLIER
02-06-2023,Housing Revenue Account,Zirkon Ltd,"Maintenance - Equipment, Furniture And Materials",3370,0,COMMERCIAL SUPPLIER
02-06-2023,Housing Revenue Account,Sharpe Pritchard LLP,Legal Fees,7000,0,COMMERCIAL SUPPLIER
02-06-2023,Inclusive Economy & Housing,Hays Specialist Recruitment Ltd,Staff Recruitment Costs,2652.6,0,VENDOR
02-06-2023,Housing Revenue Account,Reed & Co Solicitors,Legal Fees,3750,0,COMMERCIAL SUPPLIER
02-06-2023,oneSource - Non Shared,J Wallis Consulting Ltd,Consultancy Fees,3550,0,COMMERCIAL SUPPLIER
02-06-2023,Adults & Health,Stannah Lift Services Ltd,Private Contractors Payment - Other,3867,0,CIS
02-06-2023,Adults & Health,Stannah Lift Services Ltd,Private Contractors Payment - Other,7894,0,CIS
02-06-2023,Adults & Health,Supply Chain Coordination Ltd (SCCL),Salaries,2179.19,0,NHS BODIES
02-06-2023,oneSource - Non Shared,L.A. Cooling ltd,Health And Safety Works,3078,0,COMMERCIAL SUPPLIER
02-06-2023,Environment and Sustainable Transport,Greener Solutions,Highway Services,218.75,0,VENDOR
02-06-2023,Inclusive Economy & Housing,Compactor Rentals Ltd,Hire - Equipment Furniture And Materials,520,0,COMMERCIAL SUPPLIER
02-06-2023,Housing Revenue Account,Zirkon Ltd,Private Contractors Payment - Other,24684,0,COMMERCIAL SUPPLIER
02-06-2023,oneSource - Non Shared,London and South East Electrical Ltd,"Maintenance - Equipment, Furniture And Materials",385,0,COMMERCIAL SUPPLIER
02-06-2023,Environment and Sustainable Transport,Safeplay Playground Services Ltd,"Maintenance - Equipment, Furniture And Materials",3460,0,CIS
02-06-2023,Environment and Sustainable Transport,Safeplay Playground Services Ltd,"Maintenance - Equipment, Furniture And Materials",1730,0,CIS
02-06-2023,Environment and Sustainable Transport,PD Construction Limited,Building Alterations And Materials,1448,0,COMMERCIAL SUPPLIER
02-06-2023,Environment and Sustainable Transport,PD Construction Limited,Building Alterations And Materials,369.6,0,COMMERCIAL SUPPLIER
02-06-2023,Environment and Sustainable Transport,PD Construction Limited,Building Alterations And Materials,340,0,COMMERCIAL SUPPLIER
02-06-2023,Environment and Sustainable Transport,PD Construction Limited,Building Alterations And Materials,6864,0,COMMERCIAL SUPPLIER
02-06-2023,Children and Young People,Crown Records Management Ltd,Private Contractors Payment - Other,394.14,0,VENDOR
02-06-2023,Adults & Health,Crown Records Management Ltd,Private Contractors Payment - Other,475.89,0,VENDOR
02-06-2023,Adults & Health,Crown Records Management Ltd,Private Contractors Payment - Other,575.81,0,VENDOR
02-06-2023,RMS,Travis Perkins Trading Company Ltd,Building Alterations And Materials,444.5,0,COMMERCIAL SUPPLIER
02-06-2023,Children and Young People,Goldline Executive Travel,Client Transport,1500,0,COMMERCIAL SUPPLIER
02-06-2023,Children and Young People,Goldline Executive Travel,Client Transport,1500,0,COMMERCIAL SUPPLIER
02-06-2023,Children and Young People,Goldline Executive Travel,Client Transport,3000,0,COMMERCIAL SUPPLIER
02-06-2023,Children and Young People,Goldline Executive Travel,Client Transport,3750,0,COMMERCIAL SUPPLIER
02-06-2023,Inclusive Economy & Housing,Insurance Claims Accomodation Bureau Limited,Rents Payable,276.28,0,COMMERCIAL SUPPLIER
02-06-2023,Inclusive Economy & Housing,Insurance Claims Accomodation Bureau Limited,Rents Payable,586.54,0,COMMERCIAL SUPPLIER
02-06-2023,Inclusive Economy & Housing,Insurance Claims Accomodation Bureau Limited,Rents Payable,473.11,0,COMMERCIAL SUPPLIER
02-06-2023,Inclusive Economy & Housing,Insurance Claims Accomodation Bureau Limited,Rents Payable,1460.65,0,COMMERCIAL SUPPLIER
02-06-2023,Inclusive Economy & Housing,Insurance Claims Accomodation Bureau Limited,Rents Payable,1046.63,0,COMMERCIAL SUPPLIER
02-06-2023,Inclusive Economy & Housing,Insurance Claims Accomodation Bureau Limited,Rents Payable,448.85,0,COMMERCIAL SUPPLIER
02-06-2023,Inclusive Economy & Housing,Insurance Claims Accomodation Bureau Limited,Rents Payable,639.51,0,COMMERCIAL SUPPLIER
02-06-2023,Inclusive Economy & Housing,Insurance Claims Accomodation Bureau Limited,Rents Payable,609.26,0,COMMERCIAL SUPPLIER
02-06-2023,Inclusive Economy & Housing,Insurance Claims Accomodation Bureau Limited,Rents Payable,405.41,0,COMMERCIAL SUPPLIER
02-06-2023,Inclusive Economy & Housing,Insurance Claims Accomodation Bureau Limited,Rents Payable,360.41,0,COMMERCIAL SUPPLIER
02-06-2023,Inclusive Economy & Housing,Insurance Claims Accomodation Bureau Limited,Rents Payable,609.26,0,COMMERCIAL SUPPLIER
02-06-2023,Inclusive Economy & Housing,Insurance Claims Accomodation Bureau Limited,Rents Payable,583.61,0,COMMERCIAL SUPPLIER
02-06-2023,Inclusive Economy & Housing,Insurance Claims Accomodation Bureau Limited,Rents Payable,716.84,0,COMMERCIAL SUPPLIER
02-06-2023,Inclusive Economy & Housing,Insurance Claims Accomodation Bureau Limited,Rents Payable,1434.33,0,COMMERCIAL SUPPLIER
02-06-2023,Environment and Sustainable Transport,Sparshatt Truck & Van Ltd,Highway Services,554.76,0,COMMERCIAL SUPPLIER
02-06-2023,Environment and Sustainable Transport,Sparshatt Truck & Van Ltd,Highway Services,12.68,0,COMMERCIAL SUPPLIER
02-06-2023,Environment and Sustainable Transport,Sparshatt Truck & Van Ltd,Highway Services,24.58,0,COMMERCIAL SUPPLIER
02-06-2023,Environment and Sustainable Transport,Sparshatt Truck & Van Ltd,Highway Services,25,0,COMMERCIAL SUPPLIER
02-06-2023,Environment and Sustainable Transport,Sparshatt Truck & Van Ltd,Highway Services,18.72,0,COMMERCIAL SUPPLIER
02-06-2023,Environment and Sustainable Transport,Sparshatt Truck & Van Ltd,Highway Services,10.66,0,COMMERCIAL SUPPLIER
02-06-2023,Environment and Sustainable Transport,Sparshatt Truck & Van Ltd,Highway Services,52.8,0,COMMERCIAL SUPPLIER
02-06-2023,Environment and Sustainable Transport,Rushton Workwear Ltd,Highway Services,862.5,0,COMMERCIAL SUPPLIER
02-06-2023,Environment and Sustainable Transport,Rushton Workwear Ltd,Highway Services,35,0,COMMERCIAL SUPPLIER
02-06-2023,RMS,Travis Perkins Trading Company Ltd,Building Alterations And Materials,389.76,0,COMMERCIAL SUPPLIER
02-06-2023,RMS,Travis Perkins Trading Company Ltd,Building Alterations And Materials,1035.2,0,COMMERCIAL SUPPLIER
02-06-2023,RMS,Travis Perkins Trading Company Ltd,Building Alterations And Materials,317.4,0,COMMERCIAL SUPPLIER
02-06-2023,RMS,Travis Perkins Trading Company Ltd,Building Alterations And Materials,73.7,0,COMMERCIAL SUPPLIER
02-06-2023,RMS,Travis Perkins Trading Company Ltd,Building Alterations And Materials,44.7,0,COMMERCIAL SUPPLIER
02-06-2023,RMS,Travis Perkins Trading Company Ltd,Building Alterations And Materials,41.9,0,COMMERCIAL SUPPLIER
02-06-2023,RMS,Travis Perkins Trading Company Ltd,Building Alterations And Materials,370,0,COMMERCIAL SUPPLIER
02-06-2023,RMS,Travis Perkins Trading Company Ltd,Building Alterations And Materials,257.38,0,COMMERCIAL SUPPLIER
02-06-2023,RMS,Travis Perkins Trading Company Ltd,Building Alterations And Materials,348.48,0,COMMERCIAL SUPPLIER
02-06-2023,RMS,Travis Perkins Trading Company Ltd,Building Alterations And Materials,294.9,0,COMMERCIAL SUPPLIER
02-06-2023,RMS,Travis Perkins Trading Company Ltd,Building Alterations And Materials,300,0,COMMERCIAL SUPPLIER
02-06-2023,RMS,Travis Perkins Trading Company Ltd,Building Alterations And Materials,2358.6,0,COMMERCIAL SUPPLIER
02-06-2023,RMS,Travis Perkins Trading Company Ltd,Building Alterations And Materials,1477,0,COMMERCIAL SUPPLIER
02-06-2023,RMS,Travis Perkins Trading Company Ltd,Building Alterations And Materials,123,0,COMMERCIAL SUPPLIER
02-06-2023,RMS,Travis Perkins Trading Company Ltd,Building Alterations And Materials,151.5,0,COMMERCIAL SUPPLIER
02-06-2023,RMS,Travis Perkins Trading Company Ltd,Building Alterations And Materials,608.9,0,COMMERCIAL SUPPLIER
02-06-2023,RMS,Travis Perkins Trading Company Ltd,Building Alterations And Materials,50,0,COMMERCIAL SUPPLIER
02-06-2023,RMS,Travis Perkins Trading Company Ltd,Building Alterations And Materials,116,0,COMMERCIAL SUPPLIER
02-06-2023,RMS,Travis Perkins Trading Company Ltd,Building Alterations And Materials,82,0,COMMERCIAL SUPPLIER
02-06-2023,RMS,Travis Perkins Trading Company Ltd,Building Alterations And Materials,93.73,0,COMMERCIAL SUPPLIER
02-06-2023,RMS,Travis Perkins Trading Company Ltd,Building Alterations And Materials,83.33,0,COMMERCIAL SUPPLIER
02-06-2023,RMS,Travis Perkins Trading Company Ltd,Building Alterations And Materials,187.33,0,COMMERCIAL SUPPLIER
02-06-2023,RMS,Travis Perkins Trading Company Ltd,Building Alterations And Materials,318.4,0,COMMERCIAL SUPPLIER
02-06-2023,RMS,Travis Perkins Trading Company Ltd,Building Alterations And Materials,14400,0,COMMERCIAL SUPPLIER
02-06-2023,RMS,Travis Perkins Trading Company Ltd,Building Alterations And Materials,738.92,0,COMMERCIAL SUPPLIER
02-06-2023,RMS,Travis Perkins Trading Company Ltd,Building Alterations And Materials,226,0,COMMERCIAL SUPPLIER
02-06-2023,RMS,Travis Perkins Trading Company Ltd,Building Alterations And Materials,1129.52,0,COMMERCIAL SUPPLIER
02-06-2023,RMS,Travis Perkins Trading Company Ltd,Building Alterations And Materials,1129.52,0,COMMERCIAL SUPPLIER
02-06-2023,RMS,Travis Perkins Trading Company Ltd,Building Alterations And Materials,405.6,0,COMMERCIAL SUPPLIER
02-06-2023,RMS,Travis Perkins Trading Company Ltd,Building Alterations And Materials,786.12,0,COMMERCIAL SUPPLIER
02-06-2023,RMS,Travis Perkins Trading Company Ltd,Building Alterations And Materials,779.12,0,COMMERCIAL SUPPLIER
02-06-2023,RMS,Commercial Drainage Services (Essex) Ltd,Private Contractors Payment - Other,581,0,COMMERCIAL SUPPLIER
02-06-2023,RMS,Commercial Drainage Services (Essex) Ltd,Private Contractors Payment - Other,150,0,COMMERCIAL SUPPLIER
02-06-2023,RMS,S & S Plastics Ltd,Building Alterations And Materials,1277.4,0,VENDOR
02-06-2023,Adults & Health,Sayers (Car Hire),Payments To Voluntary Sector,80,0,VENDOR
02-06-2023,Adults & Health,Sayers (Car Hire),Payments To Voluntary Sector,120,0,VENDOR
02-06-2023,Adults & Health,Sayers (Car Hire),Payments To Voluntary Sector,120,0,VENDOR
02-06-2023,Adults & Health,Sayers (Car Hire),Payments To Voluntary Sector,40,0,VENDOR
02-06-2023,Adults & Health,Sayers (Car Hire),Payments To Voluntary Sector,120,0,VENDOR
02-06-2023,Children and Young People,Barrington Son & Associates,Ict Hardware,1828,0,VENDOR
02-06-2023,Housing Revenue Account,British Gas Trading Ltd,Facilities Management,573.83,0,COMMERCIAL SUPPLIER
02-06-2023,Housing Revenue Account,British Gas Trading Ltd,Facilities Management,-127.72,0,COMMERCIAL SUPPLIER
02-06-2023,Housing Revenue Account,British Gas Trading Ltd,Facilities Management,8.67,0,COMMERCIAL SUPPLIER
02-06-2023,Children and Young People,Bramley Care Ltd t/a Apple Orchard,Residential Placements - Private Contractors Payment,3866.24,0,NON COMMERCIAL SUPPLIER
02-06-2023,Children and Young People,Bramley Care Ltd t/a Apple Orchard,Residential Placements - Private Contractors Payment,3866.24,0,NON COMMERCIAL SUPPLIER
02-06-2023,Children and Young People,Bramley Care Ltd t/a Apple Orchard,Residential Placements - Private Contractors Payment,3866.24,0,NON COMMERCIAL SUPPLIER
02-06-2023,Children and Young People,Bramley Care Ltd t/a Apple Orchard,Residential Placements - Private Contractors Payment,3866.24,0,NON COMMERCIAL SUPPLIER
02-06-2023,Children and Young People,Bramley Care Ltd t/a Apple Orchard,Residential Placements - Private Contractors Payment,3866.24,0,NON COMMERCIAL SUPPLIER
02-06-2023,Children and Young People,Bramley Care Ltd t/a Apple Orchard,Residential Placements - Private Contractors Payment,3866.24,0,NON COMMERCIAL SUPPLIER
02-06-2023,Children and Young People,Bramley Care Ltd t/a Apple Orchard,Residential Placements - Private Contractors Payment,3866.24,0,NON COMMERCIAL SUPPLIER
02-06-2023,Children and Young People,Bramley Care Ltd t/a Apple Orchard,Residential Placements - Private Contractors Payment,3866.24,0,NON COMMERCIAL SUPPLIER
02-06-2023,Children and Young People,Bramley Care Ltd t/a Apple Orchard,Residential Placements - Private Contractors Payment,3866.24,0,NON COMMERCIAL SUPPLIER
02-06-2023,Children and Young People,Bramley Care Ltd t/a Apple Orchard,Residential Placements - Private Contractors Payment,3866.24,0,NON COMMERCIAL SUPPLIER
02-06-2023,Children and Young People,Bramley Care Ltd t/a Apple Orchard,Residential Placements - Private Contractors Payment,3866.24,0,NON COMMERCIAL SUPPLIER
02-06-2023,Children and Young People,Bramley Care Ltd t/a Apple Orchard,Residential Placements - Private Contractors Payment,3866.24,0,NON COMMERCIAL SUPPLIER
02-06-2023,Children and Young People,Bramley Care Ltd t/a Apple Orchard,Residential Placements - Private Contractors Payment,3866.24,0,NON COMMERCIAL SUPPLIER
02-06-2023,Inclusive Economy & Housing,Edwards Duthie Shamash Solicitors.,Legal Fees,8750,0,LEGAL SERVICES
02-06-2023,Housing Revenue Account,Catch22 Charity Ltd,Premises Hire - Facilities,1923.72,0,VOLUNTARY ORGANISATION
02-06-2023,Housing Revenue Account,EDF Energy,Facilities Management,168,0,COMMERCIAL SUPPLIER
02-06-2023,Housing Revenue Account,EDF Energy,Facilities Management,1485.2,0,COMMERCIAL SUPPLIER
02-06-2023,Adults & Health,Mr Lindsay G Knight t/a Human Stories,Events,1552.73,0,COMMERCIAL SUPPLIER
02-06-2023,Environment and Sustainable Transport,RFW Engineering Ltd,"Purchase - Equipment, Furniture And Materials",1460,0,COMMERCIAL SUPPLIER
02-06-2023,RMS,Beacon Scaffolding Ltd,Private Contractors Payment - Other,1500,0,CIS
02-06-2023,RMS,Beacon Scaffolding Ltd,Private Contractors Payment - Other,1100.64,0,CIS
02-06-2023,Children and Young People,Jamores Limited T/A Jamores Homes,Other Contributions & Reimbursements (Income),55.71,0,INDIVIDUALS
02-06-2023,Children and Young People,Jamores Limited T/A Jamores Homes,Other Contributions & Reimbursements (Income),5844.7,0,INDIVIDUALS
02-06-2023,Children and Young People,Jamores Limited T/A Jamores Homes,Other Contributions & Reimbursements (Income),5844.7,0,INDIVIDUALS
02-06-2023,Children and Young People,Jamores Limited T/A Jamores Homes,Other Contributions & Reimbursements (Income),5844.7,0,INDIVIDUALS
02-06-2023,Children and Young People,Jamores Limited T/A Jamores Homes,Other Contributions & Reimbursements (Income),4174.79,0,INDIVIDUALS
02-06-2023,Environment and Sustainable Transport,Cyclehoop Ltd,"Maintenance - Equipment, Furniture And Materials",745.5,0,COMMERCIAL SUPPLIER
02-06-2023,Dedicated Schools Budget,Personal Information - Redacted,Professional Services - General,17462,0,VENDOR
02-06-2023,oneSource,Cisilion Ltd,Ict Hardware,2230,0,COMMERCIAL SUPPLIER
02-06-2023,Marketing,Iroko Theatre Company,Arts And Leisure Costs,325,0,NON COMMERCIAL SUPPLIER
02-06-2023,Marketing,Iroko Theatre Company,Arts And Leisure Costs,300,0,NON COMMERCIAL SUPPLIER
02-06-2023,Environment and Sustainable Transport,Riverside Truck Rental Ltd,Vehicle Hire,4577,0,COMMERCIAL SUPPLIER
02-06-2023,Environment and Sustainable Transport,Riverside Truck Rental Ltd,Vehicle Hire,4577,0,COMMERCIAL SUPPLIER
02-06-2023,Environment and Sustainable Transport,Riverside Truck Rental Ltd,Vehicle Hire,4577,0,COMMERCIAL SUPPLIER
02-06-2023,Environment and Sustainable Transport,Riverside Truck Rental Ltd,Vehicle Hire,4577,0,COMMERCIAL SUPPLIER
02-06-2023,Housing Revenue Account,L.E.Law Services Ltd,Legal Fees,2000,0,NON COMMERCIAL SUPPLIER
02-06-2023,Marketing,Personal Information - Redacted,Events,965,0,INDIVIDUALS
02-06-2023,Marketing,Personal Information - Redacted,Legal Fees,975,0,INDIVIDUALS
02-06-2023,Housing Revenue Account,Bond Turner,Legal Fees,5050,0,INDIVIDUALS
02-06-2023,Housing Revenue Account,Liberty Solicitors,Legal Fees,1500,0,NON COMMERCIAL SUPPLIER
02-06-2023,RMS,Hmg building services ltd,Private Contractors Payment - Other,1380,0,CIS
02-06-2023,RMS,Hmg building services ltd,Private Contractors Payment - Other,802,0,CIS
02-06-2023,RMS,Hmg building services ltd,Private Contractors Payment - Other,1050,0,CIS
02-06-2023,Inclusive Economy & Housing,ST John Chartered Surveyors,Private Contractors Payment - Other,300,0,COMMERCIAL SUPPLIER
02-06-2023,RMS,Vbh (GB) Ltd,Building Alterations And Materials,2906,0,VENDOR
02-06-2023,Environment and Sustainable Transport,Marvall Services Ltd,"Purchase - Equipment, Furniture And Materials",1160,0,COMMERCIAL SUPPLIER
02-06-2023,Environment and Sustainable Transport,Marvall Services Ltd,"Purchase - Equipment, Furniture And Materials",3.93,0,COMMERCIAL SUPPLIER
02-06-2023,Environment and Sustainable Transport,Marvall Services Ltd,"Purchase - Equipment, Furniture And Materials",1.99,0,COMMERCIAL SUPPLIER
02-06-2023,Environment and Sustainable Transport,Marvall Services Ltd,"Purchase - Equipment, Furniture And Materials",3.95,0,COMMERCIAL SUPPLIER
02-06-2023,Environment and Sustainable Transport,Marvall Services Ltd,"Purchase - Equipment, Furniture And Materials",4,0,COMMERCIAL SUPPLIER
02-06-2023,Environment and Sustainable Transport,Marvall Services Ltd,"Purchase - Equipment, Furniture And Materials",4.35,0,COMMERCIAL SUPPLIER
02-06-2023,Environment and Sustainable Transport,Marvall Services Ltd,"Purchase - Equipment, Furniture And Materials",54.34,0,COMMERCIAL SUPPLIER
02-06-2023,Environment and Sustainable Transport,Marvall Services Ltd,"Purchase - Equipment, Furniture And Materials",23.61,0,COMMERCIAL SUPPLIER
02-06-2023,Environment and Sustainable Transport,Marvall Services Ltd,"Purchase - Equipment, Furniture And Materials",23.61,0,COMMERCIAL SUPPLIER
02-06-2023,Environment and Sustainable Transport,Marvall Services Ltd,"Purchase - Equipment, Furniture And Materials",127.08,0,COMMERCIAL SUPPLIER
02-06-2023,Environment and Sustainable Transport,Marvall Services Ltd,"Purchase - Equipment, Furniture And Materials",8,0,COMMERCIAL SUPPLIER
02-06-2023,Children and Young People,Tillian Consultancy Ltd,Consultancy Fees,5500,0,COMMERCIAL SUPPLIER
02-06-2023,Adults & Health,Highland Care Uk Ltd,Home Care - Private Contractors Payment,397.57,0,VENDOR
02-06-2023,Adults & Health,Highland Care Uk Ltd,Home Care - Private Contractors Payment,129.33,0,VENDOR
02-06-2023,Adults & Health,Highland Care Uk Ltd,Home Care - Private Contractors Payment,124.54,0,VENDOR
02-06-2023,Adults & Health,Highland Care Uk Ltd,Daycare - Private Contractors Payment,38.32,0,VENDOR
02-06-2023,Adults & Health,Highland Care Uk Ltd,Home Care - Private Contractors Payment,397.57,0,VENDOR
02-06-2023,Adults & Health,Highland Care Uk Ltd,Home Care - Private Contractors Payment,397.57,0,VENDOR
02-06-2023,Adults & Health,Unity Works Social Enterprises,Daycare - Private Contractors Payment,65,0,NON COMMERCIAL SUPPLIER
02-06-2023,Adults & Health,Unity Works Social Enterprises,Daycare - Private Contractors Payment,65,0,NON COMMERCIAL SUPPLIER
02-06-2023,Adults & Health,Unity Works Social Enterprises,Daycare - Private Contractors Payment,65,0,NON COMMERCIAL SUPPLIER
02-06-2023,Adults & Health,Unity Works Social Enterprises,Daycare - Private Contractors Payment,65,0,NON COMMERCIAL SUPPLIER
02-06-2023,Adults & Health,Vista Care Solutions,Home Care - Private Contractors Payment,224.72,0,COMMERCIAL SUPPLIER
02-06-2023,Adults & Health,Vista Care Solutions,Daycare - Private Contractors Payment,38.32,0,COMMERCIAL SUPPLIER
02-06-2023,Adults & Health,Vista Care Solutions,Home Care - Private Contractors Payment,268.24,0,COMMERCIAL SUPPLIER
02-06-2023,Adults & Health,Vista Care Solutions,Daycare - Private Contractors Payment,41.04,0,COMMERCIAL SUPPLIER
02-06-2023,Adults & Health,Vista Care Solutions,Home Care - Private Contractors Payment,287.28,0,COMMERCIAL SUPPLIER
02-06-2023,Adults & Health,Vista Care Solutions,Daycare - Private Contractors Payment,41.04,0,COMMERCIAL SUPPLIER
02-06-2023,Adults & Health,Vista Care Solutions,Home Care - Private Contractors Payment,287.28,0,COMMERCIAL SUPPLIER
02-06-2023,Adults & Health,Vista Care Solutions,Daycare - Private Contractors Payment,38.32,0,COMMERCIAL SUPPLIER
02-06-2023,Inclusive Economy & Housing,Duncan Lewis Solicitors,Legal Fees,29021.93,0,VENDOR
02-06-2023,Environment and Sustainable Transport,W Hardy Ltd,Building Alterations And Materials,850,0,CIS
02-06-2023,oneSource - Non Shared,W Hardy Ltd,Building Alterations And Materials,490,0,CIS
03-06-2023,RMS,London Network for Pest Solutions Ltd,Private Contractors Payment - Other,1450,0,COMMERCIAL SUPPLIER
03-06-2023,Marketing,SMH Events Ltd,Events,389.5,0,COMMERCIAL SUPPLIER
03-06-2023,Housing Revenue Account,London Network for Pest Solutions Ltd,Private Contractors Payment - Other,1510,0,COMMERCIAL SUPPLIER
03-06-2023,Housing Revenue Account,London Network for Pest Solutions Ltd,Private Contractors Payment - Other,570,0,COMMERCIAL SUPPLIER
03-06-2023,Housing Revenue Account,London Network for Pest Solutions Ltd,Private Contractors Payment - Other,775,0,COMMERCIAL SUPPLIER
03-06-2023,Housing Revenue Account,London Network for Pest Solutions Ltd,Private Contractors Payment - Other,1630,0,COMMERCIAL SUPPLIER
03-06-2023,oneSource - Non Shared,London Network for Pest Solutions Ltd,Salaries,390,0,COMMERCIAL SUPPLIER
03-06-2023,oneSource - Non Shared,London Network for Pest Solutions Ltd,Salaries,390,0,COMMERCIAL SUPPLIER
03-06-2023,oneSource - Non Shared,London Network for Pest Solutions Ltd,Salaries,390,0,COMMERCIAL SUPPLIER
03-06-2023,RMS,London Network for Pest Solutions Ltd,Private Contractors Payment - Other,500,0,COMMERCIAL SUPPLIER
03-06-2023,RMS,London Network for Pest Solutions Ltd,Private Contractors Payment - Other,415,0,COMMERCIAL SUPPLIER
03-06-2023,RMS,London Network for Pest Solutions Ltd,Private Contractors Payment - Other,395,0,COMMERCIAL SUPPLIER
03-06-2023,RMS,London Network for Pest Solutions Ltd,Private Contractors Payment - Other,500,0,COMMERCIAL SUPPLIER
03-06-2023,Children and Young People,Personal Information - Redacted,Legal Fees,800,0,NON COMMERCIAL SUPPLIER
03-06-2023,RMS,Hmg building services ltd,Private Contractors Payment - Other,3000,0,CIS
04-06-2023,Environment and Sustainable Transport,Mjm Supplies Ltd,Highway Services,691.2,0,VENDOR
04-06-2023,Environment and Sustainable Transport,Mjm Supplies Ltd,Highway Services,691.2,0,VENDOR
04-06-2023,Environment and Sustainable Transport,BC Digger Hire & Grounworks Ltd,Open Spaces Works,375,0,CIS
04-06-2023,Environment and Sustainable Transport,BC Digger Hire & Grounworks Ltd,Open Spaces Works,1630,0,CIS
04-06-2023,RMS,Travis Perkins Trading Company Ltd,Building Alterations And Materials,882.35,0,COMMERCIAL SUPPLIER
04-06-2023,RMS,Travis Perkins Trading Company Ltd,Building Alterations And Materials,123.54,0,COMMERCIAL SUPPLIER
04-06-2023,Marketing,Newham Poetry Group,Events,300,0,NON COMMERCIAL SUPPLIER
04-06-2023,Digital,Personal Information - Redacted,Printing,100.71,0,Employee
04-06-2023,Children and Young People,Personal Information - Redacted,Payment To Private Sector Landlords (Psl),677.07,0,INDIVIDUALS
04-06-2023,Children and Young People,Personal Information - Redacted,Payment To Private Sector Landlords (Psl),675,0,INDIVIDUALS
04-06-2023,Children and Young People,Personal Information - Redacted,Additional Placements - Third Party,546,0,INDIVIDUALS
04-06-2023,oneSource - Non Shared,W Hardy Ltd,Building Alterations And Materials,350,0,CIS
04-06-2023,Housing Revenue Account,W Hardy Ltd,Building Alterations And Materials,275,0,CIS
05-06-2023,Marketing,Personal Information - Redacted,Events,300,0,INDIVIDUALS
05-06-2023,RMS,GB Macks Skips,Refuse Collection,18285,0,COMMERCIAL SUPPLIER
05-06-2023,Inclusive Economy & Housing,Insurance Claims Accomodation Bureau Limited,Rents Payable,924,0,COMMERCIAL SUPPLIER
05-06-2023,Inclusive Economy & Housing,Insurance Claims Accomodation Bureau Limited,Rents Payable,731.5,0,COMMERCIAL SUPPLIER
05-06-2023,Inclusive Economy & Housing,Insurance Claims Accomodation Bureau Limited,Rents Payable,440,0,COMMERCIAL SUPPLIER
05-06-2023,Inclusive Economy & Housing,Insurance Claims Accomodation Bureau Limited,Rents Payable,352,0,COMMERCIAL SUPPLIER
05-06-2023,Inclusive Economy & Housing,Insurance Claims Accomodation Bureau Limited,Rents Payable,357.5,0,COMMERCIAL SUPPLIER
05-06-2023,Inclusive Economy & Housing,Insurance Claims Accomodation Bureau Limited,Rents Payable,770,0,COMMERCIAL SUPPLIER
05-06-2023,Inclusive Economy & Housing,Insurance Claims Accomodation Bureau Limited,Rents Payable,616,0,COMMERCIAL SUPPLIER
05-06-2023,Inclusive Economy & Housing,Insurance Claims Accomodation Bureau Limited,Rents Payable,462,0,COMMERCIAL SUPPLIER
05-06-2023,Inclusive Economy & Housing,Insurance Claims Accomodation Bureau Limited,Rents Payable,308,0,COMMERCIAL SUPPLIER
05-06-2023,Inclusive Economy & Housing,Insurance Claims Accomodation Bureau Limited,Rents Payable,385,0,COMMERCIAL SUPPLIER
05-06-2023,Inclusive Economy & Housing,Insurance Claims Accomodation Bureau Limited,Rents Payable,2798.21,0,COMMERCIAL SUPPLIER
05-06-2023,Adults & Health,Impact Project Solutions Ltd,Home Care - Private Contractors Payment,13.25,0,NON COMMERCIAL SUPPLIER
05-06-2023,Adults & Health,Impact Project Solutions Ltd,Home Care - Private Contractors Payment,13.25,0,NON COMMERCIAL SUPPLIER
05-06-2023,Adults & Health,Impact Project Solutions Ltd,Home Care - Private Contractors Payment,239.9,0,NON COMMERCIAL SUPPLIER
05-06-2023,Adults & Health,Impact Project Solutions Ltd,Home Care - Private Contractors Payment,13.25,0,NON COMMERCIAL SUPPLIER
05-06-2023,Adults & Health,Impact Project Solutions Ltd,Home Care - Private Contractors Payment,239.9,0,NON COMMERCIAL SUPPLIER
05-06-2023,Adults & Health,Impact Project Solutions Ltd,Home Care - Private Contractors Payment,239.9,0,NON COMMERCIAL SUPPLIER
05-06-2023,Adults & Health,Impact Project Solutions Ltd,Home Care - Private Contractors Payment,13.25,0,NON COMMERCIAL SUPPLIER
05-06-2023,Adults & Health,Impact Project Solutions Ltd,Home Care - Private Contractors Payment,239.9,0,NON COMMERCIAL SUPPLIER
05-06-2023,Adults & Health,Impact Project Solutions Ltd,Home Care - Private Contractors Payment,13.25,0,NON COMMERCIAL SUPPLIER
05-06-2023,Adults & Health,Impact Project Solutions Ltd,Home Care - Private Contractors Payment,239.9,0,NON COMMERCIAL SUPPLIER
05-06-2023,Marketing,Writerz & Scribez CIC,Events,4800,0,COMMERCIAL SUPPLIER
05-06-2023,Adults & Health,London Care Plc,Home Care - Private Contractors Payment,143.64,0,COMMERCIAL SUPPLIER
05-06-2023,Adults & Health,London Care Plc,Home Care - Private Contractors Payment,359.1,0,COMMERCIAL SUPPLIER
05-06-2023,Adults & Health,London Care Plc,Home Care - Private Contractors Payment,138.51,0,COMMERCIAL SUPPLIER
05-06-2023,Adults & Health,London Care Plc,Respite Care - Private Contractors Payment,246.24,0,COMMERCIAL SUPPLIER
05-06-2023,Adults & Health,London Care Plc,Home Care - Private Contractors Payment,359.1,0,COMMERCIAL SUPPLIER
05-06-2023,Adults & Health,London Care Plc,Home Care - Private Contractors Payment,30.78,0,COMMERCIAL SUPPLIER
05-06-2023,Adults & Health,London Care Plc,Home Care - Private Contractors Payment,179.55,0,COMMERCIAL SUPPLIER
05-06-2023,Adults & Health,London Care Plc,Home Care - Private Contractors Payment,20.52,0,COMMERCIAL SUPPLIER
05-06-2023,Adults & Health,London Care Plc,Home Care - Private Contractors Payment,215.46,0,COMMERCIAL SUPPLIER
05-06-2023,Adults & Health,London Care Plc,Home Care - Private Contractors Payment,179.55,0,COMMERCIAL SUPPLIER
05-06-2023,Adults & Health,London Care Plc,Home Care - Private Contractors Payment,71.82,0,COMMERCIAL SUPPLIER
05-06-2023,Adults & Health,London Care Plc,Home Care - Private Contractors Payment,179.55,0,COMMERCIAL SUPPLIER
05-06-2023,Adults & Health,London Care Plc,Home Care - Private Contractors Payment,87.21,0,COMMERCIAL SUPPLIER
05-06-2023,Adults & Health,London Care Plc,Home Care - Private Contractors Payment,20.52,0,COMMERCIAL SUPPLIER
05-06-2023,Adults & Health,London Care Plc,Home Care - Private Contractors Payment,30.78,0,COMMERCIAL SUPPLIER
05-06-2023,Adults & Health,London Care Plc,Home Care - Private Contractors Payment,471.96,0,COMMERCIAL SUPPLIER
05-06-2023,Adults & Health,London Care Plc,Daycare - Private Contractors Payment,205.2,0,COMMERCIAL SUPPLIER
05-06-2023,Adults & Health,London Care Plc,Respite Care - Private Contractors Payment,102.6,0,COMMERCIAL SUPPLIER
05-06-2023,Adults & Health,London Care Plc,Home Care - Private Contractors Payment,41.04,0,COMMERCIAL SUPPLIER
05-06-2023,Adults & Health,London Care Plc,Daycare - Private Contractors Payment,82.08,0,COMMERCIAL SUPPLIER
05-06-2023,Adults & Health,London Care Plc,Home Care - Private Contractors Payment,251.37,0,COMMERCIAL SUPPLIER
05-06-2023,Adults & Health,London Care Plc,Home Care - Private Contractors Payment,41.04,0,COMMERCIAL SUPPLIER
05-06-2023,Adults & Health,London Care Plc,Home Care - Private Contractors Payment,51.3,0,COMMERCIAL SUPPLIER
05-06-2023,Adults & Health,London Care Plc,Home Care - Private Contractors Payment,20.52,0,COMMERCIAL SUPPLIER
05-06-2023,Adults & Health,London Care Plc,Home Care - Private Contractors Payment,359.1,0,COMMERCIAL SUPPLIER
05-06-2023,Adults & Health,London Care Plc,Home Care - Private Contractors Payment,179.55,0,COMMERCIAL SUPPLIER
05-06-2023,Adults & Health,London Care Plc,Home Care - Private Contractors Payment,353.97,0,COMMERCIAL SUPPLIER
05-06-2023,Adults & Health,London Care Plc,Home Care - Private Contractors Payment,215.46,0,COMMERCIAL SUPPLIER
05-06-2023,Adults & Health,London Care Plc,Respite Care - Private Contractors Payment,246.24,0,COMMERCIAL SUPPLIER
05-06-2023,Adults & Health,London Care Plc,Home Care - Private Contractors Payment,143.64,0,COMMERCIAL SUPPLIER
05-06-2023,Adults & Health,London Care Plc,Home Care - Private Contractors Payment,100.59,0,COMMERCIAL SUPPLIER
05-06-2023,Adults & Health,London Care Plc,Home Care - Private Contractors Payment,359.1,0,COMMERCIAL SUPPLIER
05-06-2023,Adults & Health,London Care Plc,Home Care - Private Contractors Payment,30.78,0,COMMERCIAL SUPPLIER
05-06-2023,Adults & Health,London Care Plc,Home Care - Private Contractors Payment,51.3,0,COMMERCIAL SUPPLIER
05-06-2023,Adults & Health,London Care Plc,Daycare - Private Contractors Payment,82.08,0,COMMERCIAL SUPPLIER
05-06-2023,Adults & Health,London Care Plc,Home Care - Private Contractors Payment,71.82,0,COMMERCIAL SUPPLIER
05-06-2023,Adults & Health,London Care Plc,Home Care - Private Contractors Payment,107.73,0,COMMERCIAL SUPPLIER
05-06-2023,Adults & Health,London Care Plc,Home Care - Private Contractors Payment,112.86,0,COMMERCIAL SUPPLIER
05-06-2023,Adults & Health,London Care Plc,Home Care - Private Contractors Payment,76.95,0,COMMERCIAL SUPPLIER
05-06-2023,Adults & Health,London Care Plc,Reablement,189.81,0,COMMERCIAL SUPPLIER
05-06-2023,Adults & Health,London Care Plc,Home Care - Private Contractors Payment,215.46,0,COMMERCIAL SUPPLIER
05-06-2023,Adults & Health,London Care Plc,Home Care - Private Contractors Payment,46.17,0,COMMERCIAL SUPPLIER
05-06-2023,Adults & Health,London Care Plc,Home Care - Private Contractors Payment,323.19,0,COMMERCIAL SUPPLIER
05-06-2023,Adults & Health,London Care Plc,Home Care - Private Contractors Payment,143.64,0,COMMERCIAL SUPPLIER
05-06-2023,Adults & Health,London Care Plc,Home Care - Private Contractors Payment,323.19,0,COMMERCIAL SUPPLIER
05-06-2023,Adults & Health,London Care Plc,Home Care - Private Contractors Payment,359.1,0,COMMERCIAL SUPPLIER
05-06-2023,Adults & Health,London Care Plc,Home Care - Private Contractors Payment,107.73,0,COMMERCIAL SUPPLIER
05-06-2023,Adults & Health,London Care Plc,Home Care - Private Contractors Payment,179.55,0,COMMERCIAL SUPPLIER
05-06-2023,Adults & Health,London Care Plc,Home Care - Private Contractors Payment,251.37,0,COMMERCIAL SUPPLIER
05-06-2023,Adults & Health,London Care Plc,Home Care - Private Contractors Payment,20.52,0,COMMERCIAL SUPPLIER
05-06-2023,Adults & Health,London Care Plc,Home Care - Private Contractors Payment,30.78,0,COMMERCIAL SUPPLIER
05-06-2023,Adults & Health,London Care Plc,Home Care - Private Contractors Payment,41.04,0,COMMERCIAL SUPPLIER
05-06-2023,Adults & Health,London Care Plc,Home Care - Private Contractors Payment,143.64,0,COMMERCIAL SUPPLIER
05-06-2023,Adults & Health,London Care Plc,Respite Care - Private Contractors Payment,102.6,0,COMMERCIAL SUPPLIER
05-06-2023,Adults & Health,London Care Plc,Reablement,71.82,0,COMMERCIAL SUPPLIER
05-06-2023,Adults & Health,London Care Plc,Home Care - Private Contractors Payment,179.55,0,COMMERCIAL SUPPLIER
05-06-2023,Adults & Health,London Care Plc,Home Care - Private Contractors Payment,87.21,0,COMMERCIAL SUPPLIER
05-06-2023,Adults & Health,London Care Plc,Home Care - Private Contractors Payment,251.37,0,COMMERCIAL SUPPLIER
05-06-2023,Adults & Health,London Care Plc,Home Care - Private Contractors Payment,41.04,0,COMMERCIAL SUPPLIER
05-06-2023,Adults & Health,London Care Plc,Home Care - Private Contractors Payment,82.08,0,COMMERCIAL SUPPLIER
05-06-2023,Adults & Health,London Care Plc,Home Care - Private Contractors Payment,179.55,0,COMMERCIAL SUPPLIER
05-06-2023,Adults & Health,London Care Plc,Home Care - Private Contractors Payment,179.55,0,COMMERCIAL SUPPLIER
05-06-2023,Adults & Health,London Care Plc,Home Care - Private Contractors Payment,46.17,0,COMMERCIAL SUPPLIER
05-06-2023,Adults & Health,London Care Plc,Home Care - Private Contractors Payment,215.46,0,COMMERCIAL SUPPLIER
05-06-2023,Adults & Health,London Care Plc,Home Care - Private Contractors Payment,318.06,0,COMMERCIAL SUPPLIER
05-06-2023,Adults & Health,London Care Plc,Home Care - Private Contractors Payment,179.55,0,COMMERCIAL SUPPLIER
05-06-2023,Adults & Health,London Care Plc,Home Care - Private Contractors Payment,92.34,0,COMMERCIAL SUPPLIER
05-06-2023,Adults & Health,London Care Plc,Home Care - Private Contractors Payment,251.37,0,COMMERCIAL SUPPLIER
05-06-2023,Adults & Health,London Care Plc,Home Care - Private Contractors Payment,107.73,0,COMMERCIAL SUPPLIER
05-06-2023,Adults & Health,London Care Plc,Home Care - Private Contractors Payment,20.52,0,COMMERCIAL SUPPLIER
05-06-2023,Adults & Health,London Care Plc,Home Care - Private Contractors Payment,143.64,0,COMMERCIAL SUPPLIER
05-06-2023,Adults & Health,London Care Plc,Home Care - Private Contractors Payment,179.55,0,COMMERCIAL SUPPLIER
05-06-2023,Adults & Health,London Care Plc,Home Care - Private Contractors Payment,194.94,0,COMMERCIAL SUPPLIER
05-06-2023,Adults & Health,London Care Plc,Home Care - Private Contractors Payment,41.04,0,COMMERCIAL SUPPLIER
05-06-2023,Adults & Health,London Care Plc,Daycare - Private Contractors Payment,61.56,0,COMMERCIAL SUPPLIER
05-06-2023,Adults & Health,London Care Plc,Home Care - Private Contractors Payment,20.52,0,COMMERCIAL SUPPLIER
05-06-2023,Adults & Health,London Care Plc,Home Care - Private Contractors Payment,41.04,0,COMMERCIAL SUPPLIER
05-06-2023,Adults & Health,London Care Plc,Daycare - Private Contractors Payment,71.82,0,COMMERCIAL SUPPLIER
05-06-2023,Adults & Health,London Care Plc,Daycare - Private Contractors Payment,41.04,0,COMMERCIAL SUPPLIER
05-06-2023,Adults & Health,London Care Plc,Home Care - Private Contractors Payment,790.02,0,COMMERCIAL SUPPLIER
05-06-2023,Adults & Health,London Care Plc,Home Care - Private Contractors Payment,323.19,0,COMMERCIAL SUPPLIER
05-06-2023,Adults & Health,London Care Plc,Home Care - Private Contractors Payment,318.06,0,COMMERCIAL SUPPLIER
05-06-2023,Adults & Health,London Care Plc,Home Care - Private Contractors Payment,107.73,0,COMMERCIAL SUPPLIER
05-06-2023,Adults & Health,London Care Plc,Daycare - Private Contractors Payment,82.08,0,COMMERCIAL SUPPLIER
05-06-2023,Adults & Health,London Care Plc,Home Care - Private Contractors Payment,179.55,0,COMMERCIAL SUPPLIER
05-06-2023,Adults & Health,London Care Plc,Home Care - Private Contractors Payment,71.82,0,COMMERCIAL SUPPLIER
05-06-2023,Adults & Health,London Care Plc,Home Care - Private Contractors Payment,179.55,0,COMMERCIAL SUPPLIER
05-06-2023,Adults & Health,London Care Plc,Home Care - Private Contractors Payment,184.68,0,COMMERCIAL SUPPLIER
05-06-2023,Adults & Health,London Care Plc,Home Care - Private Contractors Payment,107.73,0,COMMERCIAL SUPPLIER
05-06-2023,Adults & Health,London Care Plc,Home Care - Private Contractors Payment,359.1,0,COMMERCIAL SUPPLIER
05-06-2023,Adults & Health,London Care Plc,Home Care - Private Contractors Payment,30.78,0,COMMERCIAL SUPPLIER
05-06-2023,Adults & Health,London Care Plc,Home Care - Private Contractors Payment,359.1,0,COMMERCIAL SUPPLIER
05-06-2023,Adults & Health,London Care Plc,Home Care - Private Contractors Payment,128.25,0,COMMERCIAL SUPPLIER
05-06-2023,Adults & Health,London Care Plc,Home Care - Private Contractors Payment,30.78,0,COMMERCIAL SUPPLIER
05-06-2023,Adults & Health,London Care Plc,Daycare - Private Contractors Payment,30.78,0,COMMERCIAL SUPPLIER
05-06-2023,Adults & Health,London Care Plc,Home Care - Private Contractors Payment,194.94,0,COMMERCIAL SUPPLIER
05-06-2023,Adults & Health,London Care Plc,Home Care - Private Contractors Payment,215.46,0,COMMERCIAL SUPPLIER
05-06-2023,Adults & Health,London Care Plc,Home Care - Private Contractors Payment,179.55,0,COMMERCIAL SUPPLIER
05-06-2023,Adults & Health,London Care Plc,Daycare - Private Contractors Payment,20.52,0,COMMERCIAL SUPPLIER
05-06-2023,Adults & Health,London Care Plc,Home Care - Private Contractors Payment,359.1,0,COMMERCIAL SUPPLIER
05-06-2023,Adults & Health,London Care Plc,Home Care - Private Contractors Payment,107.73,0,COMMERCIAL SUPPLIER
05-06-2023,Adults & Health,London Care Plc,Home Care - Private Contractors Payment,287.28,0,COMMERCIAL SUPPLIER
05-06-2023,Adults & Health,London Care Plc,Reablement,102.6,0,COMMERCIAL SUPPLIER
05-06-2023,Adults & Health,London Care Plc,Home Care - Private Contractors Payment,20.52,0,COMMERCIAL SUPPLIER
05-06-2023,Adults & Health,London Care Plc,Home Care - Private Contractors Payment,41.04,0,COMMERCIAL SUPPLIER
05-06-2023,Adults & Health,London Care Plc,Daycare - Private Contractors Payment,82.08,0,COMMERCIAL SUPPLIER
05-06-2023,Adults & Health,London Care Plc,Home Care - Private Contractors Payment,215.46,0,COMMERCIAL SUPPLIER
05-06-2023,Adults & Health,London Care Plc,Home Care - Private Contractors Payment,251.37,0,COMMERCIAL SUPPLIER
05-06-2023,Adults & Health,London Care Plc,Home Care - Private Contractors Payment,194.55,0,COMMERCIAL SUPPLIER
05-06-2023,Adults & Health,London Care Plc,Home Care - Private Contractors Payment,374.1,0,COMMERCIAL SUPPLIER
05-06-2023,Adults & Health,London Care Plc,Home Care - Private Contractors Payment,235.98,0,COMMERCIAL SUPPLIER
05-06-2023,Adults & Health,London Care Plc,Home Care - Private Contractors Payment,261.63,0,COMMERCIAL SUPPLIER
05-06-2023,Adults & Health,London Care Plc,Home Care - Private Contractors Payment,-71.82,0,COMMERCIAL SUPPLIER
05-06-2023,Adults & Health,London Care Plc,Daycare - Private Contractors Payment,-269.83,0,COMMERCIAL SUPPLIER
05-06-2023,Adults & Health,London Care Plc,Home Care - Private Contractors Payment,1015.06,0,COMMERCIAL SUPPLIER
05-06-2023,Adults & Health,London Care Plc,Home Care - Private Contractors Payment,338.58,0,COMMERCIAL SUPPLIER
05-06-2023,Adults & Health,London Care Plc,Daycare - Private Contractors Payment,61.56,0,COMMERCIAL SUPPLIER
05-06-2023,Adults & Health,London Care Plc,Home Care - Private Contractors Payment,107.73,0,COMMERCIAL SUPPLIER
05-06-2023,Adults & Health,London Care Plc,Daycare - Private Contractors Payment,61.56,0,COMMERCIAL SUPPLIER
05-06-2023,Adults & Health,London Care Plc,Home Care - Private Contractors Payment,251.37,0,COMMERCIAL SUPPLIER
05-06-2023,Adults & Health,London Care Plc,Home Care - Private Contractors Payment,359.1,0,COMMERCIAL SUPPLIER
05-06-2023,Adults & Health,London Care Plc,Home Care - Private Contractors Payment,251.37,0,COMMERCIAL SUPPLIER
05-06-2023,Adults & Health,London Care Plc,Home Care - Private Contractors Payment,194.94,0,COMMERCIAL SUPPLIER
05-06-2023,Adults & Health,London Care Plc,Home Care - Private Contractors Payment,61.56,0,COMMERCIAL SUPPLIER
05-06-2023,Adults & Health,London Care Plc,Home Care - Private Contractors Payment,754.11,0,COMMERCIAL SUPPLIER
05-06-2023,Adults & Health,London Care Plc,Home Care - Private Contractors Payment,353.97,0,COMMERCIAL SUPPLIER
05-06-2023,Adults & Health,London Care Plc,Home Care - Private Contractors Payment,251.37,0,COMMERCIAL SUPPLIER
05-06-2023,Adults & Health,London Care Plc,Daycare - Private Contractors Payment,41.04,0,COMMERCIAL SUPPLIER
05-06-2023,Adults & Health,London Care Plc,Daycare - Private Contractors Payment,82.08,0,COMMERCIAL SUPPLIER
05-06-2023,Adults & Health,London Care Plc,Home Care - Private Contractors Payment,20.52,0,COMMERCIAL SUPPLIER
05-06-2023,Adults & Health,London Care Plc,Daycare - Private Contractors Payment,208.62,0,COMMERCIAL SUPPLIER
05-06-2023,Adults & Health,London Care Plc,Home Care - Private Contractors Payment,251.37,0,COMMERCIAL SUPPLIER
05-06-2023,Adults & Health,London Care Plc,Home Care - Private Contractors Payment,241.11,0,COMMERCIAL SUPPLIER
05-06-2023,Adults & Health,London Care Plc,Home Care - Private Contractors Payment,528.39,0,COMMERCIAL SUPPLIER
05-06-2023,Adults & Health,London Care Plc,Home Care - Private Contractors Payment,115.59,0,COMMERCIAL SUPPLIER
05-06-2023,Adults & Health,London Care Plc,Daycare - Private Contractors Payment,-63.61,0,COMMERCIAL SUPPLIER
05-06-2023,Adults & Health,London Care Plc,Daycare - Private Contractors Payment,-266.76,0,COMMERCIAL SUPPLIER
05-06-2023,Adults & Health,London Care Plc,Home Care - Private Contractors Payment,-165.19,0,COMMERCIAL SUPPLIER
05-06-2023,Adults & Health,London Care Plc,Home Care - Private Contractors Payment,30.78,0,COMMERCIAL SUPPLIER
05-06-2023,Adults & Health,London Care Plc,Home Care - Private Contractors Payment,179.55,0,COMMERCIAL SUPPLIER
05-06-2023,Adults & Health,London Care Plc,Home Care - Private Contractors Payment,328.32,0,COMMERCIAL SUPPLIER
05-06-2023,Adults & Health,London Care Plc,Daycare - Private Contractors Payment,86.82,0,COMMERCIAL SUPPLIER
05-06-2023,Adults & Health,London Care Plc,Home Care - Private Contractors Payment,256.5,0,COMMERCIAL SUPPLIER
05-06-2023,Adults & Health,London Care Plc,Home Care - Private Contractors Payment,246.24,0,COMMERCIAL SUPPLIER
05-06-2023,Adults & Health,London Care Plc,Home Care - Private Contractors Payment,-205.2,0,COMMERCIAL SUPPLIER
05-06-2023,Adults & Health,London Care Plc,Daycare - Private Contractors Payment,81.39,0,COMMERCIAL SUPPLIER
05-06-2023,Adults & Health,London Care Plc,Home Care - Private Contractors Payment,30.78,0,COMMERCIAL SUPPLIER
05-06-2023,Adults & Health,London Care Plc,Home Care - Private Contractors Payment,297.54,0,COMMERCIAL SUPPLIER
05-06-2023,Adults & Health,London Care Plc,Home Care - Private Contractors Payment,241.11,0,COMMERCIAL SUPPLIER
05-06-2023,Adults & Health,London Care Plc,Home Care - Private Contractors Payment,82.08,0,COMMERCIAL SUPPLIER
05-06-2023,Adults & Health,London Care Plc,Daycare - Private Contractors Payment,66.3,0,COMMERCIAL SUPPLIER
05-06-2023,Adults & Health,London Care Plc,Daycare - Private Contractors Payment,11.96,0,COMMERCIAL SUPPLIER
05-06-2023,Adults & Health,London Care Plc,Home Care - Private Contractors Payment,20.52,0,COMMERCIAL SUPPLIER
05-06-2023,Adults & Health,London Care Plc,Home Care - Private Contractors Payment,30.78,0,COMMERCIAL SUPPLIER
05-06-2023,Adults & Health,London Care Plc,Home Care - Private Contractors Payment,153.9,0,COMMERCIAL SUPPLIER
05-06-2023,Adults & Health,London Care Plc,Home Care - Private Contractors Payment,107.73,0,COMMERCIAL SUPPLIER
05-06-2023,Adults & Health,London Care Plc,Home Care - Private Contractors Payment,41.04,0,COMMERCIAL SUPPLIER
05-06-2023,Adults & Health,London Care Plc,Home Care - Private Contractors Payment,251.37,0,COMMERCIAL SUPPLIER
05-06-2023,Adults & Health,London Care Plc,Home Care - Private Contractors Payment,353.97,0,COMMERCIAL SUPPLIER
05-06-2023,Adults & Health,London Care Plc,Respite Care - Private Contractors Payment,41.04,0,COMMERCIAL SUPPLIER
05-06-2023,Adults & Health,London Care Plc,Home Care - Private Contractors Payment,138.51,0,COMMERCIAL SUPPLIER
05-06-2023,Adults & Health,London Care Plc,Home Care - Private Contractors Payment,20.52,0,COMMERCIAL SUPPLIER
05-06-2023,Adults & Health,London Care Plc,Respite Care - Private Contractors Payment,102.6,0,COMMERCIAL SUPPLIER
05-06-2023,Adults & Health,London Care Plc,Home Care - Private Contractors Payment,41.04,0,COMMERCIAL SUPPLIER
05-06-2023,Adults & Health,London Care Plc,Home Care - Private Contractors Payment,251.37,0,COMMERCIAL SUPPLIER
05-06-2023,Adults & Health,London Care Plc,Home Care - Private Contractors Payment,107.73,0,COMMERCIAL SUPPLIER
05-06-2023,Adults & Health,London Care Plc,Daycare - Private Contractors Payment,76.56,0,COMMERCIAL SUPPLIER
05-06-2023,Adults & Health,London Care Plc,Home Care - Private Contractors Payment,164.16,0,COMMERCIAL SUPPLIER
05-06-2023,Adults & Health,London Care Plc,Home Care - Private Contractors Payment,-25.65,0,COMMERCIAL SUPPLIER
05-06-2023,Adults & Health,London Care Plc,Home Care - Private Contractors Payment,266.37,0,COMMERCIAL SUPPLIER
05-06-2023,Adults & Health,London Care Plc,Home Care - Private Contractors Payment,153.9,0,COMMERCIAL SUPPLIER
05-06-2023,Adults & Health,London Care Plc,Home Care - Private Contractors Payment,169.29,0,COMMERCIAL SUPPLIER
05-06-2023,Adults & Health,London Care Plc,Home Care - Private Contractors Payment,-133.38,0,COMMERCIAL SUPPLIER
05-06-2023,Adults & Health,London Care Plc,Home Care - Private Contractors Payment,153.9,0,COMMERCIAL SUPPLIER
05-06-2023,Adults & Health,London Care Plc,Home Care - Private Contractors Payment,-605.34,0,COMMERCIAL SUPPLIER
05-06-2023,Adults & Health,London Care Plc,Home Care - Private Contractors Payment,184.68,0,COMMERCIAL SUPPLIER
05-06-2023,Adults & Health,London Care Plc,Home Care - Private Contractors Payment,179.55,0,COMMERCIAL SUPPLIER
05-06-2023,Adults & Health,London Care Plc,Daycare - Private Contractors Payment,-119.01,0,COMMERCIAL SUPPLIER
05-06-2023,Adults & Health,London Care Plc,Home Care - Private Contractors Payment,251.37,0,COMMERCIAL SUPPLIER
05-06-2023,Adults & Health,London Care Plc,Home Care - Private Contractors Payment,20.52,0,COMMERCIAL SUPPLIER
05-06-2023,Adults & Health,London Care Plc,Home Care - Private Contractors Payment,143.64,0,COMMERCIAL SUPPLIER
05-06-2023,Adults & Health,London Care Plc,Home Care - Private Contractors Payment,20.52,0,COMMERCIAL SUPPLIER
05-06-2023,Adults & Health,London Care Plc,Home Care - Private Contractors Payment,323.19,0,COMMERCIAL SUPPLIER
05-06-2023,Adults & Health,London Care Plc,Home Care - Private Contractors Payment,30.78,0,COMMERCIAL SUPPLIER
05-06-2023,Adults & Health,London Care Plc,Daycare - Private Contractors Payment,287.28,0,COMMERCIAL SUPPLIER
05-06-2023,Adults & Health,London Care Plc,Home Care - Private Contractors Payment,215.46,0,COMMERCIAL SUPPLIER
05-06-2023,Adults & Health,London Care Plc,Home Care - Private Contractors Payment,754.11,0,COMMERCIAL SUPPLIER
05-06-2023,Adults & Health,London Care Plc,Home Care - Private Contractors Payment,359.1,0,COMMERCIAL SUPPLIER
05-06-2023,Adults & Health,London Care Plc,Home Care - Private Contractors Payment,41.04,0,COMMERCIAL SUPPLIER
05-06-2023,Adults & Health,London Care Plc,Daycare - Private Contractors Payment,61.56,0,COMMERCIAL SUPPLIER
05-06-2023,Adults & Health,London Care Plc,Daycare - Private Contractors Payment,205.2,0,COMMERCIAL SUPPLIER
05-06-2023,Adults & Health,London Care Plc,Home Care - Private Contractors Payment,30.78,0,COMMERCIAL SUPPLIER
05-06-2023,Adults & Health,London Care Plc,Home Care - Private Contractors Payment,220.59,0,COMMERCIAL SUPPLIER
05-06-2023,Adults & Health,London Care Plc,Home Care - Private Contractors Payment,-76.95,0,COMMERCIAL SUPPLIER
05-06-2023,Adults & Health,London Care Plc,Home Care - Private Contractors Payment,220.59,0,COMMERCIAL SUPPLIER
05-06-2023,Adults & Health,London Care Plc,Home Care - Private Contractors Payment,287.28,0,COMMERCIAL SUPPLIER
05-06-2023,Adults & Health,London Care Plc,Home Care - Private Contractors Payment,148.77,0,COMMERCIAL SUPPLIER
05-06-2023,Adults & Health,London Care Plc,Respite Care - Private Contractors Payment,102.6,0,COMMERCIAL SUPPLIER
05-06-2023,Adults & Health,London Care Plc,Home Care - Private Contractors Payment,30.78,0,COMMERCIAL SUPPLIER
05-06-2023,Adults & Health,London Care Plc,Home Care - Private Contractors Payment,41.04,0,COMMERCIAL SUPPLIER
05-06-2023,Adults & Health,London Care Plc,Home Care - Private Contractors Payment,107.73,0,COMMERCIAL SUPPLIER
05-06-2023,Adults & Health,London Care Plc,Home Care - Private Contractors Payment,-5.13,0,COMMERCIAL SUPPLIER
05-06-2023,Adults & Health,London Care Plc,Home Care - Private Contractors Payment,123.12,0,COMMERCIAL SUPPLIER
05-06-2023,Adults & Health,London Care Plc,Home Care - Private Contractors Payment,323.19,0,COMMERCIAL SUPPLIER
05-06-2023,Adults & Health,London Care Plc,Home Care - Private Contractors Payment,251.37,0,COMMERCIAL SUPPLIER
05-06-2023,Adults & Health,London Care Plc,Home Care - Private Contractors Payment,71.82,0,COMMERCIAL SUPPLIER
05-06-2023,Adults & Health,London Care Plc,Home Care - Private Contractors Payment,169.29,0,COMMERCIAL SUPPLIER
05-06-2023,Adults & Health,London Care Plc,Home Care - Private Contractors Payment,533.52,0,COMMERCIAL SUPPLIER
05-06-2023,Adults & Health,London Care Plc,Home Care - Private Contractors Payment,139.88,0,COMMERCIAL SUPPLIER
05-06-2023,Adults & Health,London Care Plc,Home Care - Private Contractors Payment,251.37,0,COMMERCIAL SUPPLIER
05-06-2023,Adults & Health,London Care Plc,Daycare - Private Contractors Payment,68.05,0,COMMERCIAL SUPPLIER
05-06-2023,Adults & Health,London Care Plc,Home Care - Private Contractors Payment,87.21,0,COMMERCIAL SUPPLIER
05-06-2023,Adults & Health,London Care Plc,Daycare - Private Contractors Payment,20.52,0,COMMERCIAL SUPPLIER
05-06-2023,Adults & Health,London Care Plc,Home Care - Private Contractors Payment,41.04,0,COMMERCIAL SUPPLIER
05-06-2023,Adults & Health,London Care Plc,Home Care - Private Contractors Payment,323.19,0,COMMERCIAL SUPPLIER
05-06-2023,Adults & Health,London Care Plc,Daycare - Private Contractors Payment,20.52,0,COMMERCIAL SUPPLIER
05-06-2023,Adults & Health,London Care Plc,Respite Care - Private Contractors Payment,230.85,0,COMMERCIAL SUPPLIER
05-06-2023,Adults & Health,London Care Plc,Home Care - Private Contractors Payment,251.37,0,COMMERCIAL SUPPLIER
05-06-2023,Adults & Health,London Care Plc,Daycare - Private Contractors Payment,45.78,0,COMMERCIAL SUPPLIER
05-06-2023,Adults & Health,London Care Plc,Daycare - Private Contractors Payment,-312.93,0,COMMERCIAL SUPPLIER
05-06-2023,Adults & Health,London Care Plc,Home Care - Private Contractors Payment,251.37,0,COMMERCIAL SUPPLIER
05-06-2023,Adults & Health,London Care Plc,Reablement,107.73,0,COMMERCIAL SUPPLIER
05-06-2023,Adults & Health,London Care Plc,Home Care - Private Contractors Payment,451.44,0,COMMERCIAL SUPPLIER
05-06-2023,Adults & Health,London Care Plc,Home Care - Private Contractors Payment,215.46,0,COMMERCIAL SUPPLIER
05-06-2023,Adults & Health,London Care Plc,Reablement,71.82,0,COMMERCIAL SUPPLIER
05-06-2023,Adults & Health,London Care Plc,Home Care - Private Contractors Payment,51.3,0,COMMERCIAL SUPPLIER
05-06-2023,Adults & Health,London Care Plc,Home Care - Private Contractors Payment,323.19,0,COMMERCIAL SUPPLIER
05-06-2023,Adults & Health,London Care Plc,Home Care - Private Contractors Payment,107.73,0,COMMERCIAL SUPPLIER
05-06-2023,Adults & Health,London Care Plc,Home Care - Private Contractors Payment,323.19,0,COMMERCIAL SUPPLIER
05-06-2023,Adults & Health,London Care Plc,Home Care - Private Contractors Payment,61.56,0,COMMERCIAL SUPPLIER
05-06-2023,Adults & Health,London Care Plc,Home Care - Private Contractors Payment,251.37,0,COMMERCIAL SUPPLIER
05-06-2023,Adults & Health,London Care Plc,Home Care - Private Contractors Payment,328.32,0,COMMERCIAL SUPPLIER
05-06-2023,Adults & Health,London Care Plc,Daycare - Private Contractors Payment,61.56,0,COMMERCIAL SUPPLIER
05-06-2023,Adults & Health,London Care Plc,Daycare - Private Contractors Payment,82.08,0,COMMERCIAL SUPPLIER
05-06-2023,Adults & Health,London Care Plc,Daycare - Private Contractors Payment,82.08,0,COMMERCIAL SUPPLIER
05-06-2023,Adults & Health,London Care Plc,Home Care - Private Contractors Payment,251.37,0,COMMERCIAL SUPPLIER
05-06-2023,Adults & Health,London Care Plc,Home Care - Private Contractors Payment,41.04,0,COMMERCIAL SUPPLIER
05-06-2023,Adults & Health,London Care Plc,Home Care - Private Contractors Payment,323.19,0,COMMERCIAL SUPPLIER
05-06-2023,Adults & Health,London Care Plc,Home Care - Private Contractors Payment,41.04,0,COMMERCIAL SUPPLIER
05-06-2023,Adults & Health,London Care Plc,Home Care - Private Contractors Payment,107.73,0,COMMERCIAL SUPPLIER
05-06-2023,Adults & Health,London Care Plc,Daycare - Private Contractors Payment,102.6,0,COMMERCIAL SUPPLIER
05-06-2023,Adults & Health,London Care Plc,Home Care - Private Contractors Payment,179.55,0,COMMERCIAL SUPPLIER
05-06-2023,Adults & Health,London Care Plc,Daycare - Private Contractors Payment,20.52,0,COMMERCIAL SUPPLIER
05-06-2023,Adults & Health,London Care Plc,Daycare - Private Contractors Payment,82.08,0,COMMERCIAL SUPPLIER
05-06-2023,Adults & Health,London Care Plc,Home Care - Private Contractors Payment,287.28,0,COMMERCIAL SUPPLIER
05-06-2023,Adults & Health,London Care Plc,Home Care - Private Contractors Payment,287.28,0,COMMERCIAL SUPPLIER
05-06-2023,Adults & Health,London Care Plc,Home Care - Private Contractors Payment,20.52,0,COMMERCIAL SUPPLIER
05-06-2023,Adults & Health,London Care Plc,Home Care - Private Contractors Payment,251.37,0,COMMERCIAL SUPPLIER
05-06-2023,Adults & Health,London Care Plc,Home Care - Private Contractors Payment,215.46,0,COMMERCIAL SUPPLIER
05-06-2023,Adults & Health,London Care Plc,Home Care - Private Contractors Payment,251.37,0,COMMERCIAL SUPPLIER
05-06-2023,Adults & Health,London Care Plc,Daycare - Private Contractors Payment,30.78,0,COMMERCIAL SUPPLIER
05-06-2023,Adults & Health,London Care Plc,Home Care - Private Contractors Payment,251.37,0,COMMERCIAL SUPPLIER
05-06-2023,Adults & Health,London Care Plc,Home Care - Private Contractors Payment,30.78,0,COMMERCIAL SUPPLIER
05-06-2023,Adults & Health,London Care Plc,Home Care - Private Contractors Payment,251.37,0,COMMERCIAL SUPPLIER
05-06-2023,Adults & Health,London Care Plc,Home Care - Private Contractors Payment,61.56,0,COMMERCIAL SUPPLIER
05-06-2023,Adults & Health,London Care Plc,Home Care - Private Contractors Payment,20.52,0,COMMERCIAL SUPPLIER
05-06-2023,Adults & Health,London Care Plc,Home Care - Private Contractors Payment,179.55,0,COMMERCIAL SUPPLIER
05-06-2023,Adults & Health,London Care Plc,Respite Care - Private Contractors Payment,61.56,0,COMMERCIAL SUPPLIER
05-06-2023,Adults & Health,London Care Plc,Home Care - Private Contractors Payment,359.1,0,COMMERCIAL SUPPLIER
05-06-2023,Adults & Health,London Care Plc,Daycare - Private Contractors Payment,56.04,0,COMMERCIAL SUPPLIER
05-06-2023,Adults & Health,London Care Plc,Home Care - Private Contractors Payment,338.19,0,COMMERCIAL SUPPLIER
05-06-2023,Adults & Health,London Care Plc,Home Care - Private Contractors Payment,338.19,0,COMMERCIAL SUPPLIER
05-06-2023,Adults & Health,London Care Plc,Home Care - Private Contractors Payment,102.6,0,COMMERCIAL SUPPLIER
05-06-2023,Adults & Health,London Care Plc,Home Care - Private Contractors Payment,92.34,0,COMMERCIAL SUPPLIER
05-06-2023,Adults & Health,London Care Plc,Home Care - Private Contractors Payment,251.37,0,COMMERCIAL SUPPLIER
05-06-2023,Adults & Health,London Care Plc,Home Care - Private Contractors Payment,143.64,0,COMMERCIAL SUPPLIER
05-06-2023,Adults & Health,London Care Plc,Daycare - Private Contractors Payment,82.08,0,COMMERCIAL SUPPLIER
05-06-2023,Adults & Health,London Care Plc,Home Care - Private Contractors Payment,646.38,0,COMMERCIAL SUPPLIER
05-06-2023,Adults & Health,London Care Plc,Respite Care - Private Contractors Payment,41.04,0,COMMERCIAL SUPPLIER
05-06-2023,Adults & Health,London Care Plc,Daycare - Private Contractors Payment,-66.69,0,COMMERCIAL SUPPLIER
05-06-2023,Adults & Health,London Care Plc,Daycare - Private Contractors Payment,76.56,0,COMMERCIAL SUPPLIER
05-06-2023,Adults & Health,London Care Plc,Home Care - Private Contractors Payment,297.54,0,COMMERCIAL SUPPLIER
05-06-2023,Adults & Health,London Care Plc,Home Care - Private Contractors Payment,251.37,0,COMMERCIAL SUPPLIER
05-06-2023,Adults & Health,London Care Plc,Home Care - Private Contractors Payment,359.1,0,COMMERCIAL SUPPLIER
05-06-2023,Adults & Health,London Care Plc,Home Care - Private Contractors Payment,123.12,0,COMMERCIAL SUPPLIER
05-06-2023,Adults & Health,London Care Plc,Home Care - Private Contractors Payment,338.58,0,COMMERCIAL SUPPLIER
05-06-2023,Adults & Health,London Care Plc,Daycare - Private Contractors Payment,235.59,0,COMMERCIAL SUPPLIER
05-06-2023,Adults & Health,London Care Plc,Home Care - Private Contractors Payment,430.92,0,COMMERCIAL SUPPLIER
05-06-2023,Adults & Health,London Care Plc,Home Care - Private Contractors Payment,71.82,0,COMMERCIAL SUPPLIER
05-06-2023,Adults & Health,London Care Plc,Home Care - Private Contractors Payment,215.46,0,COMMERCIAL SUPPLIER
05-06-2023,Adults & Health,London Care Plc,Daycare - Private Contractors Payment,30.78,0,COMMERCIAL SUPPLIER
05-06-2023,Adults & Health,London Care Plc,Home Care - Private Contractors Payment,153.9,0,COMMERCIAL SUPPLIER
05-06-2023,Adults & Health,London Care Plc,Home Care - Private Contractors Payment,20.52,0,COMMERCIAL SUPPLIER
05-06-2023,Adults & Health,London Care Plc,Home Care - Private Contractors Payment,323.19,0,COMMERCIAL SUPPLIER
05-06-2023,Adults & Health,London Care Plc,Daycare - Private Contractors Payment,51.3,0,COMMERCIAL SUPPLIER
05-06-2023,Adults & Health,London Care Plc,Daycare - Private Contractors Payment,82.08,0,COMMERCIAL SUPPLIER
05-06-2023,Adults & Health,London Care Plc,Home Care - Private Contractors Payment,30.78,0,COMMERCIAL SUPPLIER
05-06-2023,Adults & Health,London Care Plc,Daycare - Private Contractors Payment,61.56,0,COMMERCIAL SUPPLIER
05-06-2023,Adults & Health,London Care Plc,Home Care - Private Contractors Payment,148.77,0,COMMERCIAL SUPPLIER
05-06-2023,Adults & Health,London Care Plc,Home Care - Private Contractors Payment,138.51,0,COMMERCIAL SUPPLIER
05-06-2023,Adults & Health,London Care Plc,Respite Care - Private Contractors Payment,41.04,0,COMMERCIAL SUPPLIER
05-06-2023,Adults & Health,London Care Plc,Home Care - Private Contractors Payment,153.9,0,COMMERCIAL SUPPLIER
05-06-2023,Adults & Health,London Care Plc,Home Care - Private Contractors Payment,179.55,0,COMMERCIAL SUPPLIER
05-06-2023,Adults & Health,London Care Plc,Daycare - Private Contractors Payment,30.78,0,COMMERCIAL SUPPLIER
05-06-2023,Adults & Health,London Care Plc,Home Care - Private Contractors Payment,41.04,0,COMMERCIAL SUPPLIER
05-06-2023,Adults & Health,London Care Plc,Home Care - Private Contractors Payment,30.78,0,COMMERCIAL SUPPLIER
05-06-2023,Adults & Health,London Care Plc,Daycare - Private Contractors Payment,20.52,0,COMMERCIAL SUPPLIER
05-06-2023,Adults & Health,London Care Plc,Home Care - Private Contractors Payment,359.1,0,COMMERCIAL SUPPLIER
05-06-2023,Adults & Health,London Care Plc,Home Care - Private Contractors Payment,41.04,0,COMMERCIAL SUPPLIER
05-06-2023,Adults & Health,London Care Plc,Home Care - Private Contractors Payment,25.65,0,COMMERCIAL SUPPLIER
05-06-2023,Adults & Health,London Care Plc,Home Care - Private Contractors Payment,30.78,0,COMMERCIAL SUPPLIER
05-06-2023,Adults & Health,London Care Plc,Home Care - Private Contractors Payment,71.82,0,COMMERCIAL SUPPLIER
05-06-2023,Adults & Health,London Care Plc,Home Care - Private Contractors Payment,20.52,0,COMMERCIAL SUPPLIER
05-06-2023,Adults & Health,London Care Plc,Home Care - Private Contractors Payment,107.73,0,COMMERCIAL SUPPLIER
05-06-2023,Adults & Health,London Care Plc,Respite Care - Private Contractors Payment,61.56,0,COMMERCIAL SUPPLIER
05-06-2023,Adults & Health,London Care Plc,Home Care - Private Contractors Payment,328.32,0,COMMERCIAL SUPPLIER
05-06-2023,Adults & Health,London Care Plc,Home Care - Private Contractors Payment,466.83,0,COMMERCIAL SUPPLIER
05-06-2023,Adults & Health,London Care Plc,Home Care - Private Contractors Payment,251.37,0,COMMERCIAL SUPPLIER
05-06-2023,Adults & Health,London Care Plc,Home Care - Private Contractors Payment,153.9,0,COMMERCIAL SUPPLIER
05-06-2023,Adults & Health,London Care Plc,Home Care - Private Contractors Payment,359.1,0,COMMERCIAL SUPPLIER
05-06-2023,Adults & Health,London Care Plc,Home Care - Private Contractors Payment,20.52,0,COMMERCIAL SUPPLIER
05-06-2023,Adults & Health,London Care Plc,Home Care - Private Contractors Payment,41.04,0,COMMERCIAL SUPPLIER
05-06-2023,Adults & Health,London Care Plc,Home Care - Private Contractors Payment,215.46,0,COMMERCIAL SUPPLIER
05-06-2023,Adults & Health,London Care Plc,Home Care - Private Contractors Payment,66.3,0,COMMERCIAL SUPPLIER
05-06-2023,Adults & Health,London Care Plc,Home Care - Private Contractors Payment,251.37,0,COMMERCIAL SUPPLIER
05-06-2023,Adults & Health,London Care Plc,Home Care - Private Contractors Payment,66.3,0,COMMERCIAL SUPPLIER
05-06-2023,Adults & Health,London Care Plc,Home Care - Private Contractors Payment,790.02,0,COMMERCIAL SUPPLIER
05-06-2023,Adults & Health,London Care Plc,Home Care - Private Contractors Payment,251.37,0,COMMERCIAL SUPPLIER
05-06-2023,Adults & Health,London Care Plc,Home Care - Private Contractors Payment,343.71,0,COMMERCIAL SUPPLIER
05-06-2023,Adults & Health,London Care Plc,Home Care - Private Contractors Payment,30.44,0,COMMERCIAL SUPPLIER
05-06-2023,Adults & Health,London Care Plc,Respite Care - Private Contractors Payment,41.04,0,COMMERCIAL SUPPLIER
05-06-2023,Adults & Health,London Care Plc,Daycare - Private Contractors Payment,284.22,0,COMMERCIAL SUPPLIER
05-06-2023,Adults & Health,London Care Plc,Home Care - Private Contractors Payment,179.55,0,COMMERCIAL SUPPLIER
05-06-2023,Adults & Health,London Care Plc,Home Care - Private Contractors Payment,41.04,0,COMMERCIAL SUPPLIER
05-06-2023,Adults & Health,London Care Plc,Home Care - Private Contractors Payment,287.28,0,COMMERCIAL SUPPLIER
05-06-2023,Adults & Health,London Care Plc,Home Care - Private Contractors Payment,338.58,0,COMMERCIAL SUPPLIER
05-06-2023,Adults & Health,London Care Plc,Daycare - Private Contractors Payment,61.56,0,COMMERCIAL SUPPLIER
05-06-2023,Adults & Health,London Care Plc,Home Care - Private Contractors Payment,466.83,0,COMMERCIAL SUPPLIER
05-06-2023,Adults & Health,London Care Plc,Home Care - Private Contractors Payment,359.1,0,COMMERCIAL SUPPLIER
05-06-2023,Adults & Health,London Care Plc,Home Care - Private Contractors Payment,646.38,0,COMMERCIAL SUPPLIER
05-06-2023,Adults & Health,London Care Plc,Home Care - Private Contractors Payment,287.28,0,COMMERCIAL SUPPLIER
05-06-2023,Adults & Health,London Care Plc,Home Care - Private Contractors Payment,30.78,0,COMMERCIAL SUPPLIER
05-06-2023,Adults & Health,London Care Plc,Home Care - Private Contractors Payment,251.37,0,COMMERCIAL SUPPLIER
05-06-2023,Adults & Health,London Care Plc,Home Care - Private Contractors Payment,107.73,0,COMMERCIAL SUPPLIER
05-06-2023,Adults & Health,London Care Plc,Home Care - Private Contractors Payment,41.04,0,COMMERCIAL SUPPLIER
05-06-2023,Adults & Health,London Care Plc,Home Care - Private Contractors Payment,287.28,0,COMMERCIAL SUPPLIER
05-06-2023,Adults & Health,London Care Plc,Home Care - Private Contractors Payment,790.02,0,COMMERCIAL SUPPLIER
05-06-2023,Adults & Health,London Care Plc,Home Care - Private Contractors Payment,107.73,0,COMMERCIAL SUPPLIER
05-06-2023,Adults & Health,London Care Plc,Home Care - Private Contractors Payment,-76.95,0,COMMERCIAL SUPPLIER
05-06-2023,Adults & Health,London Care Plc,Home Care - Private Contractors Payment,30.78,0,COMMERCIAL SUPPLIER
05-06-2023,Adults & Health,London Care Plc,Home Care - Private Contractors Payment,112.86,0,COMMERCIAL SUPPLIER
05-06-2023,Adults & Health,London Care Plc,Home Care - Private Contractors Payment,-754.11,0,COMMERCIAL SUPPLIER
05-06-2023,Adults & Health,London Care Plc,Home Care - Private Contractors Payment,20.52,0,COMMERCIAL SUPPLIER
05-06-2023,Adults & Health,London Care Plc,Home Care - Private Contractors Payment,107.73,0,COMMERCIAL SUPPLIER
05-06-2023,Adults & Health,London Care Plc,Home Care - Private Contractors Payment,163.77,0,COMMERCIAL SUPPLIER
05-06-2023,Adults & Health,London Care Plc,Home Care - Private Contractors Payment,46.17,0,COMMERCIAL SUPPLIER
05-06-2023,Adults & Health,London Care Plc,Home Care - Private Contractors Payment,153.9,0,COMMERCIAL SUPPLIER
05-06-2023,Adults & Health,London Care Plc,Home Care - Private Contractors Payment,142.97,0,COMMERCIAL SUPPLIER
05-06-2023,Adults & Health,London Care Plc,Home Care - Private Contractors Payment,-51.3,0,COMMERCIAL SUPPLIER
05-06-2023,Adults & Health,London Care Plc,Respite Care - Private Contractors Payment,41.04,0,COMMERCIAL SUPPLIER
05-06-2023,Adults & Health,London Care Plc,Home Care - Private Contractors Payment,107.73,0,COMMERCIAL SUPPLIER
05-06-2023,Adults & Health,London Care Plc,Home Care - Private Contractors Payment,20.52,0,COMMERCIAL SUPPLIER
05-06-2023,Adults & Health,London Care Plc,Respite Care - Private Contractors Payment,230.85,0,COMMERCIAL SUPPLIER
05-06-2023,Adults & Health,London Care Plc,Daycare - Private Contractors Payment,114.92,0,COMMERCIAL SUPPLIER
05-06-2023,Adults & Health,London Care Plc,Home Care - Private Contractors Payment,43.09,0,COMMERCIAL SUPPLIER
05-06-2023,Adults & Health,London Care Plc,Home Care - Private Contractors Payment,-20.52,0,COMMERCIAL SUPPLIER
05-06-2023,Adults & Health,London Care Plc,Home Care - Private Contractors Payment,287.28,0,COMMERCIAL SUPPLIER
05-06-2023,Adults & Health,London Care Plc,Home Care - Private Contractors Payment,153.9,0,COMMERCIAL SUPPLIER
05-06-2023,Adults & Health,London Care Plc,Home Care - Private Contractors Payment,466.83,0,COMMERCIAL SUPPLIER
05-06-2023,Adults & Health,London Care Plc,Home Care - Private Contractors Payment,143.64,0,COMMERCIAL SUPPLIER
05-06-2023,Adults & Health,London Care Plc,Home Care - Private Contractors Payment,215.46,0,COMMERCIAL SUPPLIER
05-06-2023,Adults & Health,London Care Plc,Home Care - Private Contractors Payment,87.21,0,COMMERCIAL SUPPLIER
05-06-2023,Adults & Health,London Care Plc,Daycare - Private Contractors Payment,205.2,0,COMMERCIAL SUPPLIER
05-06-2023,Adults & Health,London Care Plc,Home Care - Private Contractors Payment,41.04,0,COMMERCIAL SUPPLIER
05-06-2023,Adults & Health,London Care Plc,Home Care - Private Contractors Payment,323.19,0,COMMERCIAL SUPPLIER
05-06-2023,Adults & Health,London Care Plc,Home Care - Private Contractors Payment,251.37,0,COMMERCIAL SUPPLIER
05-06-2023,Adults & Health,London Care Plc,Daycare - Private Contractors Payment,158,0,COMMERCIAL SUPPLIER
05-06-2023,Adults & Health,London Care Plc,Home Care - Private Contractors Payment,82.08,0,COMMERCIAL SUPPLIER
05-06-2023,Adults & Health,London Care Plc,Home Care - Private Contractors Payment,251.37,0,COMMERCIAL SUPPLIER
05-06-2023,Adults & Health,London Care Plc,Respite Care - Private Contractors Payment,41.04,0,COMMERCIAL SUPPLIER
05-06-2023,Adults & Health,London Care Plc,Respite Care - Private Contractors Payment,41.04,0,COMMERCIAL SUPPLIER
05-06-2023,Adults & Health,London Care Plc,Daycare - Private Contractors Payment,61.56,0,COMMERCIAL SUPPLIER
05-06-2023,Adults & Health,London Care Plc,Home Care - Private Contractors Payment,107.73,0,COMMERCIAL SUPPLIER
05-06-2023,Adults & Health,London Care Plc,Home Care - Private Contractors Payment,107.73,0,COMMERCIAL SUPPLIER
05-06-2023,Adults & Health,London Care Plc,Home Care - Private Contractors Payment,251.37,0,COMMERCIAL SUPPLIER
05-06-2023,Adults & Health,London Care Plc,Home Care - Private Contractors Payment,538.65,0,COMMERCIAL SUPPLIER
05-06-2023,Adults & Health,London Care Plc,Home Care - Private Contractors Payment,251.37,0,COMMERCIAL SUPPLIER
05-06-2023,Adults & Health,London Care Plc,Daycare - Private Contractors Payment,287.28,0,COMMERCIAL SUPPLIER
05-06-2023,Adults & Health,London Care Plc,Home Care - Private Contractors Payment,61.56,0,COMMERCIAL SUPPLIER
05-06-2023,Adults & Health,London Care Plc,Home Care - Private Contractors Payment,41.04,0,COMMERCIAL SUPPLIER
05-06-2023,Adults & Health,London Care Plc,Daycare - Private Contractors Payment,41.04,0,COMMERCIAL SUPPLIER
05-06-2023,Adults & Health,London Care Plc,Home Care - Private Contractors Payment,41.04,0,COMMERCIAL SUPPLIER
05-06-2023,Adults & Health,London Care Plc,Home Care - Private Contractors Payment,215.46,0,COMMERCIAL SUPPLIER
05-06-2023,Adults & Health,London Care Plc,Daycare - Private Contractors Payment,30.78,0,COMMERCIAL SUPPLIER
05-06-2023,Adults & Health,London Care Plc,Home Care - Private Contractors Payment,143.64,0,COMMERCIAL SUPPLIER
05-06-2023,Adults & Health,London Care Plc,Home Care - Private Contractors Payment,143.64,0,COMMERCIAL SUPPLIER
05-06-2023,Adults & Health,London Care Plc,Daycare - Private Contractors Payment,51.3,0,COMMERCIAL SUPPLIER
05-06-2023,Adults & Health,London Care Plc,Home Care - Private Contractors Payment,186.39,0,COMMERCIAL SUPPLIER
05-06-2023,Adults & Health,London Care Plc,Home Care - Private Contractors Payment,215.46,0,COMMERCIAL SUPPLIER
05-06-2023,Adults & Health,London Care Plc,Home Care - Private Contractors Payment,215.46,0,COMMERCIAL SUPPLIER
05-06-2023,Adults & Health,London Care Plc,Reablement,107.73,0,COMMERCIAL SUPPLIER
05-06-2023,Adults & Health,London Care Plc,Daycare - Private Contractors Payment,41.04,0,COMMERCIAL SUPPLIER
05-06-2023,Adults & Health,London Care Plc,Home Care - Private Contractors Payment,143.64,0,COMMERCIAL SUPPLIER
05-06-2023,Adults & Health,London Care Plc,Home Care - Private Contractors Payment,107.73,0,COMMERCIAL SUPPLIER
05-06-2023,Adults & Health,London Care Plc,Home Care - Private Contractors Payment,71.82,0,COMMERCIAL SUPPLIER
05-06-2023,Adults & Health,London Care Plc,Home Care - Private Contractors Payment,20.52,0,COMMERCIAL SUPPLIER
05-06-2023,Adults & Health,London Care Plc,Home Care - Private Contractors Payment,323.19,0,COMMERCIAL SUPPLIER
05-06-2023,Adults & Health,London Care Plc,Home Care - Private Contractors Payment,41.04,0,COMMERCIAL SUPPLIER
05-06-2023,Adults & Health,London Care Plc,Home Care - Private Contractors Payment,251.37,0,COMMERCIAL SUPPLIER
05-06-2023,Adults & Health,London Care Plc,Daycare - Private Contractors Payment,102.6,0,COMMERCIAL SUPPLIER
05-06-2023,Adults & Health,London Care Plc,Home Care - Private Contractors Payment,538.65,0,COMMERCIAL SUPPLIER
05-06-2023,Adults & Health,London Care Plc,Home Care - Private Contractors Payment,107.73,0,COMMERCIAL SUPPLIER
05-06-2023,Adults & Health,London Care Plc,Reablement,189.81,0,COMMERCIAL SUPPLIER
05-06-2023,Adults & Health,London Care Plc,Home Care - Private Contractors Payment,20.52,0,COMMERCIAL SUPPLIER
05-06-2023,Adults & Health,London Care Plc,Home Care - Private Contractors Payment,71.82,0,COMMERCIAL SUPPLIER
05-06-2023,Adults & Health,London Care Plc,Home Care - Private Contractors Payment,179.55,0,COMMERCIAL SUPPLIER
05-06-2023,Adults & Health,London Care Plc,Home Care - Private Contractors Payment,41.04,0,COMMERCIAL SUPPLIER
05-06-2023,Adults & Health,London Care Plc,Daycare - Private Contractors Payment,205.2,0,COMMERCIAL SUPPLIER
05-06-2023,Adults & Health,London Care Plc,Home Care - Private Contractors Payment,179.55,0,COMMERCIAL SUPPLIER
05-06-2023,Adults & Health,London Care Plc,Home Care - Private Contractors Payment,20.52,0,COMMERCIAL SUPPLIER
05-06-2023,Adults & Health,London Care Plc,Daycare - Private Contractors Payment,102.6,0,COMMERCIAL SUPPLIER
05-06-2023,Adults & Health,London Care Plc,Respite Care - Private Contractors Payment,41.04,0,COMMERCIAL SUPPLIER
05-06-2023,Adults & Health,London Care Plc,Home Care - Private Contractors Payment,251.37,0,COMMERCIAL SUPPLIER
05-06-2023,Adults & Health,London Care Plc,Home Care - Private Contractors Payment,179.55,0,COMMERCIAL SUPPLIER
05-06-2023,Adults & Health,London Care Plc,Home Care - Private Contractors Payment,20.52,0,COMMERCIAL SUPPLIER
05-06-2023,Adults & Health,London Care Plc,Home Care - Private Contractors Payment,359.1,0,COMMERCIAL SUPPLIER
05-06-2023,Adults & Health,London Care Plc,Daycare - Private Contractors Payment,61.56,0,COMMERCIAL SUPPLIER
05-06-2023,Adults & Health,London Care Plc,Home Care - Private Contractors Payment,30.78,0,COMMERCIAL SUPPLIER
05-06-2023,Adults & Health,London Care Plc,Home Care - Private Contractors Payment,30.78,0,COMMERCIAL SUPPLIER
05-06-2023,Adults & Health,London Care Plc,Daycare - Private Contractors Payment,205.2,0,COMMERCIAL SUPPLIER
05-06-2023,Adults & Health,London Care Plc,Daycare - Private Contractors Payment,20.52,0,COMMERCIAL SUPPLIER
